{"text_format":"1","workbook":"xlsx","n_sheets":18,"sheets":["Title Page","Index","INPUT","OUTPUT","Critical Design Assumptions","O&M Assumptions","Indirect Assumptions","Well Design","Pumps Pipe Structure","Instrumentation and Control","O&M","Indirect","Standard Inputs","Cost Equations","Cost Coefficients","Cost Data","Engineering Data","Lookups"],"not_rendered":{"charts":0,"images":1,"macros":1,"external_links":0,"defined_names":381,"comments":10,"pivot_tables":0},"unopened":[],"bounds":{"document_bytes":16777216,"sheet_cells":100000,"rows_first":2000,"rows_last":500,"rows_between":2000,"halvings":0,"cell_chars":16384,"cell_head_chars":4096},"cells_cut":0,"cells_raw":0,"read":"whole","date_system":"1900"}

{"sheet":"Title Page","index":0,"n_rows":15,"n_cols":1,"rows_kept":15,"cut":false,"hidden":false,"merged":[]}
["U.S. EPA Office of Ground Water and Drinking Water"]
["Work Breakdown Structure (WBS) Model for Nontreatment Options for Drinking Water Compliance"]
["Release Date: June 30, 2019"]
["· The primary purpose of this model is to assist EPA in estimating national compliance costs."]
["· As such, the costs are intended to be representative of typical facilities."]
["· The default settings, however, do not account for all of the site-specific factors that could affect the cost of any given individual facility or project."]
["· Still, other uses of the model might be reasonable if sufficient care is taken by the user to account for site- or project-specific factors."]
["· The model results are point estimates shown to the nearest $1, but this precision is not meant to imply that the results are accurate to $1."]
["· Instead, users should review all documentation, modify inputs/assumptions as appropriate to their specific purpose, and form their own informed opinions about the accuracy and suitability of the results."]
["· Use of this model requires Excel 2007 or later."]
["· The model should be opened as Read-only, so that any changes you make are saved under a new file name."]
["· To function properly, macros (\"active content\") must be enabled. If a security warning appears, click \"options\" and \"enable this content.\""]
["· For further information see the following document distributed with this file:"]
["USEPA. 2019. Work Breakdown Structure-Based Cost Model for Nontreatment Options for Drinking Water Compliance. Office of Water."]
["· To begin using the model, go to the INPUT sheet."]

{"sheet":"Index","index":1,"n_rows":88,"n_cols":2,"rows_kept":88,"cut":false,"hidden":false,"merged":[]}
["INDEX"]
["This page provides an index to all user-adjustable inputs and assumptions.  Click on a variable name to go directly to the adjustable cells."]
[]
["User-adjustable Input or Assumption","Variable Name and Link"]
["Access space for pumps and PRVs","space_pumps"]
["Administrative LOE as a percent of average technical labor ","Clerical_percent"]
["Asphalt thickness","asphalt_thickness"]
["Average Flow ","average_flow_I"]
["Builder's risk insurance percentage","br_ins_pct"]
["City index","city_index"]
["Component level","component_level_I"]
["Cost estimating method","curve"]
["Cost for parts & maintenance for booster pumps","booster_pump_maintenance"]
["Cost for parts & maintenance for well pumps","well_pump_maintenance"]
["Cost of Purchased Water","water_cost_I"]
["Depth of grout seal","seal_depth"]
["Design Flow ","design_flow_I"]
["Design safety factor for standby power","std_safety_factor"]
["Distance from Well to Distribution System","well_distance_I"]
["Distance to Water Supply","pipe_length_I"]
["Electrical percentage","elect_pct"]
["Elevation Difference from Supply Source","elevation_diff_I"]
["Engineering percentage for large systems","eng_pct_large"]
["Engineering percentage for medium systems","eng_pct_medium"]
["Engineering percentage for small systems","eng_pct_small"]
["Financing percentage","finance_pct"]
["Financing percentage for small systems","finance_pct_small"]
["Fire Buffer for Buildings","fire_buffer"]
["Flow meters for each well","fm_well"]
["Flow meters for interconnect line","fm_interconnect"]
["Footprint per well","well_footprint"]
["Maintenance LOE assumptions for pumps","uloe_pump_maint"]
["Maintenance LOE assumptions for valves","uloe_valve_maint"]
["Frost depth","frost"]
["I/O port table","port_table"]
["Include architectural fee for small systems?","include_arch_small"]
["Include architectural fee?","include_arch"]
["Include asphalt patch","asphalt_patch_include"]
["Include buildings?","include_buildings_I"]
["Include construction management cost?","include_cm"]
["Include contingency costs for high cost systems?","include_conting_high"]
["Include contingency costs for low cost systems?","include_conting_low"]
["Include contingency costs for medium cost systems?","include_conting_medium"]
["Include geotechnical costs for high cost systems?","include_geo_high"]
["Include geotechnical costs for low cost systems?","include_geo_low"]
["Include geotechnical costs for medium cost systems?","include_geo_medium"]
["Include land?","include_land_I"]
["Include performance bond cost?","include_bond"]
["Include sitework costs?","include_sitework"]
["Include standby power costs for small systems?","include_standby_small"]
["Include standby power costs?","include_standby"]
["Include well pump soft start?","soft_start"]
["Installation, Transportatation, and O&P percentage","inst_pct"]
["Instrumentation and control percentage","i_c_pct"]
["Interior hight of vault","vault_interior_height"]
["Legal percentage","legal_pct"]
["Mangerial LOE as a percent of average technical labor ","Manager_percent"]
["Maxiumum Flow per Well","wells_I"]
["Minimum number of PRVs","min_num_PRVs"]
["Minimum standby power generator size","min_standby"]
["Minimum trench depth to top of pipe","min_trench_depth"]
["Minimum trench width on each side of pipe","min_trench_width"]
["Minimum vault cover","vault_min_cover"]
["Minutes per 100 sf per day","uloe_fp"]
["Minutes per pump per day","uloe_pump"]
["Minutes per valve per week","uloe_valve"]
["Miscellaneous allowance percentage","misc_pct"]
["Mobilization percentage for large systems","mob_pct_large"]
["Mobilization percentage for medium systems","mob_pct_medium"]
["Mobilization percentage for small systems","mob_pct_small"]
["Non fire Buffer for buildings","non_fire_buffer"]
["Number of redundant booster pumps","NRD_booster_pumps"]
["Number of redundant PRVs","NRD_PRVs"]
["Pressure at Supply Source","buyer_pressure_I"]
["Pump efficiency for booster pumps","booster_pump_efficiency"]
["Safety factor for pumps","pump_safety_factor"]
["Sales tax percentage","tax_pct"]
["Screen length to casing length ratio","screen_ration"]
["Spacing for valves","valve_spacing"]
["System automation","manual_I"]
["Technology complexity factor","complexity"]
["Thickness of gravel pack","gravel_thickness"]
["Thickness of grout seal","grout_thickness"]
["Valves per PRV","valve_per_PRV"]
["Valves per pump (booster and well)","valve_per_pump"]
["Vault concrete thickness","vault_concrete_thickness"]
["water pressure at top of well (for distribution)","supply_head"]
["Well Depth","well_depth_I"]

{"sheet":"INPUT","index":2,"n_rows":52,"n_cols":9,"rows_kept":52,"cut":false,"hidden":false,"merged":[[13,6,14,7]]}
["NONTREATMENT SYSTEM DESIGN AND COST INPUT"]
[]
[null,null,null,null,"STEP 1"]
[null,null,null,null,"Select Design Type"]
[]
[]
[null,null,null,null,"STEP 2:",null,null,{"$f":"IF(OR('Standard Inputs'!S9,'Standard Inputs'!S14),\"<- Using this design\",IF(OR('Standard Inputs'!T9,'Standard Inputs'!T14,),\"<- You modified this design\",\"\"))","v":"<- Using this design"},"The standard design buttons are for EPA's use in estimating national costs, but other users might find them useful as a starting point. See documentation for more information"]
[null,null,null,null,"Select one of the eight standard designs at right OR select \"CLEAR FOR MANUAL ENTRY\"",null,null,{"$f":"IF(OR('Standard Inputs'!S10,'Standard Inputs'!S15),\"<- Using this design\",IF(OR('Standard Inputs'!T10,'Standard Inputs'!T15,),\"<- You modified this design\",\"\"))","v":""}]
[null,null,null,null,null,null,null,{"$f":"IF(OR('Standard Inputs'!S11,'Standard Inputs'!S16),\"<- Using this design\",IF(OR('Standard Inputs'!T11,'Standard Inputs'!T16,),\"<- You modified this design\",\"\"))","v":""}]
[null,null,null,null,null,null,null,{"$f":"IF(OR('Standard Inputs'!S12,'Standard Inputs'!S17),\"<- Using this design\",IF(OR('Standard Inputs'!T12,'Standard Inputs'!T17,),\"<- You modified this design\",\"\"))","v":""}]
[null,null,null,null,null,null,null,{"$f":"IF(OR('Standard Inputs'!S13,'Standard Inputs'!S18),\"<- Using this design\",IF(OR('Standard Inputs'!T13,'Standard Inputs'!T18,),\"<- You modified this design\",\"\"))","v":""}]
[null,null,null,null,null,null,null,{"$f":"IF(OR('Standard Inputs'!S9:T18),\"\",\"Using a manual design\")","v":""}]
[null,null,null,null,"STEP 3:"]
[null,null,null,null,"(Optional for standard designs)",null,{"$f":"IF(C15,IF('Standard Inputs'!S21,\"Input Complete -- Results Ready\",\"Input Complete--Press 'Generate Results'\"),\"Input Incomplete--Check for Error Messages Below\")","v":"Input Complete -- Results Ready"}]
[null,null,{"$f":"AND(C28,C35,C42,C43,C52)","v":true},null,"Enter or change values in the gold and blue cells below, under \"Manual Inputs\""]
[]
[null,null,null,null,"STEP 4:",null,null,null,"Results summary (see OUTPUT sheet for details)"]
[null,null,null,null,{"$f":"IF(G14=\"input complete -- results ready\",\"Results are ready (no need to click button)\",\"Click here to generate results -->\")","v":"Results are ready (no need to click button)"},null,null,null,{"$f":"\"Direct Capital Cost: \" & IF(input_status<>\"input complete -- results ready\",input_status,IF(Missing_Cost,\"Missing cost!\",IF(cost_buildup_error,\"Cost buildup error!\",IF(ISERROR(direct_cost),\"Calculation error!\",TEXT(direct_cost,\"$0,0\")))))","v":"Direct Capital Cost: $212,110"}]
[null,null,null,null,null,null,null,null,{"$f":"\"Total Capital Cost: \" & IF(input_status<>\"input complete -- results ready\",input_status,IF(Missing_Cost,\"Missing cost!\",IF(cost_buildup_error,\"Cost buildup error!\",IF(ISERROR(system_cost),\"Calculation error!\",TEXT(system_cost,\"$0,0\")))))","v":"Total Capital Cost: $315,644"}]
[null,null,null,null,null,null,null,null,{"$f":"\"Annualized Capital Cost: \"&IF(input_status<>\"Input Complete -- Results Ready\",input_status,IF(Missing_Cost,\"Missing Price!\",IF(cost_buildup_error,\"Cost buildup error!\",IF(ISERROR(Annualized_Capital_Cost),\"Calculation error!\",TEXT(Annualized_Capital_Cost,\"$0,0\")&\" per year\"&\" (over \"&useful_life&\" years at \"&Discount_rate*100&\"%)\"))))","v":"Annualized Capital Cost: $32,432 per year (over 16.9 years at 7%)"}]
[null,null,null,null,null,null,null,null,{"$f":"\"Annual O&M Cost: \"&IF(input_status<>\"input complete -- results ready\",input_status,IF(ISERROR(om_cost),\"Calculation error!\",TEXT(om_cost,\"$0,0\")&\" per year\"))","v":"Annual O&M Cost: $7,662 per year"}]
[null,null,null,null,null,null,null,null,{"$f":"\"Total Annualized Cost: \"&IF(input_status<>\"input complete -- results ready\",input_status,IF(Missing_Cost,\"Missing Price!\",IF(cost_buildup_error,\"Cost buildup error!\",IF(ISERROR(Annualized_Cost),\"Calculation error!\",TEXT(Annualized_Cost,\"$0,0\")&\" per year\"))))","v":"Total Annualized Cost: $40,094 per year"}]
[null,null,null,null,"MANUAL INPUTS",null,null,null,{"$f":"IF(Missing_Cost,\"A price is not available for at least one required component. See Use? column on OUTPUT sheet.\",IF(cost_buildup_error,\"There is an Excel error in the price for at least one component. Please see the Use? column on OUTPUT sheet.\",\"\"))","v":""}]
[null,null,null,null,"Cells in gold are required; cells in blue are optional"]
[null,"Used?","Valid input?","Invalid reason?",null,null,null,"Select units"]
[null,null,null,null,"Design Flow ","design_flow_I",0.03,"MGD"]
[null,null,null,null,"Average Flow ","average_flow_I",7.0000000000000001E-3,"MGD"]
[null,null,{"$f":"IF(OR(df_units=\"\",af_units=\"\"),FALSE,IF(average_flow>design_flow,FALSE,IF(OR(design_flow_I=0,average_flow_I=0),FALSE,IF(average_flow<design_flow*min_avg_flow,FALSE,TRUE))))","v":true},{"$f":"IF(OR(df_units=\"\",af_units=\"\"),\"Choose units for design and average flow\",IF(average_flow>design_flow,\"The average flow should not be greater than the design flow\",IF(OR(design_flow_I=0,average_flow_I=0),\"Input incomplete\",IF(average_flow<design_flow*min_avg_flow,\"The average flow must be at least \" & min_avg_flow & \" times design flow\",\"OK\"))))","v":"OK"},null,null,null,{"$f":"IF(C28,\"System size inputs OK\",D28)","v":"System size inputs OK"}]
[]
[null,{"$f":"IF(design=1,TRUE,FALSE)","v":true},null,null,"Intrconnection"]
[null,null,{"$f":"IF(B30=TRUE,IF(pipe_length_I=\"\",FALSE,TRUE),TRUE)","v":true},{"$f":"IF(B30=TRUE,IF(pipe_length_I=\"\",\"Interconnection Inputs Incomplete\",\"\"),\"\")","v":""},"Distance to Water Supply","pipe_length_I",10000,"feet"]
[null,null,{"$f":"IF(B31=TRUE,IF(buyer_pressure_I=\"\",FALSE,TRUE),TRUE)","v":true},{"$f":"IF(B31=TRUE,IF(buyer_pressure_I=\"\",\"Interconnection Inputs Incomplete\",\"\"),\"\")","v":""},"Pressure at Supply Source","buyer_pressure_I","correct pressure","<-- select one"]
[null,{"$f":"IF(AND(B30,buyer_pressure_I=\"pressure less than required\"),TRUE,FALSE)","v":false},{"$f":"IF(AND(B30=TRUE,B33=TRUE),IF(elevation_diff_I=\"\",FALSE,IF(booster_psi>500,FALSE,TRUE)),TRUE)","v":true},{"$f":"IF(AND(B30=TRUE,B33=TRUE),IF(elevation_diff_I=\"\",\"Interconnection Inputs Incomplete\",IF(booster_psi>500,\"Elevation difference exceeds maximum available pump rating\",\"\")),\"\")","v":""},"Elevation Difference from Supply Source","elevation_diff_I",0,{"$f":"IF(B33,\"feet\",\"\")","v":""},{"$f":"IF(AND(B30=TRUE,B33=TRUE),\"Guidance: The elevation difference is used to size the booster pump.\",\"\")","v":""}]
[null,null,{"$f":"IF(B30=TRUE,IF(water_cost_I=\"\",FALSE,TRUE),TRUE)","v":true},{"$f":"IF(B30=TRUE,IF(water_cost_I=\"\",\"Interconnection Inputs Incomplete\",\"\"),\"\")","v":""},"Cost of Purchased Water","water_cost_I",2,"$/1000 gal",{"$f":"IF(B30=TRUE,\"Guidance: The cost of purchased water appears as an O&M cost item. Enter 0 to exclude from O&M costs.\",\"\")","v":"Guidance: The cost of purchased water appears as an O&M cost item. Enter 0 to exclude from O&M costs."}]
[null,null,{"$f":"AND(C31:C34)","v":true},{"$f":"IF(C35,\"OK\",IF(C31=FALSE,D31,IF(C32=FALSE,D32,IF(C33=FALSE,D33,IF(C34=FALSE,D34)))))","v":"OK"},null,null,null,{"$f":"IF(B30=TRUE,IF(C35,\"Interconnection Inputs OK\",D35),\"\")","v":"Interconnection Inputs OK"}]
[]
[null,{"$f":"IF(design=2,TRUE,FALSE)","v":false},null,null,"New Well Construction"]
[null,null,{"$f":"IF(B37=TRUE,IF(wells_I=\"\",FALSE,TRUE),TRUE)","v":true},{"$f":"IF(B37=TRUE,IF(wells_I=\"\",\"Well Inputs Incomplete\",\"\"),\"\")","v":""},"Maxiumum Flow per Well","wells_I",null,"gpm","Guidance: Larger systems are typically made up of many smaller wells"]
[null,null,{"$f":"IF(B38=TRUE,IF(wells_depth_I=\"\",FALSE,TRUE),TRUE)","v":true},{"$f":"IF(B37=TRUE,IF(well_depth_I=\"\",\"Well Inputs Incomplete\",\"\"),\"\")","v":""},"Well Depth","well_depth_I",null,"feet"]
[null,null,{"$f":"IF(B37=TRUE,IF(well_distance_I=\"\",FALSE,TRUE),TRUE)","v":true},{"$f":"IF(B37=TRUE,IF(well_distance_I=\"\",\"Well Inputs Incomplete\",\"\"),\"\")","v":""},"Distance from Well to Distribution System","well_distance_I",null,"feet"]
[null,null,null,null,"For information: Number of wells",null,{"$f":"IF(ISERROR(wells),\"\",wells)","v":0}]
[null,null,{"$f":"IF(B37=TRUE,IF(well_pump_hp>well_pump_hp_max,FALSE,TRUE),TRUE)","v":true},{"$f":"IF(B37=TRUE,IF(well_pump_hp>well_pump_hp_max,\"design exceeds maximum available pump horsepower- reduce well depth\",\"\"),\"\")","v":""},"Well pump horsepower",null,{"$f":"IF(B37=TRUE,well_pump_hp,\"\")","v":""},"horsepower"]
[null,null,{"$f":"AND(C38:C42)","v":true},{"$f":"IF(C43,\"OK\",IF(C38=FALSE,D38,IF(C39=FALSE,D39,IF(C40=FALSE,D40,IF(C42=FALSE,D42)))))","v":"OK"},null,null,null,{"$f":"IF(B37=TRUE,IF(AND(C42,C43),\"Well Inputs OK\",D43),\"\")","v":""}]
[]
[]
[null,null,null,null,"Component level","component_level_I",null,"<-- pick or leave blank","Leave blank to use low cost components"]
[null,null,null,null,"System automation","manual_I",null,"<-- pick or leave blank","Leave blank to allow model to pick based on component level"]
[null,null,null,null,"Include buildings?","include_buildings_I",null,"<-- pick or leave blank",{"$f":"IF(design=2,\"Leave blank to include buildings\",\"Interconnection designs never include buildings\")","v":"Interconnection designs never include buildings"}]
[null,null,null,null,"Include land?","include_land_I",null,"<-- pick or leave blank",{"$f":"IF(design=2,\"Leave blank to include land\",\"Interconnection designs never include land\")","v":"Interconnection designs never include land"}]
[null,null,null,null,"For information: Component level",null,{"$f":"IF(component_level=2,\"high cost\",IF(component_level=1,\"mid cost\",\"low cost\"))","v":"low cost"}]
[null,null,null,null,"Automation",null,{"$f":"IF(manual=1,\"manual\",IF(manual=2,\"semi-automated\",IF(manual=3,\"fully automated\")))","v":"manual"}]
[null,null,{"$f":"NOT(ISERROR(manual))","v":true},{"$f":"IF(ISERROR(manual),\"Invalid system automation input\",\"OK\")","v":"OK"},null,null,null,{"$f":"IF(C52,\"System Automation Inputs OK\",D52)","v":"System Automation Inputs OK"}]

{"sheet":"OUTPUT","index":3,"n_rows":202,"n_cols":25,"rows_kept":202,"cut":false,"hidden":false,"merged":[[24,12,26,12],[24,13,24,21],[24,22,25,23],[25,13,25,15],[25,16,25,18],[25,19,25,21],[151,8,151,11],[147,2,147,3],[147,4,147,5],[24,0,26,0],[24,1,26,1],[24,2,26,3],[24,4,26,5],[24,6,26,7],[24,8,26,8],[24,9,26,9],[24,10,26,10],[24,11,26,11]]}
["OUTPUT SUMMARY"]
[null,"Parameter","Value","Units"]
[null,"OUTPUT SUMMARY"]
[null,"Technology",{"$f":"\"Non-Treatment, \"& IF(design=1,\"interconection\", \"new well\")","v":"Non-Treatment, interconection"}]
[null,"System Size Category",{"$f":"IF(design_flow<1,\"small\",\"large\")","v":"small"}]
[null,"Design Flow",{"$f":"design_flow_I","v":0.03},{"$f":"df_units","v":"MGD"}]
[null,"Average Flow",{"$f":"average_flow_I","v":7.0000000000000001E-3},{"$f":"af_units","v":"MGD"}]
[null,{"$f":"\"Distance \"&IF(design=1,\"to interconnected supply\",\"to distribution system\")","v":"Distance to interconnected supply"},{"$f":"IF(design=1,pipe_length_I,well_distance_I)","v":10000},"feet"]
[null,{"$f":"IF(design=1,\"Pressure at supply source\",\"Pump hp\")","v":"Pressure at supply source"},{"$f":"IF(design=1,buyer_pressure_I,well_pump_hp)","v":"correct pressure"}]
[null,{"$f":"IF(design=1,\"\",\"Well depth\")","v":""},{"$f":"IF(design=1,\"\",well_depth_I)","v":""},{"$f":"IF(design=1,\"\",\"feet\")","v":""}]
[null,"Component level",{"$f":"IF(component_level_I=\"\",\"low\", component_level_I)","v":"low"}]
[null,"System automation",{"$f":"IF(manual=1,\"manual\",IF(manual=2,\"semi-automated\",\"fully automated\"))","v":"manual"}]
[null,{"$f":"\"Resulting Costs (in year \"&TEXT(current_year_cl,0)&\" dollars)\"","v":"Resulting Costs (in year 2017 dollars)"}]
[null,"Direct Capital Cost",{"$f":"IF(input_status<>\"input complete -- results ready\",\"Action required\",IF(Missing_Cost,\"Missing cost!\",IF(cost_buildup_error,\"Error in buildup!\",direct_cost)))","v":212109.92500758401},"Details",{"$f":"IF(input_status<>\"input complete -- results ready\",IF(input_complete,\"Press Generate Results\",\"Check INPUT sheet for errors\"),IF(Missing_Cost,\"A price is not available for at least one required component. See Use? column below.\",IF(cost_buildup_error,\"There is an Excel error in the price for at least one component. See Use? column below.\",\"\")))","v":""}]
[null,"Add-on Cost",{"$f":"IF(input_status<>\"input complete -- results ready\",\"Action required\",addon_cost)","v":0},"Details"]
[null,"Indirect Capital Cost",{"$f":"IF(input_status<>\"input complete -- results ready\",\"Action required\",indirect_cost)","v":103533.93774866611},"Details"]
[null,"Total Capital Cost",{"$f":"IF(input_status<>\"input complete -- results ready\",\"Action required\",IF(Missing_Cost,\"Missing cost!\",IF(cost_buildup_error,\"Error in buildup!\",system_cost)))","v":315643.86275625014},"Details"]
[null,{"$f":"\"Annualized Capital Cost \"&IF(OR(input_status<>\"input complete -- results ready\",Missing_Cost,cost_buildup_error),\"\",\"(per year over \"&useful_life&\" years at \"&Discount_rate*100&\"%)\")","v":"Annualized Capital Cost (per year over 16.9 years at 7%)"},{"$f":"IF(input_status<>\"input complete -- results ready\",\"Action required\",Annualized_Capital_Cost)","v":32431.87177057692},"Details"]
[null,"Annual O&M Cost (per year)",{"$f":"IF(input_status<>\"input complete -- results ready\",\"Action required\",om_cost)","v":7662.102828414254},"Details"]
[null,{"$f":"\"Total Annualized Cost (per year)\"","v":"Total Annualized Cost (per year)"},{"$f":"IF(input_status<>\"input complete -- results ready\",\"Action required\",IF(Missing_Cost,\"Missing cost!\",IF(cost_buildup_error,\"Error in buildup!\",Annualized_Cost)))","v":40093.974598991175},"Details"]
[null,"Per 1,000 gallons average flow",{"$f":"IF(input_status<>\"input complete -- results ready\",\"Action required\",IF(Missing_Cost,\"Missing cost!\",IF(cost_buildup_error,\"Error in buildup!\",C176)))","v":15.692357964380108}]
[null,"Per household per year",{"$f":"IF(input_status<>\"input complete -- results ready\",\"Action required\",IF(Missing_Cost,\"Missing cost!\",IF(cost_buildup_error,\"Error in buildup!\",C177)))","v":1625.0486553955095}]
[null,null,null,null,"errornote"]
["Direct Capital Cost Details (items in italics, without a 1 in the \"Use?\" column, represent alternate costs and are excluded from total)"]
["WBS #","Item","Design Quanitity",null,"Design Size",null,"Size used in estimate",null,"Unit Cost","Total Cost","Useful Life","Use?","Full Line Item Name","Priority selection",null,null,null,null,null,null,null,null,"Useful Life"]
[null,null,null,null,null,null,null,null,null,null,null,null,null,"Small (<1 mgd)",null,null,"Medium (1-10 mgd)",null,null,"Large (>10 mgd)"]
[null,null,null,null,null,null,null,null,null,null,null,null,null,"Low","Mid","High","Low","Mid","High","Low","Mid","High","Count?","Depreciation","Major component useful life"]
[1,"Well Items"]
["1.1","Well Casing"]
["1.1.1","PVC",{"$f":"wells*casing_len","v":0},"lf",{"$f":"IF(C30>0,casing_diam,\"NA\")","v":"NA"},{"$f":" IF(C30=0,\"\",\"in. diam\")","v":""},{"$f":"IF(C30=0,\"NA\",IF(curve=1,casing_diam,VLOOKUP(casing_diam,casing_pvc_cost_cl,2)))","v":"NA"},{"$f":" IF(E30=\"NA\",\"\",\"in. diam\")","v":""},{"$f":"IF(C30=0,\"NA\",IF(curve=1,casing_pvc_eq,VLOOKUP(casing_diam,casing_pvc_cost_cl,3)))","v":"NA"},{"$f":"IF(OR(I30=\"contact vendor\",I30=\"NA\"),\"--\",C30*I30)","v":"--"},{"$f":"IF(I30=\"NA\",\"N/A\",VLOOKUP(casing_diam,casing_pvc_cost_cl,IF(ss_cat=\"large\",4,5)))","v":"N/A"},null,{"$f":"$B$28&\" - \"&$B$29&\" - \"&B30","v":"Well Items - Well Casing - PVC"},1,2,2,1,2,2,1,2,2,{"$f":"IF(ISERROR(K30*L30),0,IF(K30<1,0,L30))","v":0},{"$f":"IF(W30,J30/K30,0)","v":0},{"$f":"IF(W30=1,K30,0)","v":0}]
["1.1.1","Stainless Steel",{"$f":"wells*casing_len","v":0},"lf",{"$f":"IF(C31>0,casing_diam,\"NA\")","v":"NA"},{"$f":" IF(C31=0,\"\",\"in. diam\")","v":""},{"$f":"IF(C31=0,\"NA\",IF(curve=1,casing_diam,VLOOKUP(casing_diam,casing_ss_cost_cl,2)))","v":"NA"},{"$f":" IF(E31=\"NA\",\"\",\"in. diam\")","v":""},{"$f":"IF(C31=0,\"NA\",IF(curve=1,casing_ss_eq,VLOOKUP(casing_diam,casing_ss_cost_cl,3)))","v":"NA"},"--",{"$f":"IF(I31=\"NA\",\"N/A\",VLOOKUP(casing_diam,casing_ss_cost_cl,IF(ss_cat=\"large\",4,5)))","v":"N/A"},null,{"$f":"$B$28&\" - \"&$B$29&\" - \"&B31","v":"Well Items - Well Casing - Stainless Steel"},2,1,1,2,1,1,2,1,1,{"$f":"IF(ISERROR(K31*L31),0,IF(K31<1,0,L31))","v":0},{"$f":"IF(W31,J31/K31,0)","v":0},{"$f":"IF(W31=1,K31,0)","v":0}]
["1.2","Well screen",null,null,null,null,null,null,null,null,null,null,null,null,null,null,null,null,null,null,null,null,{"$f":"IF(ISERROR(K32*L32),0,IF(K32<1,0,L32))","v":0},{"$f":"IF(W32,J32/K32,0)","v":0}]
["1.2.1","PVC Schedule 40",{"$f":"wells*screen_len","v":0},"lf",{"$f":" IF( C33>0,screen_diam,\"NA\")","v":"NA"},{"$f":" IF(C33=0,\"\",\"in. diam\")","v":""},{"$f":"IF(C33=0,\"NA\",IF(curve=1,screen_diam,VLOOKUP(screen_diam,screen_pvc40_cost_cl,2)))","v":"NA"},{"$f":" IF(E33=\"NA\",\"\",\"in. diam\")","v":""},{"$f":"IF(C33=0,\"NA\",IF(curve=1,screen_pvc40_eq,VLOOKUP(screen_diam,screen_pvc40_cost_cl,4)))","v":"NA"},{"$f":"IF(OR(I33=\"contact vendor\",I33=\"NA\"),\"--\",C33*I33)","v":"--"},{"$f":"IF(I33=\"NA\",\"N/A\",VLOOKUP(screen_diam,screen_pvc40_cost_cl,IF(ss_cat=\"large\",4,5)))","v":"N/A"},null,{"$f":"$B$28&\" - \"&$B$32&\" - \"&B33","v":"Well Items - Well screen - PVC Schedule 40"},1,2,2,1,2,2,1,2,2,{"$f":"IF(ISERROR(K33*L33),0,IF(K33<1,0,L33))","v":0},{"$f":"IF(W33,J33/K33,0)","v":0},{"$f":"IF(W33=1,K33,0)","v":0}]
["1.2.1","PVC Schedule 80",{"$f":"wells*screen_len","v":0},"lf",{"$f":" IF( C34>0,screen_diam,\"NA\")","v":"NA"},{"$f":" IF(C34=0,\"\",\"in. diam\")","v":""},{"$f":"IF(C34=0,\"NA\",IF(curve=1,screen_diam,VLOOKUP(screen_diam,screen_pvc80_cost_cl,2)))","v":"NA"},{"$f":" IF(E34=\"NA\",\"\",\"in. diam\")","v":""},{"$f":"IF(C34=0,\"NA\",IF(curve=1,screen_pvc80_eq,VLOOKUP(screen_diam,screen_pvc80_cost_cl,4)))","v":"NA"},{"$f":"IF(OR(I34=\"contact vendor\",I34=\"NA\"),\"--\",C34*I34)","v":"--"},{"$f":"IF(I34=\"NA\",\"N/A\",VLOOKUP(screen_diam,screen_pvc80_cost_cl,IF(ss_cat=\"large\",4,5)))","v":"N/A"},null,{"$f":"$B$28&\" - \"&$B$32&\" - \"&B34","v":"Well Items - Well screen - PVC Schedule 80"},2,1,3,2,1,3,2,1,3,{"$f":"IF(ISERROR(K35*L35),0,IF(K35<1,0,L35))","v":0},{"$f":"IF(W34,J35/K35,0)","v":0},{"$f":"IF(W34=1,K34,0)","v":0}]
["1.2.1","Stainless Steel",{"$f":"wells*screen_len","v":0},"lf",{"$f":" IF( C35>0,screen_diam,\"NA\")","v":"NA"},{"$f":" IF(C35=0,\"\",\"in. diam\")","v":""},{"$f":"IF(C35=0,\"NA\",IF(curve=1,screen_diam,VLOOKUP(screen_diam,screen_ss_cost_cl,2)))","v":"NA"},{"$f":" IF(E35=\"NA\",\"\",\"in. diam\")","v":""},{"$f":"IF(C35=0,\"NA\",IF(curve=1,screen_ss_eq,VLOOKUP(screen_diam,screen_ss_cost_cl,4)))","v":"NA"},{"$f":"IF(OR(I35=\"contact vendor\",I35=\"NA\"),\"--\",C35*I35)","v":"--"},{"$f":"IF(I35=\"NA\",\"N/A\",VLOOKUP(screen_diam,screen_ss_cost_cl,IF(ss_cat=\"large\",4,5)))","v":"N/A"},null,{"$f":"$B$28&\" - \"&$B$32&\" - \"&B35","v":"Well Items - Well screen - Stainless Steel"},3,3,1,3,3,1,3,3,1,{"$f":"IF(ISERROR(K36*L36),0,IF(K36<1,0,L36))","v":0},{"$f":"IF(W35,J36/K36,0)","v":0},{"$f":"IF(W35=1,K35,0)","v":0}]
["1.3","Plugs",null,null,null,null,null,null,null,null,null,null,null,null,null,null,null,null,null,null,null,null,{"$f":"IF(ISERROR(K36*L36),0,IF(K36<1,0,L36))","v":0},{"$f":"IF(W36,J36/K36,0)","v":0}]
["1.3.1","PVC",{"$f":" IF(design=2,wells,0)","v":0},"units",{"$f":" IF( C37>0,plug_diam,\"NA\")","v":"NA"},"",{"$f":"IF(C37=0,\"NA\",IF(curve=1,plug_diam,VLOOKUP(plug_diam,plug_pvc_cost_cl,2)))","v":"NA"},{"$f":" IF(E37=\"NA\",\"\",\"in. diam\")","v":""},{"$f":"IF(C37=0,\"NA\",IF(curve=1,plug_pvc_eq,VLOOKUP(plug_diam,plug_pvc_cost_cl,3)))","v":"NA"},{"$f":"IF(OR(I37=\"contact vendor\",I37=\"NA\"),\"--\",C37*I37)","v":"--"},{"$f":"IF(I37=\"NA\",\"N/A\",VLOOKUP(plug_diam,plug_pvc_cost_cl,IF(ss_cat=\"large\",4,5)))","v":"N/A"},null,{"$f":"$B$28&\" - \"&$B$36&\" - \"&B37","v":"Well Items - Plugs - PVC"},1,1,1,1,1,1,1,1,1,{"$f":"IF(ISERROR(K37*L37),0,IF(K37<1,0,L37))","v":0},{"$f":"IF(W37,J37/K37,0)","v":0},{"$f":"IF(W37=1,K37,0)","v":0}]
["1.3.1","Stainless Steel",{"$f":" IF(design=2,wells,0)","v":0},"units",{"$f":" IF( C38>0,plug_diam,\"NA\")","v":"NA"},"",{"$f":"IF(C38=0,\"NA\",IF(curve=1,plug_diam,VLOOKUP(plug_diam,plug_ss_cost_cl,2)))","v":"NA"},{"$f":" IF(E38=\"NA\",\"\",\"in. diam\")","v":""},{"$f":"IF(C38=0,\"NA\",IF(curve=1,plug_ss_eq,VLOOKUP(plug_diam,plug_ss_cost_cl,3)))","v":"NA"},"--",{"$f":"IF(I38=\"NA\",\"N/A\",VLOOKUP(plug_diam,plug_ss_cost_cl,IF(ss_cat=\"large\",4,5)))","v":"N/A"},null,{"$f":"$B$28&\" - \"&$B$36&\" - \"&B38","v":"Well Items - Plugs - Stainless Steel"},2,2,2,2,2,2,2,2,2,{"$f":"IF(ISERROR(K38*L38),0,IF(K38<1,0,L38))","v":0},{"$f":"IF(W38,J38/K38,0)","v":0},{"$f":"IF(W38=1,K38,0)","v":0}]
[1.4,"Well Drilling",{"$f":"IF(design=2,well_depth*wells,0)","v":0},"lf",{"$f":"IF(C39>0,borehole_diam,\"NA\")","v":"NA"},"",{"$f":"IF(C39>0,borehole_diam,\"NA\")","v":"NA"},{"$f":" IF(E39=\"NA\",\"\",\"in. diam\")","v":""},{"$f":"IF(C39=0,\"NA\",well_drill_cost)","v":"NA"},"--",{"$f":"IF(I39=\"NA\",\"N/A\",VLOOKUP(0,drill_12_cost_cl,IF(ss_cat=\"large\",4,5)))","v":"N/A"},null,{"$f":"$B$28&\" - \"&B39","v":"Well Items - Well Drilling"},1,1,1,1,1,1,1,1,1,{"$f":"IF(ISERROR(K39*L39),0,IF(K39<1,0,L39))","v":0},{"$f":"IF(W39,J39/K39,0)","v":0}]
[1.5,"Gravel Pack",{"$f":"wells*gravel_len","v":0},"lf",{"$f":"IF(C40>0,casing_diam,\"NA\")","v":"NA"},"",{"$f":"IF(C40=0,\"NA\",IF(curve=1,casing_diam,VLOOKUP(casing_diam,gravel_pack_cost_cl,2)))","v":"NA"},{"$f":" IF(E40=\"NA\",\"\",\"in. diam\")","v":""},{"$f":"IF(C40=0,\"NA\",IF(curve=1,gravel_pack_eq,VLOOKUP(casing_diam,gravel_pack_cost_cl,3)))","v":"NA"},"--",{"$f":"IF(I40=\"NA\",\"N/A\",VLOOKUP(casing_diam,gravel_pack_cost_cl,IF(ss_cat=\"large\",4,5)))","v":"N/A"},null,{"$f":"$B$28&\" - \"&B40","v":"Well Items - Gravel Pack"},1,1,1,1,1,1,1,1,1]
[1.6,"Well Development",{"$f":"IF(design=2,wells,0)","v":0},"units","NA",null,"NA",null,{"$f":"IF(C41=0,\"NA\",VLOOKUP(0,develop_well_cost_cl,3))","v":"NA"},"--",{"$f":"IF(I41=\"NA\",\"N/A\",VLOOKUP(0,develop_well_cost_cl,IF(ss_cat=\"large\",4,5)))","v":"N/A"},null,{"$f":"$B$28&\" - \"&B41","v":"Well Items - Well Development"},1,1,1,1,1,1,1,1,1,{"$f":"IF(ISERROR(K41*L41),0,IF(K41<1,0,L41))","v":0},{"$f":"IF(W41,J41/K41,0)","v":0}]
[1.7,"Grout Seal",{"$f":"IF(design=2,grout_vol,0)","v":0},"cf","NA",null,"NA",null,{"$f":"IF(C42=0,\"NA\",VLOOKUP(0,grout_cost_cl,3))","v":"NA"},"--",{"$f":"IF(I42=\"NA\",\"N/A\",K39)","v":"N/A"},null,{"$f":"$B$28&\" - \"&B42","v":"Well Items - Grout Seal"},1,1,1,1,1,1,1,1,1,{"$f":"IF(ISERROR(K42*L42),0,IF(K42<1,0,L42))","v":0},{"$f":"IF(W42,J42/K42,0)","v":0}]
["2","Vaults",null,null,null,null,null,null,null,null,null,null,null,null,null,null,null,null,null,null,null,null,{"$f":"IF(ISERROR(K43*L43),0,IF(K43<1,0,L43))","v":0},{"$f":"IF(W43,J43/K43,0)","v":0}]
[2.1,"Booster Pump"]
["2.1.1","Concrete",{"$f":"pump_vault_total_conc_vol","v":0},"cy","NA",null,"NA",null,{"$f":"IF(C45=0,\"NA\",VLOOKUP(0,conc_basin_cost_cl,3))","v":"NA"},{"$f":"IF(OR(I45=\"contact vendor\",I45=\"NA\"),\"--\",C45*I45)","v":"--"},{"$f":"IF(I45=\"NA\",\"N/A\",VLOOKUP(0,conc_basin_cost_cl,IF(ss_cat=\"large\",4,5)))","v":"N/A"},null,{"$f":"$B$43&\" - \"&$B44&\" - \"&B45","v":"Vaults - Booster Pump - Concrete"},1,1,1,1,1,1,1,1,1,{"$f":"IF(ISERROR(K45*L45),0,IF(K45<1,0,L45))","v":0},{"$f":"IF(W45,J45/K45,0)","v":0}]
["2.1.2","Excavation",{"$f":"pump_vault_exc_volume","v":0},"cy","NA",null,"NA",null,{"$f":"IF(C46=0,\"NA\",VLOOKUP(0,excavate_cost_cl,3))","v":"NA"},{"$f":"IF(OR(I46=\"contact vendor\",I46=\"NA\"),\"--\",C46*I46)","v":"--"},{"$f":"IF(I46=\"NA\",\"N/A\",VLOOKUP(0,conc_basin_cost_cl,IF(ss_cat=\"large\",4,5)))","v":"N/A"},null,{"$f":"$B$43&\" - \"&$B$44&\" - \"&B46","v":"Vaults - Booster Pump - Excavation"},1,1,1,1,1,1,1,1,1,{"$f":"IF(ISERROR(K46*L46),0,IF(K46<1,0,L46))","v":0},{"$f":"IF(W46,J46/K46,0)","v":0}]
["2.1.3","Backfill and Compaction",{"$f":"pump_vault_backfill_volume","v":0},"cy","NA",null,"NA",null,{"$f":"IF(C47=0,\"NA\",VLOOKUP(0,backfill_cost_cl,3))","v":"NA"},{"$f":"IF(OR(I47=\"contact vendor\",I47=\"NA\"),\"--\",C47*I47)","v":"--"},{"$f":"IF(I47=\"NA\",\"N/A\",VLOOKUP(0,conc_basin_cost_cl,IF(ss_cat=\"large\",4,5)))","v":"N/A"},null,{"$f":"$B$43&\" - \"&$B$44&\" - \"&B47","v":"Vaults - Booster Pump - Backfill and Compaction"},1,1,1,1,1,1,1,1,1,{"$f":"IF(ISERROR(K47*L47),0,IF(K47<1,0,L47))","v":0},{"$f":"IF(W47,J47/K47,0)","v":0}]
[2.2000000000000002,"Pressure Reducing Valve"]
["2.2.1","Concrete",{"$f":"prv_vault_total_conc_vol","v":0},"cy","NA",null,"NA",null,{"$f":"IF(C49=0,\"NA\",VLOOKUP(0,conc_basin_cost_cl,3))","v":"NA"},{"$f":"IF(OR(I49=\"contact vendor\",I49=\"NA\"),\"--\",C49*I49)","v":"--"},{"$f":"IF(I49=\"NA\",\"N/A\",VLOOKUP(0,conc_basin_cost_cl,IF(ss_cat=\"large\",4,5)))","v":"N/A"},null,{"$f":"$B$43&\" - \"&$B$48&\" - \"&B49","v":"Vaults - Pressure Reducing Valve - Concrete"},1,1,1,1,1,1,1,1,1,{"$f":"IF(ISERROR(K49*L49),0,IF(K49<1,0,L49))","v":0},{"$f":"IF(W49,J49/K49,0)","v":0}]
["2.2.2","Excavation",{"$f":"prv_vault_exc_volume","v":0},"cy","NA",null,"NA",null,{"$f":"IF(C50=0,\"NA\",VLOOKUP(0,excavate_cost_cl,3))","v":"NA"},{"$f":"IF(OR(I50=\"contact vendor\",I50=\"NA\"),\"--\",C50*I50)","v":"--"},{"$f":"IF(I50=\"NA\",\"N/A\",VLOOKUP(0,conc_basin_cost_cl,IF(ss_cat=\"large\",4,5)))","v":"N/A"},null,{"$f":"$B$43&\" - \"&$B$48&\" - \"&B50","v":"Vaults - Pressure Reducing Valve - Excavation"},1,1,1,1,1,1,1,1,1,0,0]
["2.2.3","Backfill and Compaction",{"$f":"prv_vault_backfill_volume","v":0},"cy","NA",null,"NA",null,{"$f":"IF(C51=0,\"NA\",VLOOKUP(0,backfill_cost_cl,3))","v":"NA"},{"$f":"IF(OR(I51=\"contact vendor\",I51=\"NA\"),\"--\",C51*I51)","v":"--"},{"$f":"IF(I51=\"NA\",\"N/A\",VLOOKUP(0,conc_basin_cost_cl,IF(ss_cat=\"large\",4,5)))","v":"N/A"},null,{"$f":"$B$43&\" - \"&$B$48&\" - \"&B51","v":"Vaults - Pressure Reducing Valve - Backfill and Compaction"},1,1,1,1,1,1,1,1,1,0,0]
["3","Piping",null,null,null,null,null,null,null,null,null,null,null,null,null,null,null,null,null,null,null,null,0,0]
[3.1,"Interconnect ",null,null,null,null,null,null,null,null,null,null,null,null,null,null,null,null,null,null,null,null,0,0]
["3.1.1","Ductile Iron",{"$f":"interconnect_pipe_length","v":10000},"lf",{"$f":"IF(C54=0,\"NA\",interconnect_pipe_diameter)","v":2},{"$f":" IF(C54=0,\"\",\"in. diam\")","v":"in. diam"},{"$f":"IF(C54=0,\"NA\",IF(curve=1,interconnect_pipe_diameter,VLOOKUP(interconnect_pipe_diameter,di_pipe_cost_cl,2)))","v":2},{"$f":" IF(C54=0,\"\",\"in. diam\")","v":"in. diam"},{"$f":"IF(C54=0,\"NA\",IF(curve=1,di_pipe_eq_interconnect,VLOOKUP(interconnect_pipe_diameter,di_pipe_cost_cl,3)))","v":"contact vendor"},{"$f":"IF(OR(I54=\"contact vendor\",I54=\"NA\"),\"--\",C54*I54)","v":"--"},{"$f":"IF(I54=\"NA\",\"N/A\",VLOOKUP(interconnect_pipe_diameter,di_pipe_cost_cl,IF(ss_cat=\"large\",4,5)))","v":35},0,{"$f":"$B$52&\" - \"&$B$53&\" - \"&B54","v":"Piping - Interconnect  - Ductile Iron"},2,2,1,2,2,1,2,2,1,0,0,{"$f":"IF(W54=1,K54,0)","v":0}]
["3.1.1","PVC",{"$f":"interconnect_pipe_length","v":10000},"lf",{"$f":"IF(C55=0,\"NA\",interconnect_pipe_diameter)","v":2},{"$f":" IF(C55=0,\"\",\"in. diam\")","v":"in. diam"},{"$f":"IF(C55=0,\"NA\",IF(curve=1,interconnect_pipe_diameter,VLOOKUP(interconnect_pipe_diameter,pvc_pipe_cost_cl,2)))","v":2},{"$f":" IF(C55=0,\"\",\"in. diam\")","v":"in. diam"},{"$f":"IF(C55=0,\"NA\",IF(curve=1,pvc_pipe_eq_interconnect,VLOOKUP(interconnect_pipe_diameter,pvc_pipe_cost_cl,3)))","v":3.3033545530000001},{"$f":"IF(OR(I55=\"contact vendor\",I55=\"NA\"),\"--\",C55*I55)","v":33033.545530000003},{"$f":"IF(I55=\"NA\",\"N/A\",VLOOKUP(interconnect_pipe_diameter,pvc_pipe_cost_cl,IF(ss_cat=\"large\",4,5)))","v":17},1,{"$f":"$B$52&\" - \"&$B$53&\" - \"&B55","v":"Piping - Interconnect  - PVC"},1,1,2,1,1,2,1,1,2,1,1943.1497370588238,{"$f":"IF(W55=1,K55,0)","v":17}]
["3.1.2","Excavation",{"$f":"interconnect_trench_vol","v":2541.1522633744858},"cy","NA",null,"NA",null,{"$f":"IF(C56=0,\"NA\",VLOOKUP(0,excavate_cost_cl,3))","v":31.07454575596817},{"$f":"IF(OR(I56=\"contact vendor\",I56=\"NA\"),\"--\",C56*I56)","v":78965.152281112532},{"$f":"IF(I56=\"NA\",\"N/A\",IF(L54=1,K54,IF(L55=1,K55,\"N/A\")))","v":17},1,{"$f":"$B$52&\" - \"&$B$53&\" - \"&B56","v":"Piping - Interconnect  - Excavation"},1,1,1,1,1,1,1,1,1,1,4645.0089577125018]
["3.1.3","Backfill and Compaction",{"$f":"interconnect_trench_vol","v":2541.1522633744858},"cy","NA",null,"NA",null,{"$f":"IF(C57=0,\"NA\",VLOOKUP(0,backfill_cost_cl,3))","v":14.406259946949602},{"$f":"IF(OR(I57=\"contact vendor\",I57=\"NA\"),\"--\",C57*I57)","v":36608.500070952177},{"$f":"IF(I57=\"NA\",\"N/A\",IF(L54=1,K54,IF(L55=1,K55,\"N/A\")))","v":17},1,{"$f":"$B$52&\" - \"&$B$53&\" - \"&B57","v":"Piping - Interconnect  - Backfill and Compaction"},1,1,1,1,1,1,1,1,1,1,2153.4411806442458]
["3.1.4","Asphalt Patch",{"$f":"asphalt_patch_area","v":802.46913580246905},"sy",{"$f":"IF(C58=0,\"NA\",asphalt_thickness)","v":4},{"$f":" IF(C58=0,\"\",\"in. thick\")","v":"in. thick"},{"$f":"IF(C58=0,\"NA\",VLOOKUP(asphalt_thickness,asphalt_patch_cost_cl,2))","v":4},{"$f":" IF(C58=0,\"\",\"in. diam\")","v":"in. diam"},{"$f":"IF(C58=0,\"NA\",VLOOKUP(asphalt_thickness,asphalt_patch_cost_cl,3))","v":69.048408488063671},{"$f":"IF(OR(I58=\"contact vendor\",I58=\"NA\"),\"--\",C58*I58)","v":55409.216687952321},{"$f":"IF(I58=\"NA\",\"N/A\",IF(L54=1,K54,IF(L55=1,K55,\"N/A\")))","v":17},1,{"$f":"$B$52&\" - \"&$B$53&\" - \"&B58","v":"Piping - Interconnect  - Asphalt Patch"},1,1,1,1,1,1,1,1,1,1,3259.365687526607]
[3.2,"Well",null,null,null,null,null,null,null,null,null,null,null,null,null,null,null,null,null,null,null,null,0,0]
["3.2.1","Ductile Iron",{"$f":"total_well_pipe_length","v":0},"lf",{"$f":"IF(C60=0,\"NA\",well_pipe_diameter)","v":"NA"},{"$f":" IF(C60=0,\"\",\"in. diam\")","v":""},{"$f":"IF(C60=0,\"NA\",IF(curve=1,well_pipe_diameter,VLOOKUP(well_pipe_diameter,di_pipe_cost_cl,2)))","v":"NA"},{"$f":" IF(C60=0,\"\",\"in. diam\")","v":""},{"$f":"IF(C60=0,\"NA\",IF(curve=1,di_pipe_eq_well,VLOOKUP(well_pipe_diameter,di_pipe_cost_cl,3)))","v":"NA"},{"$f":"IF(OR(I60=\"contact vendor\",I60=\"NA\"),\"--\",C60*I60)","v":"--"},{"$f":"IF(I60=\"NA\",\"N/A\",VLOOKUP(well_pipe_diameter,di_pipe_cost_cl,IF(ss_cat=\"large\",4,5)))","v":"N/A"},null,{"$f":"$B$52&\" - \"&$B$59&\" - \"&B60","v":"Piping - Well - Ductile Iron"},2,2,1,2,2,1,2,2,1,0,0]
["3.2.1","PVC",{"$f":"total_well_pipe_length","v":0},"lf",{"$f":"IF(C61=0,\"NA\",well_pipe_diameter)","v":"NA"},{"$f":" IF(C61=0,\"\",\"in. diam\")","v":""},{"$f":"IF(C61=0,\"NA\",IF(curve=1,well_pipe_diameter,VLOOKUP(well_pipe_diameter,pvc_pipe_cost_cl,2)))","v":"NA"},{"$f":" IF(C61=0,\"\",\"in. diam\")","v":""},{"$f":"IF(C61=0,\"NA\",IF(curve=1,pvc_pipe_eq_well,VLOOKUP(well_pipe_diameter,pvc_pipe_cost_cl,3)))","v":"NA"},{"$f":"IF(OR(I61=\"contact vendor\",I61=\"NA\"),\"--\",C61*I61)","v":"--"},{"$f":"IF(I61=\"NA\",\"N/A\",VLOOKUP(well_pipe_diameter,pvc_pipe_cost_cl,IF(ss_cat=\"large\",4,5)))","v":"N/A"},null,{"$f":"$B$52&\" - \"&$B$59&\" - \"&B61","v":"Piping - Well - PVC"},1,1,2,1,1,2,1,1,2,0,0]
["3.2.2","Excavation",{"$f":"well_trench_vol","v":0},"cy","NA",null,"NA",null,{"$f":"IF(C62=0,\"NA\",VLOOKUP(0,excavate_cost_cl,3))","v":"NA"},{"$f":"IF(OR(I62=\"contact vendor\",I62=\"NA\"),\"--\",C62*I62)","v":"--"},{"$f":"IF(I62=\"NA\",\"N/A\",IF(L60=1,K60,IF(L61=1,K61,\"N/A\")))","v":"N/A"},null,{"$f":"$B$52&\" - \"&$B$59&\" - \"&B62","v":"Piping - Well - Excavation"},1,1,1,1,1,1,1,1,1,0,0]
["3.2.3","Backfill and Compaction",{"$f":"well_trench_vol","v":0},"cy","NA",null,"NA",null,{"$f":"IF(C63=0,\"NA\",VLOOKUP(0,backfill_cost_cl,3))","v":"NA"},{"$f":"IF(OR(I63=\"contact vendor\",I63=\"NA\"),\"--\",C63*I63)","v":"--"},{"$f":"IF(I63=\"NA\",\"N/A\",IF(L60=1,K60,IF(L61=1,K61,\"N/A\")))","v":"N/A"},null,{"$f":"$B$52&\" - \"&$B$59&\" - \"&B63","v":"Piping - Well - Backfill and Compaction"},1,1,1,1,1,1,1,1,1,0,0]
["4","Valves",null,null,null,null,null,null,null,null,null,null,null,1,1,1,1,1,1,1,1,1,0,0]
[4.0999999999999996,"Isolation and Street",null,null,null,null,null,null,null,null,null,null,null,null,null,null,null,null,null,null,null,null,0,0]
["4.1.1","Ductile Iron",{"$f":"num_valves","v":11},{"$f":"IF( C66=0,\"\", \"units\")","v":"units"},{"$f":"IF(C66=0,\"NA\",valve_size)","v":2},{"$f":" IF(C66=0,\"\",\"in. diam\")","v":"in. diam"},{"$f":"IF(C66=0,\"NA\",IF(curve=1,valve_size,VLOOKUP(valve_size,street_valve_cost_cl,2)))","v":2},{"$f":" IF(C66=0,\"\",\"in. diam\")","v":"in. diam"},{"$f":"IF(C66=0,\"NA\",IF(curve=1,street_valve_eq,VLOOKUP(valve_size,street_valve_cost_cl,3)))","v":403.40299203700005},{"$f":"IF(OR(I66=\"contact vendor\",I66=\"NA\"),\"--\",C66*I66)","v":4437.4329124070009},{"$f":"IF(I66=\"NA\",\"N/A\",VLOOKUP(valve_size,street_valve_cost_cl,IF(ss_cat=\"large\",4,5)))","v":20},1,{"$f":"$B$64&\" - \"&$B$65&\" - \"&B66","v":"Valves - Isolation and Street - Ductile Iron"},1,1,1,1,1,1,1,1,1,1,221.87164562035005]
[4.2,"Motor/Air Operated (on/off)",null,null,null,null,null,null,null,null,null,null,null,null,null,null,null,null,null,null,null,null,0,0]
["4.2.1","Booster Pump - Polypropylene/PVC",{"$f":"total_booster_MOV","v":0},{"$f":"IF( C68=0,\"\", \"units\")","v":""},{"$f":" IF( C68=0,\"NA\",valve_size)","v":"NA"},{"$f":" IF(C68=0,\"\",\"in. diam\")","v":""},{"$f":"IF(C68=0,\"NA\",IF(curve=1,E68,VLOOKUP(E68,pp_mov_cost_cl,2)))","v":"NA"},{"$f":" IF(C68=0,\"\",\"in. diam\")","v":""},{"$f":"IF(C68=0,\"NA\",IF(curve=1,pp_mov_eq_booster_pump,VLOOKUP(G68,pp_mov_cost_cl,3)))","v":"NA"},{"$f":"IF(OR(I68=\"contact vendor\",I68=\"NA\"),\"--\",C68*I68)","v":"--"},{"$f":"IF(I68=\"NA\",\"N/A\",VLOOKUP(G68,pp_mov_cost_cl,IF(ss_cat=\"large\",4,5)))","v":"N/A"},null,{"$f":"$B$64&\" - \"&$B$67&\" - \"&B68","v":"Valves - Motor/Air Operated (on/off) - Booster Pump - Polypropylene/PVC"},1,2,3,1,2,3,1,2,3,0,0]
["4.2.1","Booster Pump - Stainless Steel",{"$f":"total_booster_MOV","v":0},"","NA","",{"$f":"IF(C69=0,\"NA\",IF(curve=1,E69,VLOOKUP(E69,ss_mov_cost_cl,2)))","v":"NA"},"",{"$f":"IF(C69=0,\"NA\",IF(curve=1,ss_mov_eq_booster_pump,VLOOKUP(G69,ss_mov_cost_cl,3)))","v":"NA"},"--",{"$f":"IF(I69=\"NA\",\"N/A\",VLOOKUP(G69,ss_mov_cost_cl,IF(ss_cat=\"large\",4,5)))","v":"N/A"},null,"Valves - Motor/Air Operated (on/off) - Booster Pump - Stainless Steel",3,3,1,3,3,1,3,3,1,0,0]
["4.2.1","Booster Pump - Cast Iron",{"$f":"total_booster_MOV","v":0},"","NA","",{"$f":"IF(C70=0,\"NA\",IF(curve=1,E70,VLOOKUP(E70,ci_mov_cost_cl,2)))","v":"NA"},"",{"$f":"IF(C70=0,\"NA\",IF(curve=1,ci_mov_eq_booster_pump,VLOOKUP(G70,ci_mov_cost_cl,3)))","v":"NA"},"--",{"$f":"IF(I70=\"NA\",\"N/A\",VLOOKUP(G70,ci_mov_cost_cl,IF(ss_cat=\"large\",4,5)))","v":"N/A"},null,"Valves - Motor/Air Operated (on/off) - Booster Pump - Cast Iron",2,1,2,2,1,2,2,1,2,0,0]
["4.2.2","Well Pump - Polypropylene/PVC",{"$f":"total_well_MOV","v":0},"","NA","",{"$f":"IF(C71=0,\"NA\",IF(curve=1,E71,VLOOKUP(E71,pp_mov_cost_cl,2)))","v":"NA"},"",{"$f":"IF(C71=0,\"NA\",IF(curve=1,pp_mov_eq_well_pump,VLOOKUP(G71,pp_mov_cost_cl,3)))","v":"NA"},"--",{"$f":"IF(I71=\"NA\",\"N/A\",VLOOKUP(G71,pp_mov_cost_cl,IF(ss_cat=\"large\",4,5)))","v":"N/A"},null,"Valves - Motor/Air Operated (on/off) - Well Pump - Polypropylene/PVC",1,2,3,1,2,3,1,2,3,0,0]
["4.2.2","Well Pump - Stainless Steel",{"$f":"total_well_MOV","v":0},"","NA","",{"$f":"IF(C72=0,\"NA\",IF(curve=1,E72,VLOOKUP(E72,ss_mov_cost_cl,2)))","v":"NA"},"",{"$f":"IF(C72=0,\"NA\",IF(curve=1,ss_mov_eq_well_pump,VLOOKUP(G72,ss_mov_cost_cl,3)))","v":"NA"},"--",{"$f":"IF(I72=\"NA\",\"N/A\",VLOOKUP(G72,ss_mov_cost_cl,IF(ss_cat=\"large\",4,5)))","v":"N/A"},null,"Valves - Motor/Air Operated (on/off) - Well Pump - Stainless Steel",3,3,1,3,3,1,3,3,1,0,0]
["4.2.2","Well Pump - Cast Iron",{"$f":"total_well_MOV","v":0},"","NA","",{"$f":"IF(C73=0,\"NA\",IF(curve=1,E73,VLOOKUP(E73,ci_mov_cost_cl,2)))","v":"NA"},"",{"$f":"IF(C73=0,\"NA\",IF(curve=1,ci_mov_eq_well_pump,VLOOKUP(G73,ci_mov_cost_cl,3)))","v":"NA"},"--",{"$f":"IF(I73=\"NA\",\"N/A\",VLOOKUP(G73,ci_mov_cost_cl,IF(ss_cat=\"large\",4,5)))","v":"N/A"},null,"Valves - Motor/Air Operated (on/off) - Well Pump - Cast Iron",2,1,2,2,1,2,2,1,2,0,0]
[4.3,"Manual",null,null,null,null,null,null,null,null,null,null,null,null,null,null,null,null,null,null,null,null,0,0]
["4.3.1","Booster Pump - Polypropylene/PVC",{"$f":"total_booster_man","v":0},{"$f":"IF( C75=0,\"\", \"units\")","v":""},{"$f":" IF( C75=0,\"NA\",valve_size)","v":"NA"},{"$f":" IF(C75=0,\"\",\"in. diam\")","v":""},{"$f":"IF(C75=0,\"NA\",IF(curve=1,E75,VLOOKUP(E75,pp_man_cost_cl,2)))","v":"NA"},{"$f":" IF(C75=0,\"\",\"in. diam\")","v":""},{"$f":"IF(C75=0,\"NA\",IF(curve=1,pp_man_eq_booster_pump,VLOOKUP(G75,pp_man_cost_cl,3)))","v":"NA"},{"$f":"IF(OR(I75=\"contact vendor\",I75=\"NA\"),\"--\",C75*I75)","v":"--"},{"$f":"IF(I75=\"NA\",\"N/A\",VLOOKUP(G75,pp_man_cost_cl,IF(ss_cat=\"large\",4,5)))","v":"N/A"},null,{"$f":"$B$64&\" - \"&$B$74&\" - \"&B75","v":"Valves - Manual - Booster Pump - Polypropylene/PVC"},1,2,3,1,2,3,1,2,3,0,0]
["4.3.1","Booster Pump - Stainless Steel",{"$f":"total_booster_man","v":0},"","NA","",{"$f":"IF(C76=0,\"NA\",IF(curve=1,E76,VLOOKUP(E76,ss_man_cost_cl,2)))","v":"NA"},"",{"$f":"IF(C76=0,\"NA\",IF(curve=1,ss_man_eq_booster_pump,VLOOKUP(G76,ss_man_cost_cl,3)))","v":"NA"},"--",{"$f":"IF(I76=\"NA\",\"N/A\",VLOOKUP(G76,ss_man_cost_cl,IF(ss_cat=\"large\",4,5)))","v":"N/A"},null,"Valves - Manual - Booster Pump - Stainless Steel",3,3,1,3,3,1,3,3,1,0,0]
["4.3.1","Booster Pump - Cast Iron",{"$f":"total_booster_man","v":0},"","NA","",{"$f":"IF(C77=0,\"NA\",IF(curve=1,E77,VLOOKUP(E77,ci_bfv_cost_cl,2)))","v":"NA"},"",{"$f":"IF(C77=0,\"NA\",IF(curve=1,ci_man_eq_booster_pump,VLOOKUP(G77,ci_bfv_cost_cl,3)))","v":"NA"},"--",{"$f":"IF(I77=\"NA\",\"N/A\",VLOOKUP(G77,ci_bfv_cost_cl,IF(ss_cat=\"large\",4,5)))","v":"N/A"},null,"Valves - Manual - Booster Pump - Cast Iron",2,1,2,2,1,2,2,1,2,0,0]
["4.3.2","Well Pump - Polypropylene/PVC",{"$f":"total_well_man","v":0},"","NA","",{"$f":"IF(C78=0,\"NA\",IF(curve=1,E78,VLOOKUP(E78,pp_man_cost_cl,2)))","v":"NA"},"",{"$f":"IF(C78=0,\"NA\",IF(curve=1,pp_man_eq_well_pump,VLOOKUP(G78,pp_man_cost_cl,3)))","v":"NA"},"--",{"$f":"IF(I78=\"NA\",\"N/A\",VLOOKUP(G78,pp_man_cost_cl,IF(ss_cat=\"large\",4,5)))","v":"N/A"},null,"Valves - Manual - Well Pump - Polypropylene/PVC",1,2,3,1,2,3,1,2,3,0,0]
["4.3.2","Well Pump - Stainless Steel",{"$f":"total_well_man","v":0},"","NA","",{"$f":"IF(C79=0,\"NA\",IF(curve=1,E79,VLOOKUP(E79,ss_man_cost_cl,2)))","v":"NA"},"",{"$f":"IF(C79=0,\"NA\",IF(curve=1,ss_man_eq_well_pump,VLOOKUP(G79,ss_man_cost_cl,3)))","v":"NA"},"--",{"$f":"IF(I79=\"NA\",\"N/A\",VLOOKUP(G79,ss_man_cost_cl,IF(ss_cat=\"large\",4,5)))","v":"N/A"},null,"Valves - Manual - Well Pump - Stainless Steel",3,3,1,3,3,1,3,3,1,0,0]
["4.3.2","Well Pump - Cast Iron",{"$f":"total_well_man","v":0},"","NA","",{"$f":"IF(C80=0,\"NA\",IF(curve=1,E80,VLOOKUP(E80,ci_bfv_cost_cl,2)))","v":"NA"},"",{"$f":"IF(C80=0,\"NA\",IF(curve=1,ci_man_eq_well_pump,VLOOKUP(G80,ci_bfv_cost_cl,3)))","v":"NA"},"--",{"$f":"IF(I80=\"NA\",\"N/A\",VLOOKUP(G80,ci_bfv_cost_cl,IF(ss_cat=\"large\",4,5)))","v":"N/A"},null,"Valves - Manual - Well Pump - Cast Iron",2,1,2,2,1,2,2,1,2,0,0]
[4.4000000000000004,"Control",null,null,null,null,null,null,null,null,null,null,null,null,null,null,null,null,null,null,null,null,0,0]
["4.4.1","Pressure Reducing",{"$f":"num_PRVs","v":0},"units",{"$f":"IF(C82=0,\"NA\",PRV_size)","v":"NA"},{"$f":" IF(C82=0,\"\",\"in. diam\")","v":""},{"$f":"IF(C82=0,\"NA\",IF(curve=1,PRV_size,VLOOKUP(PRV_size,PRV_cost_cl,2)))","v":"NA"},{"$f":" IF(C82=0,\"\",\"in. diam\")","v":""},{"$f":"IF(C82=0,\"NA\",IF(curve=1,prv_eq,VLOOKUP(PRV_size,PRV_cost_cl,3)))","v":"NA"},{"$f":"IF(OR(I82=\"contact vendor\",I82=\"NA\"),\"--\",C82*I82)","v":"--"},{"$f":"IF(I82=\"NA\",\"N/A\",VLOOKUP(PRV_size,PRV_cost_cl,IF(ss_cat=\"large\",4,5)))","v":"N/A"},null,{"$f":"$B$64&\" - \"&$B$81&\" - \"&B82","v":"Valves - Control - Pressure Reducing"},1,1,1,1,1,1,1,1,1,0,0]
["5","Pumps",null,null,null,null,null,null,null,null,null,null,null,null,null,null,null,null,null,null,null,null,0,0]
[5.0999999999999996,"Interconnect Booster Pump",{"$f":"total_booster_pumps","v":0},"units",{"$f":"IF(C84=0,\"NA\",booster_pump_rating)","v":"NA"},{"$f":" IF(C84=0,\"\",\"gpm\")","v":""},{"$f":"IF(C84=0,\"NA\",IF(curve=1,booster_pump_rating,booster_pump_size_used))","v":"NA"},{"$f":" IF(C84=0,\"\",\"gpm\")","v":""},{"$f":"IF(C84=0,\"NA\",IF(booster_pump_rating=0,\"-\",IF(curve=1,int_booster_pump_eq,booster_pump_cost)))","v":"NA"},{"$f":"IF(OR(I84=\"contact vendor\",I84=\"NA\"),\"--\",C84*I84)","v":"--"},{"$f":"IF(C84=0,\"N/A\",VLOOKUP(booster_pump_rating,pump_cost_cl,IF(ss_cat=\"large\",4,5)))","v":"N/A"},null,{"$f":"$B$83&\" - \"&B84","v":"Pumps - Interconnect Booster Pump"},1,1,1,1,1,1,1,1,1,0,0]
[5.2,"Well Pump",{"$f":"well_pumps","v":0},"units",{"$f":"IF(C85=0,\"NA\",well_pump_hp)","v":"NA"},{"$f":" IF(C85=0,\"\",\"hp\")","v":""},{"$f":"IF(C85=0,\"NA\",VLOOKUP(E85,well_pump_cost_cl,2))","v":"NA"},{"$f":" IF(C85=0,\"\",\"hp\")","v":""},{"$f":"IF(C85=0,\"NA\",VLOOKUP(G85,well_pump_cost_cl,3))","v":"NA"},{"$f":"IF(OR(I85=\"contact vendor\",I85=\"NA\"),\"--\",C85*I85)","v":"--"},{"$f":"IF(I85=\"NA\",\"N/A\",VLOOKUP(G85,well_pump_cost_cl,IF(ss_cat=\"large\",4,5)))","v":"N/A"},null,{"$f":"$B$83&\" - \"&B85","v":"Pumps - Well Pump"},1,1,1,1,1,1,1,1,1,0,0]
["6","Instrumentation",null,null,null,null,null,null,null,null,null,null,null,null,null,null,null,null,null,null,null,null,0,0]
[6.1,"Flow Meters - Interconnect",null,null,null,null,null,null,null,null,null,null,null,null,null,null,null,null,null,null,null,null,0,0]
["6.1.1","Orifice Plate",{"$f":"IF( interconnect_meter_size=0,0,1)","v":1},"units",{"$f":"IF(C88=0,\"NA\",interconnect_meter_size)","v":2},{"$f":" IF(C88=0,\"\",\"in. diam\")","v":"in. diam"},{"$f":"IF(curve=1,E88,VLOOKUP(E88,op_fm_cost_cl,2))","v":2},{"$f":" IF(C88=0,\"\",\"in. diam\")","v":"in. diam"},{"$f":"IF(C88=0,\"NA\", IF(curve=1,op_fm_eq_innterconnect,VLOOKUP(G88,op_fm_cost_cl,3)))","v":3282.38600159},{"$f":"IF(OR(I88=\"contact vendor\",I88=\"NA\"),\"--\",C88*I88)","v":3282.38600159},{"$f":"IF( I88=\"NA\",\"NA\",VLOOKUP(G88,op_fm_cost_cl,IF(ss_cat=\"large\",4,5)))","v":14},0,{"$f":"$B$86&\" - \"&$B$87&\" - \"&B88","v":"Instrumentation - Flow Meters - Interconnect - Orifice Plate"},3,4,4,3,4,4,3,3,4,0,0]
["6.1.1","Propeller",{"$f":"IF( interconnect_meter_size=0,0,1)","v":1},"units",{"$f":"IF(C89=0,\"NA\",interconnect_meter_size)","v":2},{"$f":" IF(C89=0,\"\",\"in. diam\")","v":"in. diam"},{"$f":"IF(curve=1,E89,VLOOKUP(E89,prop_fm_cost_cl,2))","v":2},{"$f":" IF(C89=0,\"\",\"in. diam\")","v":"in. diam"},{"$f":"IF(C89=0,\"NA\", IF(curve=1,prop_fm_eq_innterconnect,VLOOKUP(G89,prop_fm_cost_cl,3)))","v":2625.33752516},{"$f":"IF(OR(I89=\"contact vendor\",I89=\"NA\"),\"--\",C89*I89)","v":2625.33752516},{"$f":" IF(I89=\"NA\",\"NA\",VLOOKUP(G89,prop_fm_cost_cl,IF(ss_cat=\"large\",4,5)))","v":14},1,{"$f":"$B$86&\" - \"&$B$87&\" - \"&B89","v":"Instrumentation - Flow Meters - Interconnect - Propeller"},1,2,3,1,2,3,4,4,2,1,187.52410893999999]
["6.1.1","Venturi",{"$f":"IF( interconnect_meter_size=0,0,1)","v":1},"units",{"$f":"IF(C90=0,\"NA\",interconnect_meter_size)","v":2},{"$f":" IF(C90=0,\"\",\"in. diam\")","v":"in. diam"},{"$f":"IF(curve=1,E90,VLOOKUP(E90,ven_fm_cost_cl,2))","v":2},{"$f":" IF(C90=0,\"\",\"in. diam\")","v":"in. diam"},{"$f":"IF(C90=0,\"NA\", IF(curve=1,ven_fm_eq_innterconnect,VLOOKUP(G90,ven_fm_cost_cl,3)))","v":5578.7290100619994},{"$f":"IF(OR(I90=\"contact vendor\",I90=\"NA\"),\"--\",C90*I90)","v":5578.7290100619994},{"$f":" IF(I90=\"NA\",\"NA\",VLOOKUP(G90,ven_fm_cost_cl,IF(ss_cat=\"large\",4,5)))","v":14},0,{"$f":"$B$86&\" - \"&$B$87&\" - \"&B90","v":"Instrumentation - Flow Meters - Interconnect - Venturi"},2,1,2,2,1,2,1,2,3,0,0]
["6.1.1","Magnetic",{"$f":"IF( interconnect_meter_size=0,0,1)","v":1},"units",{"$f":"IF(C91=0,\"NA\",interconnect_meter_size)","v":2},{"$f":" IF(C91=0,\"\",\"in. diam\")","v":"in. diam"},{"$f":"IF(curve=1,E91,VLOOKUP(E91,mag_fm_cost_cl,2))","v":2},{"$f":" IF(C91=0,\"\",\"in. diam\")","v":"in. diam"},{"$f":"IF(C91=0,\"NA\", IF(curve=1,mag_fm_eq_innterconnect,VLOOKUP(G91,mag_fm_cost_cl,3)))","v":4230.640784837},{"$f":"IF(OR(I91=\"contact vendor\",I91=\"NA\"),\"--\",C91*I91)","v":4230.640784837},{"$f":" IF(I91=\"NA\",\"NA\",VLOOKUP(G91,mag_fm_cost_cl,IF(ss_cat=\"large\",4,5)))","v":14},0,{"$f":"$B$86&\" - \"&$B$87&\" - \"&B91","v":"Instrumentation - Flow Meters - Interconnect - Magnetic"},4,3,1,4,3,1,2,1,1,0,0]
[6.2,"Flow Meters - Well"]
["6.2.1","Orifice Plate",{"$f":"IF( well_meter_size=0,0,1)","v":0},"units",{"$f":"IF(C93=0,\"NA\",well_meter_size)","v":"NA"},{"$f":" IF(C93=0,\"\",\"in. diam\")","v":""},{"$f":"IF(curve=1,E93,VLOOKUP(E93,op_fm_cost_cl,2))","v":"NA"},{"$f":" IF(C93=0,\"\",\"in. diam\")","v":""},{"$f":"IF(C93=0,\"NA\", IF(curve=1,op_fm_eq_well,VLOOKUP(G93,op_fm_cost_cl,3)))","v":"NA"},{"$f":"IF(OR(I93=\"contact vendor\",I93=\"NA\"),\"--\",C93*I93)","v":"--"},{"$f":"IF( I93=\"NA\",\"NA\",VLOOKUP(G93,op_fm_cost_cl,IF(ss_cat=\"large\",4,5)))","v":"NA"},null,{"$f":"$B$86&\" - \"&$B$92&\" - \"&B93","v":"Instrumentation - Flow Meters - Well - Orifice Plate"},3,4,4,3,4,4,3,3,4,{"$f":"IF(ISERROR(K93*L93),0,IF(K93<1,0,L93))","v":0},{"$f":"IF(W93,J93/K93,0)","v":0}]
["6.2.1","Propeller",{"$f":"IF( well_meter_size=0,0,1)","v":0},"units",{"$f":"IF(C94=0,\"NA\",well_meter_size)","v":"NA"},{"$f":" IF(C94=0,\"\",\"in. diam\")","v":""},{"$f":"IF(curve=1,E94,VLOOKUP(E94,prop_fm_cost_cl,2))","v":"NA"},{"$f":" IF(C94=0,\"\",\"in. diam\")","v":""},{"$f":"IF(C94=0,\"NA\", IF(curve=1,prop_fm_eq_well,VLOOKUP(G94,prop_fm_cost_cl,3)))","v":"NA"},{"$f":"IF(OR(I94=\"contact vendor\",I94=\"NA\"),\"--\",C94*I94)","v":"--"},{"$f":" IF(I94=\"NA\",\"NA\",VLOOKUP(G94,prop_fm_cost_cl,IF(ss_cat=\"large\",4,5)))","v":"NA"},null,{"$f":"$B$86&\" - \"&$B$92&\" - \"&B94","v":"Instrumentation - Flow Meters - Well - Propeller"},1,2,3,1,2,3,4,4,2,0,0]
["6.2.1","Venturi",{"$f":"IF( well_meter_size=0,0,1)","v":0},"units",{"$f":"IF(C95=0,\"NA\",well_meter_size)","v":"NA"},{"$f":" IF(C95=0,\"\",\"in. diam\")","v":""},{"$f":"IF(curve=1,E95,VLOOKUP(E95,ven_fm_cost_cl,2))","v":"NA"},{"$f":" IF(C95=0,\"\",\"in. diam\")","v":""},{"$f":"IF(C95=0,\"NA\", IF(curve=1,ven_fm_eq_well,VLOOKUP(G95,ven_fm_cost_cl,3)))","v":"NA"},{"$f":"IF(OR(I95=\"contact vendor\",I95=\"NA\"),\"--\",C95*I95)","v":"--"},{"$f":" IF(I95=\"NA\",\"NA\",VLOOKUP(G95,ven_fm_cost_cl,IF(ss_cat=\"large\",4,5)))","v":"NA"},null,{"$f":"$B$86&\" - \"&$B$92&\" - \"&B95","v":"Instrumentation - Flow Meters - Well - Venturi"},2,1,2,2,1,2,1,2,3,0,0]
["6.2.1","Magnetic",{"$f":"IF( well_meter_size=0,0,1)","v":0},"units",{"$f":"IF(C96=0,\"NA\",well_meter_size)","v":"NA"},{"$f":" IF(C96=0,\"\",\"in. diam\")","v":""},{"$f":"IF(curve=1,E96,VLOOKUP(E96,mag_fm_cost_cl,2))","v":"NA"},{"$f":" IF(C96=0,\"\",\"in. diam\")","v":""},{"$f":"IF(C96=0,\"NA\", IF(curve=1,mag_fm_eq_well,VLOOKUP(G96,mag_fm_cost_cl,3)))","v":"NA"},{"$f":"IF(OR(I96=\"contact vendor\",I96=\"NA\"),\"--\",C96*I96)","v":"--"},{"$f":" IF(I96=\"NA\",\"NA\",VLOOKUP(G96,mag_fm_cost_cl,IF(ss_cat=\"large\",4,5)))","v":"NA"},null,{"$f":"$B$86&\" - \"&$B$92&\" - \"&B96","v":"Instrumentation - Flow Meters - Well - Magnetic"},4,3,1,4,3,1,2,1,1,0,0]
["7","System Controls ",null,null,null,null,null,null,null,null,null,null,null,null,null,null,null,null,null,null,null,null,0,0]
[7.1,"Remote Telemetry Units (RTUs)",{"$f":"total_RTU","v":1},"units","NA",null,"NA",null,{"$f":"IF(C98=0,\"NA\",VLOOKUP(0,RTU_cost_cl,3))","v":1030.74},{"$f":"IF(OR(I98=\"contact vendor\",I98=\"NA\"),\"--\",C98*I98)","v":1030.74},{"$f":"IF(I98=\"NA\",\"N/A\",VLOOKUP(0,RTU_cost_cl,IF(ss_cat=\"large\",4,5)))","v":8},1,{"$f":"$B$97&\" - \"&B98","v":"System Controls  - Remote Telemetry Units (RTUs)"},1,1,1,1,1,1,1,1,1,1,128.8425]
[7.2,"Well Pump - Soft Start Control",{"$f":"tot_soft_start","v":0},"units","NA",null,"NA",null,{"$f":"IF(C99=0,\"NA\",VLOOKUP(0,soft_start_cost_cl,3))","v":"NA"},{"$f":"IF(OR(I99=\"contact vendor\",I99=\"NA\"),\"--\",C99*I99)","v":"--"},{"$f":"IF(I99=\"NA\",\"N/A\",VLOOKUP(0,soft_start_cost_cl,IF(ss_cat=\"large\",4,5)))","v":"N/A"},null,{"$f":"$B$97&\" - \"&B99","v":"System Controls  - Well Pump - Soft Start Control"},1,1,1,1,1,1,1,1,1,{"$f":"IF(ISERROR(K99*L99),0,IF(K99<1,0,L99))","v":0},{"$f":"IF(W99,J99/K99,0)","v":0}]
["8","Building Structures",null,null,null,null,null,null,null,null,null,null,null,null,null,null,null,null,null,null,null,null,0,0]
[8.1,"Building 1",null,null,null,null,null,null,null,null,null,null,null,null,null,null,null,null,null,null,null,null,0,0]
["8.1.1","Small Low Cost Shed",{"$f":"IF(AND(build1_fp>0,build1_fp<500),1,0)","v":0},"units",{"$f":"IF(C102=0,\"NA\",build1_fp)","v":"NA"},{"$f":"IF(C102=0,\"\",\"sf\")","v":""},{"$f":"IF(C102=0,\"NA\",build1_fp)","v":"NA"},{"$f":"IF(C102=0,\"\",\"sf\")","v":""},{"$f":"IF(C102=0,\"NA\",VLOOKUP(build1_fp,bldg_shed_cost_cl,3))","v":"NA"},{"$f":"IF(OR(I102=\"contact vendor\",I102=\"NA\"),\"--\",G102*I102)","v":"--"},{"$f":"IF($C102=0,\"N/A\",VLOOKUP(build1_fp,bldg_shed_cost_cl,IF(ss_cat=\"large\",4,5)))","v":"N/A"},null,{"$f":"$B$100&\" - \"&$B$101&\" - \"&B102","v":"Building Structures - Building 1 - Small Low Cost Shed"},{"$f":"IF(include_buildings=1,1,0)","v":0},0,0,0,0,0,0,0,0,0,0,{"$f":"IF(W102,K102,0)","v":0}]
["8.1.1","Low Quality",{"$f":"IF(build1_fp>=500,1,0)","v":0},"units",{"$f":"build1_fp","v":0},"sf",{"$f":"build1_fp","v":0},"sf",{"$f":"IF(C103=0,\"NA\",IF(curve=1,bldg_lo_eq_1,VLOOKUP(build1_fp, bldg_lo_cost_cl,3)))","v":"NA"},{"$f":"IF(OR(I103=\"NA\",I103=\"contact vendor\"),\"--\",G103*I103)","v":"--"},{"$f":"IF($C103=0,\"N/A\",VLOOKUP(build1_fp,bldg_lo_cost_cl,IF(ss_cat=\"large\",4,5)))","v":"N/A"},null,{"$f":"$B$100&\" - \"&$B$101&\" - \"&B103","v":"Building Structures - Building 1 - Low Quality"},0,0,0,0,0,0,0,0,0,0,0,{"$f":"IF(W103,K103,0)","v":0}]
[null,null,null,null,null,null,null,null,null,null,null,null,null,null,null,null,null,null,null,null,null,null,"direct_for_UL","total_direct_depreciation","build_UL"]
["Total of direct line items above:",null,null,null,null,null,null,null,null,null,null,null,null,null,null,null,null,null,null,null,null,null,{"$f":"SUMPRODUCT(W30:W103,J30:J103)","v":212109.92500758401},{"$f":"SUM(X30:X103)","v":12539.20381750253},{"$f":"MAX(Y37:Y38,Y54:Y55,Y33:Y35,Y30:Y31)","v":17}]
[null,"Direct cost category","Total","Guidance"]
[null,"Process costs",{"$f":"SUMPRODUCT(J29:J98,L29:L98)","v":212109.92500758401},"Excludes components in italics (which are alternate costs for comparison).  Includes installation, transportation, and O&P"]
[null,"Building costs",{"$f":"SUMPRODUCT(J102:J103,L102:L103)","v":0},"See indirect assumptions sheet to exclude buildings"]
[null,"Total direct capital cost",{"$f":"process_cost+building_cost","v":212109.92500758401},"Total of process costs"]
[]
["Add-on Cost Details (See indirect assumptions sheet to exclude individual add-on items)"]
[null,"Add-on Line Item","Total","Guidance"]
[null,"Permits",{"$f":"permit_cost","v":0},"For building permits"]
[null,"Pilot Study",0,"No pilot study needed for this technology"]
[null,"Land Cost",{"$f":"include_land*land_required*land_cost","v":0},{"$f":"\"For \"&TEXT(land_required,\"#0.000\")&\" acres\"","v":"For 0.000 acres"}]
[null,"Total add-on costs",{"$f":"SUM(C113:C115)","v":0}]
[]
["Indirect Capital Cost Details (See indirect assumptions sheet to exclude individual indirect items)"]
[null,"Indirect Line Item","Total","Percent","Guidance"]
[null,"Mobilization and Demobilization",{"$f":"(direct_cost+C122+C123+C124+C125+C126+C127+C128+C131)*D120","v":11666.045875417121},{"$f":"CHOOSE(ss_cat2,mob_pct_small,mob_pct_medium,mob_pct_large)","v":0.05}]
[null,"Architectural Fees for Treatment Building",{"$f":"IF(ss_cat2=1,include_arch_small,include_arch)*D121*building_cost","v":0},{"$f":"VLOOKUP(building_cost,architectural_table_cl,3)","v":0.09},"Excluded by default for small systems"]
[null,"Installation, Transportation, and O&P",{"$f":"direct_cost*D122","v":0},{"$f":"inst_pct","v":0}]
[null,"Site Work  ",{"$f":"include_sitework*sitework_cost","v":0},null,"Calculated based on system requirements."]
[null,"Yard Piping",{"$f":"0","v":0},null,"Not included in this technology"]
[null,"Geotechnical",{"$f":"IF(component_level=\"\",include_geo_low,IF(component_level=1,include_geo_medium,include_geo_high)) *geotech_cost","v":0},null,"Calculated based on system requirements.  "]
[null,"Standby Power",{"$f":"IF(ss_cat2=1,include_standby_small,include_standby)*std_power_cost","v":0},null,"Calculated based on system requirements.  Excluded by default for small systems"]
[null,"Electrical (including yard wiring)",{"$f":"IF(OR(C84>0,C85>0),process_cost*D127,0)","v":0},{"$f":"elect_pct","v":0.1},"Percentage is applied only to process cost. Building direct costs include electrical components."]
[null,"Instrumentation and Control",{"$f":"direct_cost*D128","v":0},{"$f":"i_c_pct","v":0}]
[null,"Contingency",{"$f":"IF(component_level=\"\",include_conting_low,IF(component_level=1,include_conting_medium,include_conting_high))*(direct_cost+addon_cost+SUM(C120:C128,C130:C135))*D129","v":0},{"$f":"IF(component_level=\"\",include_conting_low,IF(component_level=1,include_conting_medium,include_conting_high))*VLOOKUP(direct_cost,contingency_table_cl,3)*complexity","v":0},"Included for high cost systems only."]
[null,"Process Engineering",{"$f":"direct_cost*D130","v":42421.985001516805},{"$f":"CHOOSE(ss_cat2,eng_pct_small,eng_pct_medium,eng_pct_large)","v":0.2}]
[null,"Miscellaneous Allowance",{"$f":"direct_cost*D131","v":21210.992500758402},{"$f":"misc_pct","v":0.1},{"$f":"IF(design=1, \"Includes interconnection pipe fittings\",\"\")","v":"Includes interconnection pipe fittings"}]
[null,"Legal, Fiscal, and Administrative",{"$f":"direct_cost*D132","v":4242.1985001516805},{"$f":"legal_pct","v":0.02}]
[null,"Sales Tax",{"$f":"direct_cost*D133","v":0},{"$f":"tax_pct","v":0}]
[null,"Financing during Construction",{"$f":"direct_cost*D134","v":0},{"$f":"IF(ss_cat2=1,finance_pct_small,finance_pct)","v":0}]
[null,"Construction Management and GC Overhead",{"$f":"cm_cost","v":23992.715870822103}]
[null,"Total indirect capital cost",{"$f":"indirect_cost_mult*direct_cost+indirect_cost_add","v":103533.93774866611},null,"Total of indirect line items"]
[]
["TOTAL CAPITAL COST DETAILS"]
[null,"Assumption","Value","Guidance"]
[null,"City Index",1,"User adjustable.  Can be used to adjust estimated costs to be more reflective of a specific geographical location"]
[]
[null,"Total Direct Capital Cost (from above)",{"$f":"direct_cost","v":212109.92500758401}]
[null,"Total Add-on Cost (from above)",{"$f":"addon_cost","v":0}]
[null,"Total Indirect Cost (from above)",{"$f":"C136","v":103533.93774866611}]
[null,"Grand total capital cost (incorporating city index)",{"$f":"(direct_cost*(1+SUM(cul_indir_mult_table))+SUM(cul_indir_add_table))*city_index","v":315643.86275625014}]
[]
["Annual Operating and Maintenance Cost Details (items in italics, without a 1 in the \"Use?\" column, represent alternate costs and are excluded from total)"]
[null,"Item","Quantity",null,"Unit Cost",null,"Total Cost","Use?","Guidance"]
[null,"Labor"]
[null,"Manager",{"$f":"Manager_LOE","v":4.8583333333333334},"hrs/yr",{"$f":"VLOOKUP(design_flow,labor_table_cl,5)","v":45.239626883520685},"/hr",{"$f":"E150*C150","v":219.78918727577133},{"$f":"IF(C150=0,0,1)","v":1}]
[null,"Administrative",{"$f":"Clerical_LOE","v":4.8583333333333334},"hrs/yr",{"$f":"VLOOKUP(design_flow,labor_table_cl,4)","v":31.9148911743602},"/hr",{"$f":"E151*C151","v":155.05317962209998},{"$f":"IF(C151=0,0,1)","v":1}]
[null,"Operator",{"$f":"Operator_LOE","v":48.583333333333329},"hrs/yr",{"$f":"VLOOKUP(design_flow,labor_table_cl,6)","v":30.477646496053573},"/hr",{"$f":"E152*C152","v":1480.7056589332692},{"$f":"IF(C152=0,0,1)","v":1},"Includes labor for regular operations, maintenance, regeneration, etc."]
[null,"Materials"]
[null,"Building maintenance (materials and labor)",{"$f":"total_fp","v":0},"sf",{"$f":"IF(C154=0,0,G154/C154)","v":0},"/sf/yr",{"$f":"bldg_maint_cost","v":0},{"$f":"IF(G154=0,0,1)","v":0}]
[null,"Purchased Water",{"$f":"IF(design=1, average_flow,0)* day_per_year *1000","v":2555},"K gal",{"$f":" water_cost_I","v":2},"K gal",{"$f":"C155 * E155","v":5110},{"$f":"IF(C155>0,1,0)","v":1}]
[null,"Booster pump","calculated as a percentage of capital",null,null,null,{"$f":"pump_materials","v":0},{"$f":"IF(C156>0,1,0)","v":1}]
[null,"Well pump","calculated as a percentage of capital",null,null,null,{"$f":"well_pump_materials","v":0},{"$f":"IF(C157>0,1,0)","v":1}]
[null,"Energy"]
[null,"Energy for booster pumps",{"$f":"booster_pump_energy","v":0},"Mwh/yr",{"$f":"energy_cost_cl","v":0.12121832061068702},"/kwh",{"$f":"E159*C159*1000","v":0},{"$f":"IF(C159=0,0,1)","v":0}]
[null,"Energy for well pumps",{"$f":"well_pump_energy","v":0},"Mwh/yr",{"$f":"energy_cost_cl","v":0.12121832061068702},"/kwh",{"$f":"E160*C160*1000","v":0},{"$f":"IF(C160=0,0,1)","v":0}]
[null,"Miscellaneous Allowance",{"$f":"misc_pct","v":0.1},null,null,null,{"$f":"SUMPRODUCT(G150:G160,H150:H160)*C161","v":696.554802583114},1]
[null,"Total Annual O&M Cost",null,null,null,null,{"$f":"SUMPRODUCT(G150:G161,H150:H161)","v":7662.102828414254}]
[]
["ANNUALIZED COSTS"]
[null,"Assumption","Value","Guidance"]
[null,"Discount rate",7.0000000000000007E-2,"User adjustable"]
[null,"Calculate households based on:","ground water","User adjustable"]
[null,"Household size (people per household)",2.6,"User adjustable"]
[]
[null,"Calculation","Value","Units"]
[null,"Useful Life (Reciprocal Weighted Average)",{"$f":"ROUND((direct_for_UL+IF(build_UL=0,0,addon_cost+indirect_cost))/(total_direct_depreciation+IF(build_UL=0,0,(addon_cost+indirect_cost)/build_UL)),1)","v":16.899999999999999},"years"]
[null,"Number of households served",{"$f":"IF(source_select=\"ground water\",(average_flow*1000/0.08558)^(1/1.0584),(average_flow*1000/0.14004)^(1/0.99703))/hh_size","v":24.672476399934606},"households"]
[null,"Annualized Capital Cost",{"$f":"-PMT(Discount_rate,useful_life,system_cost)","v":32431.87177057692},"/year"]
[null,"Annual O&M Cost",{"$f":"om_cost","v":7662.102828414254},"/year"]
[null,"Total Annualized Cost",{"$f":"C173+C174","v":40093.974598991175},"/year"]
[null,"Annualized cost per 1,000 gallons average flow",{"$f":"Annualized_Cost/(average_flow*365*1000)","v":15.692357964380108},"/kgal"]
[null,"Annualized cost per household",{"$f":"Annualized_Cost/households","v":1625.0486553955095},"/household/year"]
[]
["Internal use"]
[null,"Mobilization and Demobilization",{"$f":"C120","v":11666.045875417121}]
[null,"Architectural Fees for Treatment Building",{"$f":"C121","v":0}]
[null,"Installation, Transportation, and O&P",{"$f":"D122","v":0}]
[null,"Site Work",{"$f":"C123","v":0}]
[null,"Yard Piping",{"$f":"C124","v":0}]
[null,"Geotechnical",{"$f":"C125","v":0}]
[null,"Standby Power",{"$f":"C126","v":0}]
[null,"Electrical (including yard wiring)",{"$f":"C127","v":0}]
[null,"Instrumentation and Control",{"$f":"D128","v":0}]
[null,"Contingency",{"$f":"C129","v":0}]
[null,"Process Engineering",{"$f":"C130","v":42421.985001516805}]
[null,"Miscellaneous Allowance",{"$f":"D131","v":0.1}]
[null,"Legal, Fiscal, and Administrative",{"$f":"D132","v":0.02}]
[null,"Sales Tax",{"$f":"D133","v":0}]
[null,"Financing during Construction",{"$f":"D134","v":0}]
[null,"Construction Management and GC Overhead",{"$f":"C135","v":23992.715870822103}]
[null,"Indirect cost multiplier",{"$f":"SUM(cul_indir_mult_table)","v":0.12000000000000001}]
[null,"Indirect costs added",{"$f":"SUM(cul_indir_add_table)-addon_cost","v":78080.746747756028}]
[null,"Subtotal indirect and add-on cost",{"$f":"C136+addon_cost","v":103533.93774866611}]
[]
[null,"Validity Checks",{"$f":"INPUT!$C$28","v":true},{"$f":"INPUT!$C$35","v":true},{"$f":"INPUT!$C$42","v":true},{"$f":"INPUT!$C$43","v":true},{"$f":"INPUT!$C$52","v":true}]
[null,"Missing Cost?:",{"$f":"IF(COUNTIF(use_column,\"x\")>0,TRUE,FALSE)","v":false}]
[null,"Buildup Error?",{"$f":"IF(COUNTIF(use_column,\"ec\")+COUNTIF(use_column,\"ep\")>0,TRUE,FALSE)","v":false}]

{"sheet":"Critical Design Assumptions","index":4,"n_rows":57,"n_cols":7,"rows_kept":57,"cut":false,"hidden":false,"merged":[]}
["Default Critical Design Assumptions"]
["Users may change any of the cells in the Value column; cells in gold are most important and may vary based on contaminant treated and site-specific conditions"]
[]
["Assumption","Range Name","Value","Units","Guidance"]
["Cost estimating method","curve",1,"<-- enter 1 to use cost equations, leave blank to use lookup tables for component costs","Keeping this assumption with a value of 1 is strongly recommended; the cost equations method is more appropriate for national cost estimating and will be more accurate for nearly all user-specified designs"]
[]
["Minimum Pipe size","min_pipe_size",2,"in"]
["Minimum average flow as percentage of design","min_avg_flow",0.1,null,"The minimum ratio of average flow to design flow. If the ratio falls below this value, it will trigger a warning on the INPUT sheet. If this value is zero, no minimum is enforced."]
[]
["Minimum number of valves  (isolation PRV, street)","min_valves",2,"each"]
["Spacing for valves","valve_spacing",1000,"ft"]
["Valves per pump (booster and well)","valve_per_pump",2,"each"]
["Valves per PRV","valve_per_PRV",2,"each"]
[]
["Safety factor for pumps","pump_safety_factor",0.25]
["Number of redundant booster pumps","NRD_booster_pumps",0]
["Access space for pumps and PRVs","space_pumps",4,"feet","Provide a minimum of 3 ft (1 m) of clear space around each item of equipment (American Water Works Association and American Society of Civil Engineers. Water Treatment Plant Design. Third Edition. New York: McGraw Hill, 1998. Pp. 695)."]
["Number of redundant PRVs","NRD_PRVs",0]
["Minimum number of PRVs","min_num_PRVs",1,null,"If pressure reduction is required"]
["Include well pump soft start?","soft_start",1,null,"1 for yes, 0 for no"]
[]
["Well Design"]
["Thickness of gravel pack","gravel_thickness",3,"inches "]
["Thickness of grout seal","grout_thickness",4,"inches "]
["Depth of grout seal","seal_depth",30,"feet","typically 30-50 ft depending on local regulations"]
["Screen length to casing length ratio","screen_ration",0.5,null,"accounts for small sections of blank casing below and above well screen"]
["water pressure at top of well (for distribution)","supply_head",69,"feet","2.31 ft of water per 1 psi"]
["Footprint per well","well_footprint",200,"sqft"]
[]
["Interconnection Trenching "]
["Frost depth","frost",38,"inches"]
["Minimum trench depth to top of pipe","min_trench_depth",36,"inches"]
["Minimum trench width on each side of pipe","min_trench_width",12,"inches"]
["Asphalt thickness","asphalt_thickness",4,"inches"]
["Include asphalt patch","asphalt_patch_include",1,null,"1 for yes, 0 for no"]
[]
["Flow meters for interconnect line","fm_interconnect",1,"units"]
["Flow meters for each well","fm_well",1,"units"]
[]
["Non fire Buffer for buildings","non_fire_buffer",100,"feet","100 feet to account for sanitary control area around wellhead"]
["Fire Buffer for Buildings","fire_buffer",100,"feet","100 feet to account for sanitary control area around wellhead"]
[]
["Vault "]
["Vault concrete thickness","vault_concrete_thickness",6,"inches"]
["Interior hight of vault","vault_interior_height",8,"ft"]
["Minimum vault cover","vault_min_cover",1,"ft"]
[]
["I/O Port Table"]
["Full automation includes all inputs and outputs, semi-automated uses inputs only, manual control uses neither"]
["To change the degree of automation, the user may replace the numbers in each of the blue columns."]
["I/O Ports needed per….","Lookup name","Discrete Inputs","Discrete Outputs","Analog Inputs","Analog Outputs"]
["Magnetic flow meter","flow_mag",0,0,1,0]
["Orifice plate flow meter","flow_op",0,0,2,1,"Additional analog input because flow meters include pressure gauges"]
["Propeller flow meter","flow_prop",0,0,1,0]
["Venturi flow meter","flow_ven",0,0,2,1,"Additional analog input because flow meters include pressure gauges"]
["Drive Controllers (to operate pump motors, mixers, valves, etc)","switch",3,1,0,0]
["Motor/air operated valve","valve",0,0,1,1]

{"sheet":"O&M Assumptions","index":5,"n_rows":21,"n_cols":5,"rows_kept":21,"cut":false,"hidden":false,"merged":[]}
["Default O&M Assumptions"]
["Users may change any of the cells in the Value column"]
[]
["Assumption","Range Name","Value","Units","Guidance"]
["Labor"]
["Mangerial LOE as a percent of average technical labor ","Manager_percent",0.1,"fraction"]
["Administrative LOE as a percent of average technical labor ","Clerical_percent",0.1,"fraction"]
[]
["Operating LOE assumptions"]
["Minutes per valve per week","uloe_valve",5,"min/week","For manual and semiautomated systems"]
["Minutes per pump per day","uloe_pump",5,"min/day","For manual and semiautomated systems"]
["Minutes per 100 sf per day","uloe_fp",1,"min/100 sf/day"]
[]
["Maintenance LOE assumptions"]
["For valves","uloe_valve_maint",5,"min/year","Applied to main process valves only"]
["For pumps","uloe_pump_maint",30.25,"hours/year","Based on vendor recommended maintenance activities; applied to large, frequently operated pumps only"]
[]
["Pumping"]
["Pump efficiency for booster pumps","booster_pump_efficiency",0.75]
["Cost for parts & maintenance for booster pumps","booster_pump_maintenance",0.01,"of installed cost","For calculating cost of actual maintenance materials; not to be confused with depreciation.  Initial proposed estimate of 5% seems high  (Richard E. Hubel, Peter Keenan, American Water Works Service Company, Inc)"]
["Cost for parts & maintenance for well pumps","well_pump_maintenance",0.01,"of installed cost"]

{"sheet":"Indirect Assumptions","index":6,"n_rows":64,"n_cols":5,"rows_kept":64,"cut":false,"hidden":false,"merged":[]}
["Default Assumptions for Indirect and Add-On Costs"]
["Users may change any of the cells in the Value column"]
[]
["Assumption","Range Name","Value","Units","Guidance"]
["Mobilization and Demobilization"]
["Mobilization percentage for small systems","mob_pct_small",0.05,"of direct capital cost","Typically 2-5% of the estimated construction cost.  Enter 0% to exclude."]
["Mobilization percentage for medium systems","mob_pct_medium",0.04,"of direct capital cost"]
["Mobilization percentage for large systems","mob_pct_large",0.02,"of direct capital cost"]
[]
["Architectural Fees for Treatment Building"]
["Include architectural fee?","include_arch",1,"<--- enter 1 for yes, 0 for no","Must be added to building cost. Change for special considerations. Includes structural, mechanical, and electrical engineering for building only."]
["Include architectural fee for small systems?","include_arch_small",0,"<--- enter 1 for yes, 0 for no"]
[]
["Installation, Transportatation, and O&P"]
["Installation, Transportatation, and O&P percentage","inst_pct",0,"of direct capital cost","Included in line item unit costs.  Add a percentage for special considerations such as a remote site or high cost location."]
[]
["Sitework"]
["Include sitework costs?","include_sitework",1,"<--- enter 1 for yes, 0 for no"]
[]
["Electrical (including yard wiring)"]
["Electrical percentage","elect_pct",0.1,"of direct cost"]
[]
["Geotechnical"]
["Include geotechnical costs for low cost systems?","include_geo_low",1,"<--- enter 1 for yes, 0 for no"]
["Include geotechnical costs for medium cost systems?","include_geo_medium",1,"<--- enter 1 for yes, 0 for no"]
["Include geotechnical costs for high cost systems?","include_geo_high",1,"<--- enter 1 for yes, 0 for no"]
[]
["Instrumentation and Control"]
["Instrumentation and control percentage","i_c_pct",0,"of direct cost","Included as a direct cost line item."]
[]
["Contingency"]
["Include contingency costs for low cost systems?","include_conting_low",0,"<--- enter 1 for yes, 0 for no"]
["Include contingency costs for medium cost systems?","include_conting_medium",0,"<--- enter 1 for yes, 0 for no"]
["Include contingency costs for high cost systems?","include_conting_high",1,"<--- enter 1 for yes, 0 for no"]
["Technology complexity factor","complexity",0.5,null,"Technology-specific factor.  See Appendices for details.  Low complexity = 0.5; Average complexity = 1.0; High complexity = 1.5; Very high complexity = 2.0."]
[]
["Process Engineering"]
["Engineering percentage for small systems","eng_pct_small",0.2,"of direct capital cost","Enter 0% to exclude."]
["Engineering percentage for medium systems","eng_pct_medium",0.12,"of direct capital cost"]
["Engineering percentage for large systems","eng_pct_large",0.08,"of direct capital cost"]
[]
["Standby Power"]
["Include standby power costs?","include_standby",1,"<--- enter 1 for yes, 0 for no"]
["Include standby power costs for small systems?","include_standby_small",0,"<--- enter 1 for yes, 0 for no"]
["Design safety factor for standby power","std_safety_factor",0,null,"Default 0%.  Apply a percentage to increase standby power requirements."]
["Minimum standby power generator size","min_standby",10,"kW","Minimum size for full standby generators"]
[]
["Miscellaneous Allowance"]
["Miscellaneous allowance percentage","misc_pct",0.1,"of direct capital cost","Enter 0% to exclude."]
[]
["Legal, Fiscal, and Administrative"]
["Legal percentage","legal_pct",0.02,"of direct capital cost","Enter 0% to exclude.  Highly site-specific.  Can range from 2-5% of equipment, installation, construction, electrical, and standby power.  To estimate, add 5% to total estimated construction cost."]
[]
["Sales Tax"]
["Sales tax percentage","tax_pct",0,"of direct capital cost","May be exempt if constructed with public funds.  May be as high as 7.25% of equipment and construction, with national average 4.75%."]
[]
["Financing during Construction"]
["Financing percentage","finance_pct",0.05,"of direct capital cost","Enter 0% to exclude.  Typically assumed to be one year's interest on capital cost."]
["Financing percentage for small systems","finance_pct_small",0,"of direct capital cost","Small system construction assumed to take less than one year"]
[]
["Construction Management and General Contractor Overhead"]
["Builder's risk insurance percentage","br_ins_pct",3.3999999999999998E-3,null,"Enter 0% to exclude. 0.34% is national average rate. RSMeans Building Construction Cost Data 2009, reference section R01100-070"]
["Include performance bond cost?","include_bond",1,"<--- enter 1 for yes, 0 for no"]
["Include construction management cost?","include_cm",1,"<--- enter 1 for yes, 0 for no"]

{"sheet":"Well Design","index":7,"n_rows":31,"n_cols":5,"rows_kept":31,"cut":false,"hidden":false,"merged":[]}
["Well Design Module"]
[]
["Calculation","Range Name","Value","Units","Guidance"]
["From Inputs"]
["Design Type","design",1,"1 for interconnection, 2 for new well construction "]
["Design Flow","design_flow",{"$f":"IF(df_units=\"gpm\",design_flow_I*24*60/1000000,design_flow_I)","v":0.03},"MGD"]
["Average Flow","average_flow",{"$f":"IF(af_units=\"gpm\",average_flow_I*24*60/1000000,IF(af_units=\"fraction of design flow\",average_flow_I*design_flow,average_flow_I))","v":7.0000000000000001E-3},"MGD"]
["Design Flow Rate","design_flow_rate",{"$f":"design_flow*1000000/(24*60)","v":20.833333333333332},"gpm","Design flow expressed in gpm"]
["Average Flow Rate","average_flow_rate",{"$f":"average_flow*1000000/(24*60)","v":4.8611111111111107},"gpm","Average flow expressed in gpm"]
[]
["Number of wells","wells",{"$f":"IF(design=1,0,IF(wells_I=\"\",0,ROUNDUP(design_flow_rate/wells_I,0)))","v":0}]
["Well Depth","well_depth",{"$f":"well_depth_I","v":0},"feet"]
["Maxiumum well pump horsepower","well_pump_hp_max",{"$f":"MAX(Lookups!B7:B9)","v":250},"hp"]
[]
["Well Design"]
["Casing Diameter","casing_diam",{"$f":"IF(design=1,0,pump_diam+3)","v":0},"inches","Casing diameter 3 inches larger than largest pump componenent"]
["Casing Length","casing_len",{"$f":"well_depth","v":0},"feet"]
["Gravel Pack Length","gravel_len",{"$f":"IF(design=1,0,casing_len-seal_depth)","v":0},"feet","Casing length minus grout seal length"]
["Grout Seal Cross Sectional Area","grout_area",{"$f":"IF(design=1,0,(PI()*(casing_diam/2+grout_thickness)^2)-(PI()*(casing_diam/2)^2))","v":0},"square inches"]
["Grout Seal Volume per Well","grout_vol_well",{"$f":"grout_area/144*seal_depth","v":0},"cubic feet"]
["Total Grout Seal Volume","grout_vol",{"$f":"grout_vol_well*wells","v":0},"cubic feet"]
["Screen Diamater","screen_diam",{"$f":"casing_diam","v":0},"inches"]
["Screen Length","screen_len",{"$f":"casing_len*screen_ration","v":0},"feet"]
["Borehole Diameter","borehole_diam",{"$f":"IF(design=1,0,2*pump_diam+gravel_thickness)","v":0},"inches","2*pump diameter diameter plus gravel pack thickness"]
["Plug diameter","plug_diam",{"$f":"screen_diam","v":0},"inches"]
[]
["Well drilling unit cost, 8\" borehole diameter",null,{"$f":"VLOOKUP(well_depth,drill_8_cost_cl,3)","v":102.98891082045184},"per linear foot"]
["Well drilling unit cost, 10\" borehole diameter",null,{"$f":"VLOOKUP(well_depth,drill_10_cost_cl,3)","v":140.58187395957191},"per linear foot"]
["Well drilling unit cost, 12\" borehole diameter",null,{"$f":"VLOOKUP(well_depth,drill_12_cost_cl,3)","v":163.47600237812128},"per linear foot"]
["Well drilling unit cost, 15\" borehole diameter",null,{"$f":"VLOOKUP(well_depth,drill_15_cost_cl,3)","v":222.32680856123662},"per linear foot"]
["Well drilling unit cost","well_drill_cost",{"$f":"IF(design=1,\"na\",IF(borehole_diam<=8,C27,IF(borehole_diam<=10,C28,IF(borehole_diam<=12,C29,C30))))","v":"na"},"per linear foot"]

{"sheet":"Pumps Pipe Structure","index":8,"n_rows":106,"n_cols":5,"rows_kept":106,"cut":false,"hidden":false,"merged":[]}
["Pumps, Piping, and Structure Calculations"]
[]
["Calculation","Range Name","Value","Units","Guidance"]
["Interconnection Booster Pump Design"]
["Pressure at Supply Source (from inputs)","buyer_pressure",{"$f":"IF(buyer_pressure_I=\"correct pressure\",0,IF(buyer_pressure_I=\"pressure greater than required\",1,2))","v":0},null,"0 for correct pressure, 1 for excess pressure, 2 for insufficient pressure"]
["Elevation Difference from Supply Source","elevation_head",{"$f":"elevation_diff_I","v":0},"head in feet","From Inputs, Booster pump pressure must account for this difference"]
["Hazen-Williams friction loss","HW_friction_loss",{"$f":"IF(design=2,\"\",0.2083*(100/IF(OUTPUT!L55=1,130,140))^1.852*design_flow_rate^1.852/interconnect_pipe_diameter^4.8655)","v":1.2171552199254672},"head loss in feet per 100 ft pipe"]
["Total pressure needed to overcome friction losses","friction_head",{"$f":"IF(design=2,\"\",interconnect_pipe_length/100*HW_friction_loss)","v":121.71552199254671},"head loss in feet"]
["Total head needed for booster pump","booster_additional_head",{"$f":"IF(design=2,\"\",elevation_head+friction_head)","v":121.71552199254671},"head in feet"]
["Booster pump pressure rating","booster_psi",{"$f":"IF(design=2,0,0.434*booster_additional_head)","v":52.824536544765273},"psi","0.434 converts head in feet to psi"]
[]
["Maximum pump size, 25 psi",null,{"$f":"VLOOKUP(10^6,pump_cost_cl,1)-1","v":10000},"gpm"]
["Maximum pump size, 75 psi",null,{"$f":"VLOOKUP(10^6,dis75_pump_cost_cl,1)-1","v":10000},"gpm"]
["Maximum pump size, 150 psi",null,{"$f":"VLOOKUP(10^6,ro150_pump_cost_cl,1)-0.1","v":2000},"gpm"]
["Maximum pump size, 200 psi",null,{"$f":"VLOOKUP(10^6,ro200_pump_cost_cl,1)-0.1","v":2000},"gpm"]
["Maximum pump size, 250 psi",null,{"$f":"VLOOKUP(10^6,ro250_pump_cost_cl,1)-0.1","v":2000},"gpm"]
["Maximum pump size, 300 psi",null,{"$f":"VLOOKUP(10^6,ro300_pump_cost_cl,1)-0.1","v":300},"gpm"]
["Maximum pump size, 350 psi",null,{"$f":"VLOOKUP(10^6,ro350_pump_cost_cl,1)-0.1","v":350},"gpm"]
["Maximum pump size, 500 psi",null,{"$f":"VLOOKUP(10^6,ro500_pump_cost_cl,1)-0.1","v":185},"gpm"]
["Maximum pump size","max_pump_size",{"$f":"IF(booster_psi<=25,C12,IF(booster_psi<=75,C13,IF(booster_psi<=150,C14,IF(booster_psi<=200,C15,IF(booster_psi<=250,C16,IF(booster_psi<=300,C17,IF(booster_psi<=350,C18,C19)))))))","v":10000},"gpm","The largest pump size for which costs are available."]
["Booster pump rating","booster_pump_rating",{"$f":" IF( OR( design<> 1,buyer_pressure<>2),0,MAX(design_flow_rate*(1+pump_safety_factor),max_pump_size))","v":0},"gpm"]
["Number of booster pumps","booster_pumps",{"$f":" IF( OR( design<> 1,buyer_pressure<>2), 0, IF(booster_pump_rating=0,0,ROUNDUP(MIN(design_flow_rate/max_pump_size,(design_flow_rate)*(1+pump_safety_factor)/booster_pump_rating ),0)))","v":0},null,"Pumps from seller to buyer"]
["Total number of booster pumps","total_booster_pumps",{"$f":" IF( OR( design<> 1,buyer_pressure<>2), 0,(booster_pumps +NRD_booster_pumps))","v":0},"units"]
[]
["Pump length and width, 25 and 75 psi",null,{"$f":"VLOOKUP(booster_pump_rating,pump_dim_table_cl,4)","v":2.5},"feet"]
["Pump length and width, high pressure",null,{"$f":"SQRT(VLOOKUP(booster_pump_rating*60*24/10^6,inf_dim_table_cl,3))","v":6},"feet"]
["Pump length and width","booster_pump_L&W",{"$f":"IF(booster_psi<=75,C25,C26)","v":2.5},"feet"]
[]
["Booster pump cost, 25 psi",null,{"$f":"VLOOKUP(booster_pump_rating,pump_cost_cl,3)","v":5677.2511607538163}]
["Booster pump cost, 75 psi",null,{"$f":"VLOOKUP(booster_pump_rating,dis75_pump_cost_cl,3)","v":3644.2808754976463}," "]
["Booster pump cost, 150 psi",null,{"$f":"VLOOKUP(booster_pump_rating,ro150_pump_cost_cl,3)","v":3708.137061386989}]
["Booster pump cost, 200 psi",null,{"$f":"VLOOKUP(booster_pump_rating,ro200_pump_cost_cl,3)","v":4029.5929901266313}]
["Booster pump cost, 250 psi",null,{"$f":"VLOOKUP(booster_pump_rating,ro250_pump_cost_cl,3)","v":4362.5752270680932}]
["Booster pump cost, 300 psi",null,{"$f":"VLOOKUP(booster_pump_rating,ro300_pump_cost_cl,3)","v":4694.2767630982416}]
["Booster pump cost, 350 psi",null,{"$f":"VLOOKUP(booster_pump_rating,ro350_pump_cost_cl,3)","v":2993.505952874159}]
["Booster pump cost, 500 psi",null,{"$f":"VLOOKUP(booster_pump_rating,ro500_pump_cost_cl,3)","v":5173.2589039294226}]
["Booster pump cost","booster_pump_cost",{"$f":"IF(booster_psi<=25,C29,IF(booster_psi<=75,C30,IF(booster_psi<=150,C31,IF(booster_psi<=200,C32,IF(booster_psi<=250,C33,IF(booster_psi<=300,C34,IF(booster_psi<=350,C35,C36)))))))","v":3644.2808754976463},null,"This value used with the lookup table cost estimating method (i.e., when the critical design assumption curve <> 1). See the cost equations page when curve = 1"]
[]
["Booster pump size used in estimate, 25 psi",null,{"$f":"VLOOKUP(booster_pump_rating,pump_cost_cl,2)","v":10}]
["Booster pump size used in estimate, 75 psi",null,{"$f":"VLOOKUP(booster_pump_rating,dis75_pump_cost_cl,2)","v":10}," "]
["Booster pump size used in estimate, 150 psi",null,{"$f":"VLOOKUP(booster_pump_rating,ro150_pump_cost_cl,2)","v":6}]
["Booster pump size used in estimate, 200 psi",null,{"$f":"VLOOKUP(booster_pump_rating,ro200_pump_cost_cl,2)","v":9}]
["Booster pump size used in estimate, 250 psi",null,{"$f":"VLOOKUP(booster_pump_rating,ro250_pump_cost_cl,2)","v":5}]
["Booster pump size used in estimate, 300 psi",null,{"$f":"VLOOKUP(booster_pump_rating,ro300_pump_cost_cl,2)","v":6}]
["Booster pump size used in estimate, 350 psi",null,{"$f":"VLOOKUP(booster_pump_rating,ro350_pump_cost_cl,2)","v":4}]
["Booster pump size used in estimate, 500 psi",null,{"$f":"VLOOKUP(booster_pump_rating,ro500_pump_cost_cl,2)","v":15}]
["Booster pump size used in estimate","booster_pump_size_used",{"$f":"IF(booster_psi<=25,C39,IF(booster_psi<=75,C40,IF(booster_psi<=150,C41,IF(booster_psi<=200,C42,IF(booster_psi<=250,C43,IF(booster_psi<=300,C44,IF(booster_psi<=350,C45,C46)))))))","v":10},null,"This value used with the lookup table cost estimating method (i.e., when the critical design assumption curve <> 1). The cost equations method uses exact size"]
[]
["Well Pump Design"]
["Number of well pumps","well_pumps",{"$f":"IF(design=1,0,wells)","v":0}]
["Well pump rating","well_pump_rating",{"$f":"IF(design=1,0,design_flow_rate/well_pumps)","v":0},"gpm"]
["Well pump pressure requirements","well_pump_head",{"$f":"IF(design=1,0,well_depth+supply_head)","v":0},"feet"]
["Well pump horsepower","well_pump_hp",{"$f":"IF(design<>2,\"NA\",well_pump_head*well_pump_rating*(1+pump_safety_factor)/3960)","v":"NA"},"hp "]
["Well pump diameter","pump_diam",{"$f":"VLOOKUP(well_pump_hp,pump_hp_table,3)","v":{"$error":"#N/A"}},"inches"]
[]
["Interconnection piping"]
["Interconnect pipe length","interconnect_pipe_length",{"$f":"IF(design=1,pipe_length_I,0)","v":10000},"ft"]
["Interconnect pipe diameter","interconnect_pipe_diameter",{"$f":"IF( OR( design_flow_rate=0, design<>1 ),0, MAX( min_pipe_size, VLOOKUP((design_flow_rate),pipe_size_table_cl,2)))","v":2},"in"]
[]
["InterconnectionTrench Calculations"]
["Interconnect pipe trench depth to top of pipe","interconnect_trn_depth",{"$f":"IF(design=2,0,MAX(frost,min_trench_depth))","v":38},"inches"]
["Interconnect pipe trench cross-section area","interconnect_trench_area",{"$f":"IF(interconnect_pipe_diameter=0,0,(interconnect_pipe_diameter/12+2*min_trench_width/12)*interconnect_trn_depth/12)","v":6.8611111111111107},"square ft"]
["Interconnect pipe trench volume total","interconnect_trench_vol",{"$f":"interconnect_trench_area*interconnect_pipe_length/27","v":2541.1522633744858},"cy"]
["Asphalt patch area","asphalt_patch_area",{"$f":" IF( asphalt_patch_include=1,( interconnect_pipe_length * (interconnect_pipe_diameter/12 + 2*min_trench_width/12))/sqft_per_sqyd,0)","v":802.46913580246905},"square yards"]
[]
["Well piping"]
["Single well pipe length","well_pipe_length",{"$f":"IF( design=2,well_distance_I,0)","v":0},"ft","Pipe to connect new well to existing distribution system"]
["Well pipe diameter","well pipe diameter",{"$f":"IF( OR( design_flow_rate=0,design=1  ),0, MAX( min_pipe_size, VLOOKUP((design_flow_rate/wells),pipe_size_table_cl,2)))","v":0},"in"]
["Total well piping length","total_well_pipe_length",{"$f":"well_pipe_length*wells","v":0},"ft"]
[]
["Well to Distribution Trench Calculations"]
["Well pipe trench depth to top of pipe","well_trn_depth",{"$f":"MAX(frost,min_trench_depth)","v":38},"inches"]
["Well pipe trench cross-section area","well_trench_area",{"$f":"IF(well_pipe_diameter=0,0,(well_pipe_diameter/12+2*min_trench_width/12)*well_trn_depth/12)","v":0},"square ft"]
["Well pipe trench volume total","well_trench_vol",{"$f":"well_trench_area*total_well_pipe_length/27","v":0},"cy"]
[]
["Pump Vault Design"]
["Interior length","pump_vault_int_length",{"$f":" IF( OR( design<> 1,buyer_pressure<>2), 0, 2 * space_pumps + booster_pump_L_W)","v":0},"ft","."]
["Interior width","pump_vault_int_width",{"$f":" IF( OR( design<> 1,buyer_pressure<>2), 0, 2 * space_pumps + booster_pump_L_W + (  (total_booster_pumps-1) * space_pumps )  )","v":0},"ft"]
["Pump vault length concrete volume","pump_vault_length_conc_vol",{"$f":" IF( OR( design<> 1,buyer_pressure<>2), 0,( (pump_vault_int_length + 2 * vault_concrete_thickness / in_per_ft)* (vault_interior_height + 2 * vault_concrete_thickness / in_per_ft  ))  * vault_concrete_thickness / in_per_ft     /cuft_per_cuyd )","v":0},"cy"]
["Pump vault floor concrete volume","pump_vault_floor conc_vol",{"$f":" IF( OR( design<> 1,buyer_pressure<>2), 0, (pump_vault_int_width * pump_vault_int_length* vault_concrete_thickness / in_per_ft )/cuft_per_cuyd )","v":0},"cy"]
["Pump vault width concrete volume","pump_vault_width_conc_vol",{"$f":" IF( OR( design<> 1,buyer_pressure<>2), 0,  pump_vault_int_width * (vault_interior_height + 2 * vault_concrete_thickness / in_per_ft ) *  vault_concrete_thickness / in_per_ft  / cuft_per_cuyd )","v":0},"cy"]
["Pump vault total concrete volume","pump_vault_total_conc_vol",{"$f":" IF( OR( design<> 1,buyer_pressure<>2), 0, SUM(C79:C81) )","v":0},"cy"]
["Pump vault excavation depth","pump_vault_exc_depth",{"$f":" IF( OR( design<> 1,buyer_pressure<>2), 0, vault_concrete_thickness * 2 /in_per_ft + vault_interior_height + vault_min_cover )","v":0},"ft"]
["Pump vault excavation volume","pump_vault_exc_volume",{"$f":" IF( OR( design<> 1,buyer_pressure<>2), 0,( ( (pump_vault_int_width  + vault_concrete_thickness/ in_per_ft * 2  + pump_vault_exc_depth) * (pump_vault_int_length + pump_vault_exc_depth + vault_concrete_thickness/ in_per_ft ) * (pump_vault_exc_depth  ) )/cuft_per_cuyd ) )","v":0},"cy"]
["Pump vault backfill volume","pump_vault_backfill_volume",{"$f":" IF( OR( design<> 1,buyer_pressure<>2), 0, (pump_vault_exc_volume  -  (  ( (pump_vault_int_width + 2 * vault_concrete_thickness/ in_per_ft ) * (pump_vault_int_length + 2 * vault_concrete_thickness/ in_per_ft) *(pump_vault_exc_depth +vault_concrete_thickness/ in_per_ft) ) / cuft_per_cuyd )))","v":0},"cy"]
[]
["Vault for PRVs"]
["Interior length","prv_vault_int_length",{"$f":" IF( OR( design<> 1,buyer_pressure<>1), 0, 2 * space_pumps +PRV_length / in_per_ft)","v":0},"ft"]
["Interior width","prv_vault_int_width",{"$f":" IF( OR( design<> 1,buyer_pressure<>1), 0, 2 * space_pumps + PRV_width / in_per_ft + (  (num_PRVs-1) * space_pumps )  )","v":0},"ft"]
["PRV vault length concrete volume","prv_vault_length_conc_vol",{"$f":" IF( OR( design<> 1,buyer_pressure<>1), 0,( (prv_vault_int_length + 2 * vault_concrete_thickness / in_per_ft)* (vault_interior_height + 2 * vault_concrete_thickness / in_per_ft  ))  * vault_concrete_thickness / in_per_ft     /cuft_per_cuyd )","v":0},"cy"]
["PRV vault floor concrete volume","prv_vault_floor conc_vol",{"$f":" IF( OR( design<> 1,buyer_pressure<>1), 0, (prv_vault_int_width * prv_vault_int_length* vault_concrete_thickness / in_per_ft )/cuft_per_cuyd )","v":0},"cy"]
["PRV vault width concrete volume","prv_vault_width_conc_vol",{"$f":" IF( OR( design<> 1,buyer_pressure<>1), 0,  prv_vault_int_width * (vault_interior_height + 2 * vault_concrete_thickness / in_per_ft ) *  vault_concrete_thickness / in_per_ft  / cuft_per_cuyd )","v":0},"cy"]
["PRV vault total concrete volume","prv_vault_total_conc_vol",{"$f":" IF( OR( design<> 1,buyer_pressure<>1), 0, SUM(C90:C92) )","v":0},"cy"]
["PRV vault excavation depth","prv_vault_exc_depth",{"$f":" IF( OR( design<> 1,buyer_pressure<>1), 0, vault_concrete_thickness * 2 /in_per_ft + vault_interior_height + vault_min_cover )","v":0},"ft"]
["PRV vault excavation volume","prv_vault_exc_volume",{"$f":" IF( OR( design<> 1,buyer_pressure<>1), 0,( ( (prv_vault_int_width  + vault_concrete_thickness/ in_per_ft * 2  + prv_vault_exc_depth) * (prv_vault_int_length + prv_vault_exc_depth + vault_concrete_thickness/ in_per_ft ) * (prv_vault_exc_depth  ) )/cuft_per_cuyd ) )","v":0},"cy"]
["PRV vault backfill volume","prv_vault_backfill_volume",{"$f":" IF( OR( design<> 1,buyer_pressure<>1), 0, (prv_vault_exc_volume  -  (  ( (prv_vault_int_width + 2 * vault_concrete_thickness/ in_per_ft ) * (prv_vault_int_length + 2 * vault_concrete_thickness/ in_per_ft) *(prv_vault_exc_depth +vault_concrete_thickness/ in_per_ft) ) / cuft_per_cuyd )))","v":0},"cy"]
[]
["Footprint"]
["Well footprint","well_fp",{"$f":"IF(design=1,0,wells*well_footprint)","v":0},"square feet"]
["Exact building footprint required","fp_required",{"$f":" IF(design<>2,0,well_fp)","v":0},"square feet"]
["Footprint of building 1","build1_fp",{"$f":" IF(design<>2,0,well_fp)","v":0},"square feet"]
["Total footprint","total_fp",{"$f":"build1_fp","v":0},"square feet"]
[]
["Facility dimension assumed square","facil_length",{"$f":"ROUNDUP(total_fp^0.5,-1)","v":0},"feet"]
["Land acquisition required","land_required",{"$f":" IF(design<>2,0, ((build1_fp)^0.5+(2*non_fire_buffer))*((build1_fp)^0.5 + (non_fire_buffer+fire_buffer)) /43560)","v":0},"acres"]
["Land acquisition cost","land_cost",{"$f":"VLOOKUP(design_flow,land_cost_cl,3)","v":22071.006650033491},"/acre"]

{"sheet":"Instrumentation and Control","index":9,"n_rows":28,"n_cols":5,"rows_kept":28,"cut":false,"hidden":false,"merged":[]}
["Instrumentation and Control Calculations"]
[]
["Calculation","Range Name","Value","Units","Guidance"]
["From Inputs"]
["Component level","component_level",{"$f":"IF(component_level_I=\"high cost\",2,IF(component_level_I=\"mid cost\",1,\"\"))","v":""},"blank = low cost, 1 = mid cost, 2 = high cost"]
["Manual system controls","manual",{"$f":"IF(manual_I=\"manual\",1,IF(manual_I=\"semi-automated\",2,IF(manual_I=\"fully automated\",3,IF(component_level=\"\",1,IF(component_level=2,3,CHOOSE(ss_cat2,1,3,3))))))","v":1},"1 = fully manual system, 2 = semi-automated system, 3 = fully automated system.","Based on system size and component level (see cell comment), unless user overrides on input sheet"]
[]
["Valves and Instrumentation"]
["Valve size","valve_size",{"$f":"IF(  design_flow_rate=0, 0, IF( design=2, well_pipe_diameter,interconnect_pipe_diameter))","v":2},"in"]
["Number of valves (isolation, street)","num_valves",{"$f":"IF(design= 2, 0, min_valves+  num_PRVs* valve_per_PRV  + ROUND(interconnect_pipe_length/valve_spacing,0)-1)","v":11},"units"]
[]
["Number of MOVs for isolating booster pumps","total_booster_MOV",{"$f":" IF( manual =3,  total_booster_pumps * valve_per_pump, 0)","v":0},"units"]
["Number of MOVs for well pump","total_well_MOV",{"$f":" IF( manual =3,  well_pumps * valve_per_pump, 0)","v":0},"units"]
[]
["Number of manual valves for isolating booster pumps","total_booster_man",{"$f":" IF( manual <> 3,  total_booster_pumps * valve_per_pump, 0)","v":0},"units"]
["Number of manual valves for well pump","total_well_man",{"$f":" IF( manual <> 3,  well_pumps * valve_per_pump, 0)","v":0},"units"]
[]
["Pressure Reducing Valve size","PRV_size",{"$f":"IF( OR( design_flow_rate=0, design<>1, buyer_pressure<>1 ),0,VLOOKUP((interconnect_pipe_diameter),prv_table,2))","v":0},"in"]
["Number of Pressure Reducing Valves","num_PRVs",{"$f":"IF( OR( design_flow_rate=0, design<>1, buyer_pressure<>1 ),0,min_num_PRVs + NRD_PRVs)","v":0},"units"]
["Length of PRV","PRV_length",{"$f":"IF( OR( design_flow_rate=0, design<>1, buyer_pressure<>1 ),0, VLOOKUP((interconnect_pipe_diameter),prv_table,3))","v":0},"in"]
["Width of PRV","PRV_width",{"$f":"IF( OR( design_flow_rate=0, design<>1, buyer_pressure<>1 ),0,VLOOKUP((interconnect_pipe_diameter),prv_table,4) )","v":0},"in"]
[]
["Total flow meters for interconnect line","tot_fm_interconnect",{"$f":"IF( design=1,fm_interconnect,0)","v":1},"units"]
["Flow meters for each well","tot_fm_well",{"$f":"IF( design=2,fm_well*wells,0)","v":0},"units"]
["Size of flow meters interconnect","interconnect_meter_size",{"$f":"IF( design=1, interconnect_pipe_diameter,0)","v":2},"in"]
["Size of flow meters well","well_meter_size",{"$f":"IF( design=2,well_pipe_diameter,0)","v":0},"in"]
["Number of remote telemetry units (RTUs)","total_RTU",{"$f":"tot_fm_interconnect+tot_fm_well","v":1},"units"]
["Number of well pump soft start controls","tot_soft_start",{"$f":"soft_start*wells","v":0},"units"]

{"sheet":"O&M","index":10,"n_rows":49,"n_cols":5,"rows_kept":49,"cut":false,"hidden":false,"merged":[]}
["Operation and Maintenance Calculations"]
[]
["Calculation","Range Name","Value","Units","Guidance"]
["Labor and Materials"]
["Maintenance Materials"]
["Materials for booster pumps","pump_materials",{"$f":" IF( ISNUMBER(OUTPUT!J84), booster_pump_maintenance * OUTPUT!J84,0)","v":0},"/yr"]
["Materials for well pumps","well_pump_materials",{"$f":" IF( ISNUMBER(OUTPUT!J85), well_pump_maintenance * OUTPUT!J85,)","v":0}]
["Materials for PRVs"]
[]
["General Labor"]
["Number of booster pumps for operation","tot_pumps",{"$f":"booster_pumps","v":0},"units","Pumps requiring daily observation/adjustment"]
["Total number of booster pumps for maintenance","tot_pumps_maint",{"$f":"booster_pumps","v":0},"units","Large, frequently operated pumps require preventative maintenance"]
["Number of well pumps for operation","tot_well_pumps",{"$f":"well_pumps","v":0},"units","Pumps requiring daily observation/adjustment"]
["Total number of well pumps for maintenance","tot_well_pumps_maint",{"$f":"well_pumps","v":0},"units","Large, frequently operated pumps require preventative maintenance"]
["Number of valves","tot_valves",{"$f":"num_valves + total_booster_MOV + total_well_MOV+ total_booster_man","v":11},"units","Main process valves require frequent operation and preventative maintenance"]
["Number of PRVs","tot_PRVs",{"$f":"num_PRVs","v":0},"units"]
[]
["Verify/adjust booster pump operating parameters",null,{"$f":"IF(OR(manual=1,manual=2),tot_pumps*uloe_pump*365/60,0)","v":0},"hr/yr"]
["Preventative maintenance of booster pumps",null,{"$f":"tot_pumps_maint*uloe_pump_maint","v":0},"hr/yr"]
["Verify/adjust valve positions",null,{"$f":"IF(OR(manual=1,manual=2),tot_valves*uloe_valve*52/60,0)","v":47.666666666666664},"hr/yr"]
["Preventative maintenance and inspection of valves",null,{"$f":"tot_valves*uloe_valve_maint/60","v":0.91666666666666663},"hr/yr"]
["Visual inspection of facility",null,{"$f":"total_fp/100*uloe_fp*365/60","v":0},"hr/yr"]
["Preventative maintenance and inspection of PRVs",null,{"$f":"tot_PRVs*uloe_valve_maint/60","v":0},"hr/yr"]
["Verify/adjust well pump operating parameters",null,{"$f":"IF(OR(manual=1,manual=2),tot_well_pumps*uloe_pump*365/60,0)","v":0},"hr/yr"]
["Preventative maintenance of well pumps",null,{"$f":"tot_well_pumps_maint*uloe_pump_maint","v":0},"hr/yr"]
[]
["General Operator Labor","General_oper_labor",{"$f":"SUM(C18:C25)","v":48.583333333333329},"hr/yr"]
[]
["Annual Operator LOE","Operator_LOE",{"$f":"General_oper_labor","v":48.583333333333329},"hr/yr"]
["Annual Manager LOE","Manager_LOE",{"$f":"Operator_LOE*Manager_percent","v":4.8583333333333334},"hr/yr"]
["Annual Administrative LOE","Clerical_LOE",{"$f":"Operator_LOE*Clerical_percent","v":4.8583333333333334},"hr/yr"]
[]
[]
["Building Maintenance"]
["Cost for all buildings",null,{"$f":"IF(include_buildings=0,0,building_matl_rate_cl*total_fp)","v":0},"/yr"]
["Annual maintenance for all buildings","bldg_maint_cost",{"$f":"C35","v":0},"/yr"]
[]
["Energy"]
["Booster pumps"]
["Pump operating horsepower",null,{"$f":"IF(booster_pumps=0,0,average_flow_rate*booster_psi/booster_pumps/booster_pump_efficiency/14.7*33.9*8.34/550/60)","v":0},"hp"]
["Energy per pump",null,{"$f":"C40*0.7457/1000*24*day_per_year","v":0},"MWh/yr"]
["Energy for all active booster pumps","booster_pump_energy",{"$f":"C41*booster_pumps","v":0},"MWh/yr"]
[]
["Well pumps"]
["Pump operating horsepower",null,{"$f":"IF(design<>2,0,well_pump_head*average_flow_rate/well_pumps*(1+pump_safety_factor)/3960)","v":0},"hp"]
["Energy per pump",null,{"$f":"C45*0.7457/1000*24*day_per_year","v":0},"MWh/yr"]
["Energy for all active well pumps","well_pump_energy",{"$f":"C46*tot_well_pumps","v":0},"MWh/yr"]
[]
["System Size","ss_cat2",{"$f":"IF(design_flow<1,1,IF(design_flow<10,2,3))","v":1},"1 indicates small system, 2 indicates medium, 3 indicates large"]

{"sheet":"Indirect","index":11,"n_rows":37,"n_cols":5,"rows_kept":37,"cut":false,"hidden":false,"merged":[]}
["Indirect and Add-on Cost Calculations"]
[]
["Calculation","Range Name","Value","Units","Guidance"]
["Buildings & Land"]
["Include buildings in total capital cost?","include_buildings",{"$f":"IF(OR(design=1,include_buildings_I=\"no\"),0,1)","v":0},"1 = yes, 0 = no"]
["Include land costs?","include_land",{"$f":"IF(OR(design=1,include_land_I=\"no\"),0,1)","v":0},"1 = yes, 0 = no"]
[]
["Standby Power"]
["Booster pumps",null,{"$f":"booster_pump_energy*design_flow/average_flow/day_per_year/24*1000","v":0},"kW"]
["Well pumps",null,{"$f":"well_pump_energy*design_flow/average_flow/day_per_year/24*1000","v":0},"kW"]
["Total base standby power requirement","std_base",{"$f":"IF((C9+C10)=0,0,ROUNDUP(2*MAX(min_standby,(C9+C10)*(1+std_safety_factor)),0)/2)","v":0},"kW"]
["Total standby power cost","std_power_cost",{"$f":"VLOOKUP(std_base,std_gen_cost_cl,3)*std_base","v":0}]
[]
["Geotechnical & Sitework"]
["Total sitework cost","sitework_cost",{"$f":"total_fp*sitework_sf_cl","v":0}]
[]
["Construction Management and General Contractor Job Overhead"]
["Builder's risk insurance percentage",null,{"$f":"br_ins_pct*direct_cost","v":721.17374502578559}]
["Performance bond cost",null,{"$f":"include_bond*(VLOOKUP(direct_cost,performance_bond_table_cl,3)+VLOOKUP(direct_cost,performance_bond_table_cl,4)*(direct_cost-VLOOKUP(direct_cost,performance_bond_table_cl,5)))","v":4181.6488751137604},null,"Bracket determined from direct capital cost"]
["Construction management percentage",null,{"$f":"VLOOKUP(direct_cost,construction_mgt_table_cl,3)","v":0.09},null,"Looked up from direct capital cost"]
["Construction management fee",null,{"$f":"include_cm*C20*direct_cost","v":19089.893250682559}]
["Total construction management/job overhead cost","cm_cost",{"$f":"SUM(C18:C19,C21)","v":23992.715870822103}]
[]
["Borings, initial field stake out & determination of elevations",null,{"$f":"wells*VLOOKUP(0,stake_out_cost_cl,3)","v":0}]
["Borings, drawings showing boring details",null,{"$f":"wells*VLOOKUP(0,bore_draw_cost_cl,3)","v":0}]
["Borings, report and recommendations from P.E.",null,{"$f":"wells*VLOOKUP(0,bore_report_cost_cl,3)","v":0}]
["Borings, mobilization and demobilization, minimum",null,{"$f":"wells*VLOOKUP(0,bore_mob_cost_cl,3)","v":0}]
["Borings, drill rig and crew with truck mounted auger",null,{"$f":"wells*VLOOKUP(0,bore_rig_cost_cl,3)","v":0}]
["Borings, cased borings in earth, w/samples, 2.5\" dia",null,{"$f":"wells*well_depth*VLOOKUP(0,bore_cost_cl,3)","v":0}]
["Total geotechnical cost","geotech_cost",{"$f":"SUM(C24:C29)","v":0}]
[]
[]
["Permits"]
["Building #1 value",null,{"$f":"IF(OUTPUT!C103>0,SUMPRODUCT(OUTPUT!J103:J103,OUTPUT!L103:L103),0)","v":0},null,"Determined using Use? Column of output sheet"]
["Building permit cost",null,{"$f":"BPCost_UBC97(C34)","v":0},null,"Uses custom function to apply formulae developed in SAIC Permit Report 2004"]
[]
["Total permit cost","permit_cost",{"$f":"C35","v":0}]

{"sheet":"Standard Inputs","index":12,"n_rows":21,"n_cols":20,"rows_kept":21,"cut":false,"hidden":false,"merged":[[5,0,5,1],[6,18,6,19],[5,2,5,5],[5,13,5,16],[5,6,5,9],[5,11,5,12]]}
["Standard Designs"]
["Default inputs represent typical options used to generate national average compliance costs."]
[]
[]
[]
["Design Indices",null,"System Size",null,null,null,"Interconnection",null,null,null,null,"Well Inputs",null,"Optional"]
["Design Type","Design #","Design flow","Design Flow Units","Average Flow","Average flow units","Distance to Water Supply","Pressure at Supply Source","Elevation Difference from Supply Source","Cost of Purchased Water","Flow per Well","Well Depth","Distance to Distribution System","Component level","System Automation","Include Buildings?","Include Land?",null,"Internal Use"]
[null,null,"design_flow_I","df_units","average_flow_I","af_units","pipe_length_I","buyer_pressure_I","elevation_diff_I","water_cost_I","wells_I","well_depth_I","well_distance_I","component_level_I","manual_I","include_buildings_I","include_land_I"]
[1,1,0.03,"MGD",7.0000000000000001E-3,"MGD",10000,"correct pressure",0,2,null,null,null,null,null,null,null,null,{"$f":"AND(C9:Q9=inp_used,A9=inp_used_usersel)","v":true},{"$f":"AND(C9:F9=inp_used_minimal,A9=inp_used_usersel)","v":true}]
[1,2,0.124,"MGD",3.5000000000000003E-2,"MGD",10000,"correct pressure",0,2,null,null,null,null,null,null,null,null,{"$f":"AND(C10:Q10=inp_used,A10=inp_used_usersel)","v":false},{"$f":"AND(C10:F10=inp_used_minimal,A10=inp_used_usersel)","v":false}]
[1,3,0.30499999999999999,"MGD",9.4E-2,"MGD",10000,"correct pressure",0,2,null,null,null,null,null,null,null,null,{"$f":"AND(C11:Q11=inp_used,A11=inp_used_usersel)","v":false},{"$f":"AND(C11:F11=inp_used_minimal,A11=inp_used_usersel)","v":false}]
[1,4,0.74,"MGD",0.251,"MGD",10000,"correct pressure",0,2,null,null,null,null,null,null,null,null,{"$f":"AND(C12:Q12=inp_used,A12=inp_used_usersel)","v":false},{"$f":"AND(C12:F12=inp_used_minimal,A12=inp_used_usersel)","v":false}]
[1,5,2.1520000000000001,"MGD",0.81899999999999995,"MGD",10000,"correct pressure",0,2,null,null,null,null,null,null,null,null,{"$f":"AND(C13:Q13=inp_used,A13=inp_used_usersel)","v":false},{"$f":"AND(C13:F13=inp_used_minimal,A13=inp_used_usersel)","v":false}]
[2,1,0.03,"MGD",7.0000000000000001E-3,"MGD",null,null,null,null,500,250,500,null,null,null,null,null,{"$f":"AND(C14:Q14=inp_used,A14=inp_used_usersel)","v":false},{"$f":"AND(C14:F14=inp_used_minimal,A14=inp_used_usersel)","v":false}]
[2,2,0.124,"MGD",3.5000000000000003E-2,"MGD",null,null,null,null,500,250,500,null,null,null,null,null,{"$f":"AND(C15:Q15=inp_used,A15=inp_used_usersel)","v":false},{"$f":"AND(C15:F15=inp_used_minimal,A15=inp_used_usersel)","v":false}]
[2,3,0.30499999999999999,"MGD",9.4E-2,"MGD",null,null,null,null,500,250,500,null,null,null,null,null,{"$f":"AND(C16:Q16=inp_used,A16=inp_used_usersel)","v":false},{"$f":"AND(C16:F16=inp_used_minimal,A16=inp_used_usersel)","v":false}]
[2,4,0.74,"MGD",0.251,"MGD",null,null,null,null,500,250,500,null,null,null,null,null,{"$f":"AND(C17:Q17=inp_used,A17=inp_used_usersel)","v":false},{"$f":"AND(C17:F17=inp_used_minimal,A17=inp_used_usersel)","v":false}]
[2,5,2.1520000000000001,"MGD",0.81899999999999995,"MGD",null,null,null,null,500,250,500,null,null,null,null,null,{"$f":"AND(C18:Q18=inp_used,A18=inp_used_usersel)","v":false},{"$f":"AND(C18:F18=inp_used_minimal,A18=inp_used_usersel)","v":false}]
[]
[{"$f":"IF(LEN(design)=0,\"\",design)","v":1},null,{"$f":"IF(LEN(design_flow_I)=0,\"\",design_flow_I)","v":0.03},{"$f":"IF(LEN(df_units)=0,\"\",df_units)","v":"MGD"},{"$f":"IF(LEN(average_flow_I)=0,\"\",average_flow_I)","v":7.0000000000000001E-3},{"$f":"IF(LEN(af_units)=0,\"\",af_units)","v":"MGD"},{"$f":"IF(LEN(pipe_length_I)=0,\"\",pipe_length_I)","v":10000},{"$f":"IF(LEN(buyer_pressure_I)=0,\"\",buyer_pressure_I)","v":"correct pressure"},{"$f":"IF(LEN(elevation_diff_I)=0,\"\",elevation_diff_I)","v":0},{"$f":"IF(LEN(water_cost_I)=0,\"\",water_cost_I)","v":2},{"$f":"IF(LEN(wells_I)=0,\"\",wells_I)","v":""},{"$f":"IF(LEN(well_depth_I)=0,\"\",well_depth_I)","v":""},{"$f":"IF(LEN(well_distance_I)=0,\"\",well_distance_I)","v":""},{"$f":"IF(LEN(component_level_I)=0,\"\",component_level_I)","v":""},{"$f":"IF(LEN(manual_I)=0,\"\",manual_I)","v":""},{"$f":"IF(LEN(include_buildings_I)=0,\"\",include_buildings_I)","v":""},{"$f":"IF(LEN(include_land_I)=0,\"\",include_land_I)","v":""},"<--current inputs"]
[null,null,0.03,"MGD",7.0000000000000001E-3,"MGD",10000,"correct pressure",0,2,null,null,null,null,null,null,null,"<--inputs used at last \"Generate Results\"",{"$f":"AND(C21:Q21=inp_used)","v":true}]

{"sheet":"Cost Equations","index":13,"n_rows":80,"n_cols":17,"rows_kept":80,"cut":false,"hidden":false,"merged":[]}
["Cost Equations"]
["This sheet is used internally to calculate component costs using the cost equations method; see model documentation for more details on the development of cost equations"]
[]
["Component","Equation Name","Result","Variable","Equation Lookup Name",2,3,4,5,6,7,8,9,10,11,16,17]
["Well Items"]
["Well Casing"]
["PVC","casing_pvc_eq",{"$f":"IF(D7=0,0,IF(OR(D7>P7,D7<Q7),\"contact vendor\",F7*D7^G7+H7*LN(D7)+I7+J7*EXP(K7*D7)+L7*D7^3+M7*D7^2+N7*D7+O7))","v":0},{"$f":"casing_diam","v":0},"casing_pvc_eq",{"$f":"VLOOKUP($E7,eq_table_cl,F$4,FALSE)","v":0},0,0,0,0,0,5.7858936E-2,-1.0871604269999999,9.6162756930000004,5.8240852939999996,12.00001,0]
["Stainless Steel","casing_ss_eq",0,{"$f":"casing_diam","v":0},"casing_ss_eq",11.795355226,1.7609326249999999,0,0,0,0,0,0,0,0,12.00001,0]
["Well screen"]
["PVC Schedule 40","screen_pvc40_eq",{"$f":"IF(D10=0,0,IF(OR(D10>P10,D10<Q10),\"contact vendor\",F10*D10^G10+H10*LN(D10)+I10+J10*EXP(K10*D10)+L10*D10^3+M10*D10^2+N10*D10+O10))","v":0},{"$f":"screen_diam","v":0},"screen_pvc40_eq",{"$f":"VLOOKUP($E10,eq_table_cl,F$4,FALSE)","v":0},0,0,0,0,0,-3.2894459000000001E-2,0.38952086899999999,7.2372941969999998,13.241314249,12.00001,0]
["PVC Schedule 80","screen_pvc80_eq",0,{"$f":"screen_diam","v":0},"screen_pvc80_eq",0,0,0,0,0,0,0,-7.4109711999999994E-2,10.577377007000001,1.7324157330000001,12.00001,0]
["Stainless Steel","screen_ss_eq",0,{"$f":"screen_diam","v":0},"screen_ss_eq",10.810238361,1.766857246,0,0,0,0,0,0,0,0,12.00001,0]
["Plugs"]
["PVC","plug_pvc_eq",{"$f":"IF(D14=0,0,IF(OR(D14>P14,D14<Q14),\"contact vendor\",F14*D14^G14+H14*LN(D14)+I14+J14*EXP(K14*D14)+L14*D14^3+M14*D14^2+N14*D14+O14))","v":0},{"$f":"plug_diam","v":0},"plug_pvc_eq",{"$f":"VLOOKUP($E14,eq_table_cl,F$4,FALSE)","v":0},0,0,0,0,0,-0.21482722200000001,4.0777840879999996,5.2754704280000002,12.030311384000001,12.00001,0]
["Stainless Steel","plug_ss_eq",{"$f":"IF(D15=0,0,IF(OR(D15>P15,D15<Q15),\"contact vendor\",F15*D15^G15+H15*LN(D15)+I15+J15*EXP(K15*D15)+L15*D15^3+M15*D15^2+N15*D15+O15))","v":0},{"$f":"plug_diam","v":0},"plug_ss_eq",0,0,0,0,0,0,0.35595913099999998,2.251821836,3.7705504369999998,102.65834565999999,10.00001,0]
["Well Drilling","no equation"]
["Gravel Pack","gravel_pack_eq",{"$f":"IF(D17=0,0,IF(OR(D17>P17,D17<Q17),\"contact vendor\",F17*D17^G17+H17*LN(D17)+I17+J17*EXP(K17*D17)+L17*D17^3+M17*D17^2+N17*D17+O17))","v":0},{"$f":"casing_diam","v":0},"gravel_pack_eq",{"$f":"VLOOKUP($E17,eq_table_cl,F$4,FALSE)","v":0},0,0,0,0,0,-2.2301539999999998E-3,0.11827512900000001,7.4562785790000001,-19.724788555,36.000999999999998,0]
["Well Development","no equation"]
["Grout Seal","no equation"]
["Vaults","no equations"]
["Piping"]
["Interconnect "]
["Ductile Iron","di_pipe_eq_interconnect",{"$f":"IF(D23=0,0,IF(OR(D23>P23,D23<Q23),\"contact vendor\",F23*D23^G23+H23*LN(D23)+I23+J23*EXP(K23*D23)+L23*D23^3+M23*D23^2+N23*D23+O23))","v":"contact vendor"},{"$f":"interconnect_pipe_diameter","v":2},"di_pipe_eq",{"$f":"VLOOKUP($E23,eq_table_cl,F$4,FALSE)","v":0},0,0,0,0,0,0,0.100985408,4.4966242760000004,12.030020025000001,48.1,4]
["PVC","pvc_pipe_eq_interconnect",3.3033545530000001,{"$f":"interconnect_pipe_diameter","v":2},"pvc_pipe_eq",0,0,0,0,0,0,0,0.110356803,0.235228044,2.3914712530000002,48.1,0]
["Excavation","no equation"]
["Backfill and Compaction","no equation"]
["Asphalt Patch"]
["Well"]
["Ductile Iron","di_pipe_eq_well",{"$f":"IF(D29=0,0,IF(OR(D29>P29,D29<Q29),\"contact vendor\",F29*D29^G29+H29*LN(D29)+I29+J29*EXP(K29*D29)+L29*D29^3+M29*D29^2+N29*D29+O29))","v":0},{"$f":"well_pipe_diameter","v":0},"di_pipe_eq",{"$f":"VLOOKUP($E29,eq_table_cl,F$4,FALSE)","v":0},0,0,0,0,0,0,0.100985408,4.4966242760000004,12.030020025000001,48.1,4]
["PVC","pvc_pipe_eq_well",0,{"$f":"well_pipe_diameter","v":0},"pvc_pipe_eq",0,0,0,0,0,0,0,0.110356803,0.235228044,2.3914712530000002,48.1,0]
["Excavation","no equation"]
["Backfill and Compaction","no equation"]
["Valves"]
["Isolation and Street"]
["Ductile Iron","street_valve_eq",{"$f":"IF(D35=0,0,IF(OR(D35>P35,D35<Q35),\"contact vendor\",F35*D35^G35+H35*LN(D35)+I35+J35*EXP(K35*D35)+L35*D35^3+M35*D35^2+N35*D35+O35))","v":403.40299203700005},{"$f":"valve_size","v":2},"street_valve_eq",{"$f":"VLOOKUP($E35,eq_table_cl,F$4,FALSE)","v":0},0,0,0,0,0,1.299292903,1.6727129569999999,183.07380124400001,20.170194497000001,12.1,0]
["Motor/Air Operated (on/off)"]
["Booster Pump - Polypropylene/PVC","pp_mov_eq_booster_pump",292.208313718,{"$f":"valve_size","v":2},{"$f":"IF(D37>12,\"pp_man_eq_large\",\"pp_man_eq_small\")","v":"pp_man_eq_small"},{"$f":"VLOOKUP($E37,eq_table_cl,F$4,FALSE)","v":0},0,0,0,0,0,2.7689868610000001,-29.723792209999999,180.93906510599999,27.073457458,12,0]
["Booster Pump - Stainless Steel","ss_mov_eq_booster_pump",1294.3767712880001,2,"ss_mov_eq",0,0,0,0,0,0,0,76.908725779999997,393.08666071099998,200.56854674600001,48.1,0]
["Booster Pump - Cast Iron","ci_mov_eq_booster_pump",1285.1749237870001,2,"ci_mov_eq",0,0,0,0,0,0,-6.5106489000000003E-2,28.845623929999999,71.319704893999997,1027.6738701910001,48.1,1]
["Well Pump - Polypropylene/PVC","pp_mov_eq_well_pump",292.208313718,2,{"$f":"IF(D40>12,\"pp_man_eq_large\",\"pp_man_eq_small\")","v":"pp_man_eq_small"},0,0,0,0,0,0,2.7689868610000001,-29.723792209999999,180.93906510599999,27.073457458,12,0]
["Well Pump - Stainless Steel","ss_mov_eq_well_pump",1294.3767712880001,2,"ss_mov_eq",0,0,0,0,0,0,0,76.908725779999997,393.08666071099998,200.56854674600001,48.1,0]
["Well Pump - Cast Iron","ci_mov_eq_well_pump",1285.1749237870001,2,"ci_mov_eq",0,0,0,0,0,0,-6.5106489000000003E-2,28.845623929999999,71.319704893999997,1027.6738701910001,48.1,1]
["Manual"]
["Booster Pump - Polypropylene/PVC","pp_man_eq_booster_pump",{"$f":"IF(D44=0,0,IF(OR(D44>P44,D44<Q44),\"contact vendor\",F44*D44^G44+H44*LN(D44)+I44+J44*EXP(K44*D44)+L44*D44^3+M44*D44^2+N44*D44+O44))","v":292.208313718},{"$f":"valve_size","v":2},{"$f":"IF(D44>12,\"pp_man_eq_large\",\"pp_man_eq_small\")","v":"pp_man_eq_small"},{"$f":"VLOOKUP($E44,eq_table_cl,F$4,FALSE)","v":0},0,0,0,0,0,2.7689868610000001,-29.723792209999999,180.93906510599999,27.073457458,12,0]
["Booster Pump - Stainless Steel","ss_man_eq_booster_pump",717.48666896464829,2,"ss_man_eq",223.248424414,1.684302033,0,0,0,0,0,0,0,0,12.1,1]
["Booster Pump - Cast Iron","ci_man_eq_booster_pump",326.00185864299999,2,{"$f":"IF(D46>12,\"ci_bfv_eq_large\",\"ci_bfv_eq_small\")","v":"ci_bfv_eq_small"},0,0,0,0,0,0,-0.46051790100000001,13.155724568,123.18694075800001,30.689222062999999,12,1]
["Well Pump - Polypropylene/PVC","pp_man_eq_well_pump",292.208313718,2,{"$f":"IF(D47>12,\"pp_man_eq_large\",\"pp_man_eq_small\")","v":"pp_man_eq_small"},0,0,0,0,0,0,2.7689868610000001,-29.723792209999999,180.93906510599999,27.073457458,12,0]
["Well Pump - Stainless Steel","ss_man_eq_well_pump",717.48666896464829,2,"ss_man_eq",223.248424414,1.684302033,0,0,0,0,0,0,0,0,12.1,1]
["Well Pump - Cast Iron","ci_man_eq_well_pump",326.00185864299999,2,{"$f":"IF(D49>12,\"ci_bfv_eq_large\",\"ci_bfv_eq_small\")","v":"ci_bfv_eq_small"},0,0,0,0,0,0,-0.46051790100000001,13.155724568,123.18694075800001,30.689222062999999,12,1]
["Control"]
["Pressure Reducing","prv_eq",{"$f":"IF(D51=0,0,IF(OR(D51>P51,D51<Q51),\"contact vendor\",F51*D51^G51+H51*LN(D51)+I51+J51*EXP(K51*D51)+L51*D51^3+M51*D51^2+N51*D51+O51))","v":0},{"$f":"PRV_size","v":0},"prv_eq",{"$f":"VLOOKUP($E51,eq_table_cl,F$4,FALSE)","v":0},0,0,0,0,0,0,73.126761622000004,1049.9649015120001,1283.8289016000001,12.1,0]
["Pumps"]
["Booster pump cost, 25 psi",null,{"$f":"IF(D53=0,0,IF(OR(D53>P53,D53<Q53),\"contact vendor\",F53*D53^G53+H53*LN(D53)+I53+J53*EXP(K53*D53)+L53*D53^3+M53*D53^2+N53*D53+O53))","v":0},{"$f":"booster_pump_rating","v":0},"pump_eq",{"$f":"VLOOKUP($E53,eq_table_cl,F$4,FALSE)","v":0},0,0,0,0,0,0,-4.77083E-4,12.333908155,6801.7707008589996,10001,0]
["Booster pump cost, 75 psi",null,0,0,"dis75_pump_eq",0,0,0,0,0,0,0,-8.0623800000000003E-4,19.079563084,5044.1302872590004,10001,0]
["Booster pump cost, 150 psi",null,0,0,"ro150_pump_eq",1208.6959950099999,0.44279105600000002,0,0,0,0,0,0,0,0,2000.1,0]
["Booster pump cost, 200 psi",null,0,0,"ro200_pump_eq",0,0,0,0,0,0,2.989E-5,-6.9500853000000001E-2,67.104526875999994,3035.2637540720002,2000.1,0]
["Booster pump cost, 250 psi",null,0,0,"ro250_pump_eq",0,0,0,0,0,0,3.6329999999999999E-5,-7.8809054000000003E-2,85.979285004000005,2620.7335939129998,2000.1,0]
["Booster pump cost, 300 psi",null,0,0,"ro300_pump_eq",0,0,0,0,0,0,0,-0.22441593500000001,160.595970026,2167.300141274,300.10000000000002,0]
["Booster pump cost, 350 psi",null,0,0,"ro350_pump_eq",0,0,0,0,0,0,4.50507E-4,-0.54192908200000001,227.03411522299999,1908.630602815,350.1,0]
["Booster pump cost, 500 psi",null,0,0,"ro500_pump_eq",1221.082668214,0.62384547700000004,0,0,0,0,0,0,0,0,185.1,0]
["Interconnect Booster Pump","int_booster_pump_eq",{"$f":"IF(booster_psi<=25,C53,IF(booster_psi<=75,C54,IF(booster_psi<=150,C55,IF(booster_psi<=200,C56,IF(booster_psi<=250,C57,IF(booster_psi<=300,C58,IF(booster_psi<=350,C59,C60)))))))","v":0}]
["Well Pump","no equation"]
["Instrumentation"]
["Flow meters Interconnect"]
["Orifice Plate","op_fm_eq_innterconnect",{"$f":"IF(D65=0,0,IF(OR(D65>P65,D65<Q65),\"contact vendor\",F65*D65^G65+H65*LN(D65)+I65+J65*EXP(K65*D65)+L65*D65^3+M65*D65^2+N65*D65+O65))","v":3282.38600159},{"$f":"OUTPUT!G88","v":2},"op_fm_eq",{"$f":"VLOOKUP($E65,eq_table_cl,F$4,FALSE)","v":0},0,0,0,0,0,0.100507337,-4.5180455940000002,372.09362808600002,2555.4668690980002,60.1,0]
["Propeller","prop_fm_eq_innterconnect",{"$f":"IF(D66=0,0,IF(OR(D66>P66,D66<Q66),\"contact vendor\",F66*D66^G66+H66*LN(D66)+I66+J66*EXP(K66*D66)+L66*D66^3+M66*D66^2+N66*D66+O66))","v":2625.33752516},{"$f":"OUTPUT!G89","v":2},"prop_fm_eq",0,0,0,0,0,0,8.915703422,-172.289864142,1293.6972747970001,655.77680475800003,14.1,0]
["Venturi","ven_fm_eq_innterconnect",{"$f":"IF(D67=0,0,IF(OR(D67>P67,D67<Q67),\"contact vendor\",F67*D67^G67+H67*LN(D67)+I67+J67*EXP(K67*D67)+L67*D67^3+M67*D67^2+N67*D67+O67))","v":5578.7290100619994},{"$f":"OUTPUT!G90","v":2},"ven_fm_eq",0,0,0,0,0,0,8.413593852,-263.19800276199999,3397.39818913,-230.584107966,24.1,0]
["Magnetic","mag_fm_eq_innterconnect",{"$f":"IF(D68=0,0,IF(OR(D68>P68,D68<Q68),\"contact vendor\",F68*D68^G68+H68*LN(D68)+I68+J68*EXP(K68*D68)+L68*D68^3+M68*D68^2+N68*D68+O68))","v":4230.640784837},{"$f":"OUTPUT!G91","v":2},"mag_fm_eq",0,0,0,0,0,0,0,57.575432208000002,189.85395229299999,3620.6311514190002,20.100000000000001,0]
["Flow meters well"]
["Orifice Plate","op_fm_eq_well",{"$f":"IF(D70=0,0,IF(OR(D70>P70,D70<Q70),\"contact vendor\",F70*D70^G70+H70*LN(D70)+I70+J70*EXP(K70*D70)+L70*D70^3+M70*D70^2+N70*D70+O70))","v":"contact vendor"},{"$f":"OUTPUT!G93","v":"NA"},"op_fm_eq",{"$f":"VLOOKUP($E70,eq_table_cl,F$4,FALSE)","v":0},0,0,0,0,0,0.100507337,-4.5180455940000002,372.09362808600002,2555.4668690980002,60.1,0]
["Propeller","prop_fm_eq_well",{"$f":"IF(D71=0,0,IF(OR(D71>P71,D71<Q71),\"contact vendor\",F71*D71^G71+H71*LN(D71)+I71+J71*EXP(K71*D71)+L71*D71^3+M71*D71^2+N71*D71+O71))","v":"contact vendor"},{"$f":"OUTPUT!G94","v":"NA"},"prop_fm_eq",0,0,0,0,0,0,8.915703422,-172.289864142,1293.6972747970001,655.77680475800003,14.1,0]
["Venturi","ven_fm_eq_well",{"$f":"IF(D72=0,0,IF(OR(D72>P72,D72<Q72),\"contact vendor\",F72*D72^G72+H72*LN(D72)+I72+J72*EXP(K72*D72)+L72*D72^3+M72*D72^2+N72*D72+O72))","v":"contact vendor"},{"$f":"OUTPUT!G95","v":"NA"},"ven_fm_eq",0,0,0,0,0,0,8.413593852,-263.19800276199999,3397.39818913,-230.584107966,24.1,0]
["Magnetic","mag_fm_eq_well",{"$f":"IF(D73=0,0,IF(OR(D73>P73,D73<Q73),\"contact vendor\",F73*D73^G73+H73*LN(D73)+I73+J73*EXP(K73*D73)+L73*D73^3+M73*D73^2+N73*D73+O73))","v":"contact vendor"},{"$f":"OUTPUT!G96","v":"NA"},"mag_fm_eq",0,0,0,0,0,0,0,57.575432208000002,189.85395229299999,3620.6311514190002,20.100000000000001,0]
["System Controls "]
["RTU Units"]
["Well Pump - Soft Start Control"]
["Building Structures"]
["Building 1"]
["Small Low Cost Shed","no equation"]
["Low Quality","bldg_lo_eq_1",{"$f":"IF(LEN($E80)=0,\"\",IF(OR(D80>P80,D80<Q80),\"contact vendor\",F80*D80^G80+H80*LN(D80)+I80+J80*EXP(K80*D80)+L80*D80^3+M80*D80^2+N80*D80+O80))","v":{"$error":"#DIV/0!"}},{"$f":"build1_fp","v":0},"bldg_lo_eq",{"$f":"VLOOKUP($E80,eq_table_cl,F$4,FALSE)","v":155.424184946},-9.6925793999999996E-2,0,0,0,0,0,0,0,0,200000.1,0]

{"sheet":"Cost Coefficients","index":14,"n_rows":37,"n_cols":17,"rows_kept":37,"cut":false,"hidden":false,"merged":[]}
["Coefficients for Component Cost Equations"]
["This sheet is used internally to calculate component costs using the cost equations method; see model documentation for more details on the development of cost equations"]
[]
[null,"Power: C1*x^C2",null,"Logarithmic: C3*Ln(x) + C4",null,"Exponential: C5*e^(C6*x)",null,"Polynomial: C7*x^3 + C8*x^2 + C9*x + C10",null,null,null,"NOTES"]
["Equation Lookup Name","C1","C2","C3","C4","C5","C6","C7","C8","C9","C10","Pct deviation of fit equation","Modified by","Last modified","Rsq of fit equation","max size used to gen curve","min size for which curve fits are valid"]
["bldg_lo_eq",155.424184946,-9.6925793999999996E-2,0,0,0,0,0,0,0,0,2.5518207619233447E-2,null," 8/14/2018 1:31:19 PM",0.96714729333932081,200000.1,0]
["casing_pvc_eq",0,0,0,0,0,0,5.7858936E-2,-1.0871604269999999,9.6162756930000004,5.8240852939999996,5.0869679380043629E-2,null," 3/1/2019 12:52:09 PM",0.98278758939630184,12.00001,0]
["casing_ss_eq",11.795355226,1.7609326249999999,0,0,0,0,0,0,0,0,0.41539212874008191,null," 3/1/2019 12:52:44 PM",0.78887425427086044,12.00001,0]
["ci_bfv_eq_large",51.741944672999999,1.5887577429999999,0,0,0,0,0,0,0,0,6.0646037127800111E-2,null," 8/14/2018 11:18:25 AM",0.9890776861102849,48.1,14]
["ci_bfv_eq_small",0,0,0,0,0,0,-0.46051790100000001,13.155724568,123.18694075800001,30.689222062999999,4.4231092552301912E-2,null," 8/14/2018 11:17:48 AM",0.99015972795888274,12,1]
["ci_mov_eq",0,0,0,0,0,0,-6.5106489000000003E-2,28.845623929999999,71.319704893999997,1027.6738701910001,9.8818965452308227E-2,null," 8/14/2018 11:05:13 AM",0.97022531386890176,48.1,1]
["di_pipe_eq",0,0,0,0,0,0,0,0.100985408,4.4966242760000004,12.030020025000001,5.1809377456166372E-2,null," 8/14/2018 10:45:41 AM",0.99144707089993411,48.1,4]
["dis75_pump_eq",0,0,0,0,0,0,0,-8.0623800000000003E-4,19.079563084,5044.1302872590004,0.2237930835640336,null," 8/14/2018 11:51:46 AM",0.94883231253613376,10001,0]
["gravel_pack_eq",0,0,0,0,0,0,-2.2301539999999998E-3,0.11827512900000001,7.4562785790000001,-19.724788555,2.8242500443477071E-2,null," 3/1/2019 3:14:36 PM",0.99673371785841958,36.000999999999998,0]
["mag_fm_eq",0,0,0,0,0,0,0,57.575432208000002,189.85395229299999,3620.6311514190002,9.8588956417284587E-2,null," 8/14/2018 12:34:51 PM",0.98921845528759511,20.100000000000001,0]
["op_fm_eq",0,0,0,0,0,0,0.100507337,-4.5180455940000002,372.09362808600002,2555.4668690980002,4.8009299780790902E-2,null," 8/14/2018 12:31:50 PM",0.99930959833000055,60.1,0]
["plug_pvc_eq",0,0,0,0,0,0,-0.21482722200000001,4.0777840879999996,5.2754704280000002,12.030311384000001,7.8407526447544326E-2,null," 3/1/2019 2:23:15 PM",0.97396209694624913,12.00001,0]
["plug_ss_eq",0,0,0,0,0,0,0.35595913099999998,2.251821836,3.7705504369999998,102.65834565999999,2.4708829255172638E-2,null," 3/1/2019 2:23:36 PM",0.99793336626974716,10.00001,0]
["pp_man_eq_large",0,0,0,0,0,0,22.608525612000001,-1299.766716117,26028.146920531999,-164294.697081208,1.2710414919042026E-2,null," 8/14/2018 11:12:08 AM",0.99884823158729841,24.1,14]
["pp_man_eq_small",0,0,0,0,0,0,2.7689868610000001,-29.723792209999999,180.93906510599999,27.073457458,0.13581016236231788,null," 8/14/2018 11:11:09 AM",0.97203462725342071,12,0]
["prop_fm_eq",0,0,0,0,0,0,8.915703422,-172.289864142,1293.6972747970001,655.77680475800003,0.10543863979455978,null," 8/14/2018 12:34:34 PM",0.91981460985863206,14.1,0]
["PRV_eq",0,0,0,0,0,0,0,73.126761622000004,1049.9649015120001,1283.8289016000001,9.0135521117594222E-2,null," 3/4/2019 1:00:18 PM",0.96661445432714665,12.1,0]
["pump_eq",0,0,0,0,0,0,0,-4.77083E-4,12.333908155,6801.7707008589996,0.13368713398242682,null," 8/14/2018 11:44:39 AM",0.93196883970002076,10001,0]
["pvc_pipe_eq",0,0,0,0,0,0,0,0.110356803,0.235228044,2.3914712530000002,0.32313533066570455,null," 8/14/2018 10:49:52 AM",0.9951485251712211,48.1,0]
["ro150_pump_eq",1208.6959950099999,0.44279105600000002,0,0,0,0,0,0,0,0,0.29470590789587603,null," 8/14/2018 11:53:26 AM",0.92758427311257641,2000.1,0]
["ro200_pump_eq",0,0,0,0,0,0,2.989E-5,-6.9500853000000001E-2,67.104526875999994,3035.2637540720002,0.22912656688966204,null," 8/14/2018 11:54:14 AM",0.98162221382153625,2000.1,0]
["ro250_pump_eq",0,0,0,0,0,0,3.6329999999999999E-5,-7.8809054000000003E-2,85.979285004000005,2620.7335939129998,0.20809833443984474,null," 8/14/2018 11:55:01 AM",0.99574883375178613,2000.1,0]
["ro300_pump_eq",0,0,0,0,0,0,0,-0.22441593500000001,160.595970026,2167.300141274,0.2831580734033024,null," 8/14/2018 12:06:20 PM",0.48843263852087704,300.10000000000002,0]
["ro350_pump_eq",0,0,0,0,0,0,4.50507E-4,-0.54192908200000001,227.03411522299999,1908.630602815,0.185456832711236,null," 8/14/2018 12:08:54 PM",0.87564431290392064,350.1,0]
["ro500_pump_eq",1221.082668214,0.62384547700000004,0,0,0,0,0,0,0,0,0.20078346663635688,null," 8/14/2018 12:09:21 PM",0.89323799071811427,185.1,0]
["screen_pvc40_eq",0,0,0,0,0,0,-3.2894459000000001E-2,0.38952086899999999,7.2372941969999998,13.241314249,2.900896028371916E-2,null," 3/1/2019 1:10:54 PM",0.99468109635689328,12.00001,0]
["screen_pvc80_eq",0,0,0,0,0,0,0,-7.4109711999999994E-2,10.577377007000001,1.7324157330000001,6.5816406529195237E-2,null," 3/1/2019 1:11:09 PM",0.97781318110489757,12.00001,0]
["screen_ss_eq",10.810238361,1.766857246,0,0,0,0,0,0,0,0,0.38424972732220358,null," 3/1/2019 1:11:35 PM",0.70298196853436412,12.00001,0]
["ss_man_eq",223.248424414,1.684302033,0,0,0,0,0,0,0,0,0.4318394443116948,null," 8/14/2018 11:09:08 AM",0.90694492088045375,12.1,1]
["ss_mov_eq",0,0,0,0,0,0,0,76.908725779999997,393.08666071099998,200.56854674600001,0.15788457355449312,null," 8/14/2018 11:03:35 AM",0.99604842930537429,48.1,0]
["street_valve_eq",0,0,0,0,0,0,1.299292903,1.6727129569999999,183.07380124400001,20.170194497000001,2.4166866990318128E-2,null," 3/1/2019 5:03:00 PM",0.99896286563712999,12.1,0]
["ven_fm_eq",0,0,0,0,0,0,8.413593852,-263.19800276199999,3397.39818913,-230.584107966,2.769325562732472E-2,null," 8/14/2018 12:32:03 PM",0.99967845562317881,24.1,0]

{"sheet":"Cost Data","index":15,"n_rows":687,"n_cols":7,"rows_kept":687,"cut":false,"hidden":false,"merged":[]}
["Cost Data"]
["This sheet is used internally and contains component cost data extracted from the central cost database"]
["To maintain vendor confidentiality, the central cost database itself is not provided here"]
[]
["BCI","Asphalt Patch"]
[3,"Size needed (in thick)","Size selected (in thick)","Avg. Unit Cost (per sy)","Useful Life (large)","Useful Life (small)"]
["asphalt_patch_cost_cl",0,2,48.610079575596821,40,37]
[null,2.1,4,69.048408488063671,40,37]
[null,4.0999999999999996,6,93.353448275862078,40,37]
[null,6.1,"contact vendor","contact vendor",40,37]
[]
[]
["BCI","Backfill and Compaction"]
[3,null,null,"Avg. Unit Cost (per cy)","Useful Life (large)","Useful Life (small)"]
["backfill_cost_cl",0,0,14.406259946949602,"N/A","N/A"]
[]
[]
["bore_rig_cost",0,0,3008.4293495338848,"N/A","N/A"]
[null,"Borings, cased borings in earth, w/samples, 2.5\" dia",null,"Avg. Unit Cost (per lf)","Useful Life (large)","Useful Life (small)"]
["bore_cost_cl",0,0,80.974546978108293,"N/A","N/A"]
[]
[]
["stake_out_cost",0,0,1433.9242694040011,"N/A","N/A"]
[null,"Borings, drawings showing boring details",null,"Avg. Unit Cost (per job)","Useful Life (large)","Useful Life (small)"]
["bore_draw_cost_cl",0,0,477.97475646800041,"N/A","N/A"]
[]
[]
["bore_report_cost",0,0,1090.907091232848,"N/A","N/A"]
[null,"Borings, mobilization and demobilization, minimum",null,"Avg. Unit Cost","Useful Life (large)","Useful Life (small)"]
["bore_mob_cost_cl",0,0,753.51314549073004,"N/A","N/A"]
[]
[]
["bore_draw_cost",0,0,477.97475646800041,"N/A","N/A"]
[null,"Borings, report and recommendations from P.E.",null,"Avg. Unit Cost (per job)","Useful Life (large)","Useful Life (small)"]
["bore_report_cost_cl",0,0,1090.907091232848,"N/A","N/A"]
[]
[]
["bore_mob_cost",0,0,753.51314549073004,"N/A","N/A"]
[null,"Borings, drill rig and crew with truck mounted auger",null,"Avg. Unit Cost (per day)","Useful Life (large)","Useful Life (small)"]
["bore_rig_cost_cl",0,0,3008.4293495338848,"N/A","N/A"]
[]
[]
["BCI","PVC Well Casing"]
[3,"Size needed (in. diam.)","Size selected (in. diam.)","Avg. Unit Cost (per lf)","Useful Life (large)","Useful Life (small)"]
["casing_pvc_cost_cl",0,2,20.911172413793103,30,27]
[null,2.0000100000000001,4,32.919843043995236,30,27]
[null,4.0000099999999996,6,33.862787158145068,30,27]
[null,6.0000099999999996,8,44.762111771700354,30,27]
[null,8.0000099999999996,10,52.042195005945302,30,27]
[null,10.00001,12,63.704195005945294,30,27]
[null,12.00001,"contact vendor","contact vendor",30,27]
[]
[]
["BCI","Stainless Steel Well Casing"]
[3,"Size needed (in. diam.)","Size selected (in. diam.)","Avg. Unit Cost (per lf)","Useful Life (large)","Useful Life (small)"]
["casing_ss_cost_cl",0,2,46.218128418549341,30,27]
[null,2.0000100000000001,4,72.828565992865634,30,27]
[null,4.0000099999999996,6,427.69448989298451,30,27]
[null,6.0000099999999996,8,616.25557907253267,30,27]
[null,8.0000099999999996,10,683.41261355529127,30,27]
[null,10.00001,12,723.94534363852563,30,27]
[null,12.00001,"contact vendor","contact vendor",30,27]
[]
[]
["bls1149","Cast Iron Manual Valves"]
[35,"Size needed (in. diam)","Size selected (in. diam)","Avg. Unit Cost","Useful Life (large)","Useful Life (small)"]
["ci_bfv_cost_cl",0,1,166.0085502801667,25,20]
[null,1.1000000000000001,2,331.17089212312271,25,20]
[null,2.1,2.5,403.17289057322023,25,20]
[null,2.6,3,529.46246599720769,25,20]
[null,3.1,4,679.65807865790498,25,20]
[null,4.0999999999999996,6,1174.3475555780219,25,20]
[null,6.1,8,1529.5218754147334,25,20]
[null,8.1,10,2326.9334646040388,25,20]
[null,10.1,12,2528.9332250806997,25,20]
[null,12.1,14,3499.2771843579658,25,20]
[null,14.1,16,4214.5506752969141,25,20]
[null,16.100000000000001,18,4966.6410017568842,25,20]
[null,18.100000000000001,20,6632.296091377596,25,20]
[null,20.100000000000001,24,7747.8988849057714,25,20]
[null,24.1,30,10387.933201383395,25,20]
[null,30.1,48,25748.037412195856,25,20]
[null,48.1,"contact vendor","contact vendor",25,20]
[]
[]
["bls1149","Cast Iron Motor/Air Operated Valves (on/off)"]
[35,"Size needed (in. diam)","Size selected (in. diam)","Avg. Unit Cost","Useful Life (large)","Useful Life (small)"]
["ci_mov_cost_cl",0,1,1162.4784693789438,25,20]
[null,1.1000000000000001,2,1179.0809967196158,25,20]
[null,2.1,3,1551.1148185981419,25,20]
[null,3.1,4,1854.7917114206177,25,20]
[null,4.0999999999999996,6,2661.3332835297279,25,20]
[null,6.1,8,3196.9164651247756,25,20]
[null,8.1,10,4782.905010429381,25,20]
[null,10.1,12,6086.1268971968566,25,20]
[null,12.1,14,7747.1021472312341,25,20]
[null,14.1,16,8323.5956340773228,25,20]
[null,16.100000000000001,18,9631.3036306079466,25,20]
[null,18.100000000000001,20,14809.688650581335,25,20]
[null,20.100000000000001,24,18982.941698579121,25,20]
[null,24.1,30,36780.293391321859,25,20]
[null,30.1,48,59789.439846856025,25,20]
[null,48.1,"contact vendor","contact vendor",25,20]
[]
[]
["BCI","Concrete for Basins"]
[3,null,null,"Avg. Unit Cost (per cy)","Useful Life (large)","Useful Life (small)"]
["conc_basin_cost_cl",0,0,601.26511720822305,40,37]
[]
[]
[]
["Current Year","current_year_cl",2017]
[]
[]
["BCI","Well Development"]
[3,null,null,"Avg. Unit Cost (per well)","Useful Life (large)","Useful Life (small)"]
["develop_well_cost_cl",0,0,974.17857805828839,30,27]
[]
[]
["bls10150211","Ductile Iron Piping"]
[19,"Size needed (in. diam)","Size selected (in. diam)","Avg. Unit Cost ($/lf)","Useful Life (large)","Useful Life (small)"]
["di_pipe_cost_cl",0,4,33.764512955067232,40,35]
[null,4.0999999999999996,6,40.125942932108885,40,35]
[null,6.1,8,51.870121351262711,40,35]
[null,8.1,10,67.039685142669725,40,35]
[null,10.1,12,77.805182026894059,40,35]
[null,12.1,14,97.868153492948508,40,35]
[null,14.1,16,114.50573958674975,40,35]
[null,16.100000000000001,18,129.18596261069203,40,35]
[null,18.100000000000001,20,151.69563791407018,40,35]
[null,20.100000000000001,24,187.90685470646113,40,35]
[null,24.1,30,226.13759441585236,40,35]
[null,30.1,36,279.46399605001488,40,35]
[null,36.1,48,484.52392326873428,40,35]
[null,48.1,"contact vendor","contact vendor",40,35]
[]
[]
["bls1141","75 PSI Pumps for Pumping to Distribution"]
[30,"Size needed in (gpm)","Size Selected (gpm)","Avg. Unit Cost","Useful Life(large)","Useful Life (small)"]
["dis75_pump_cost_cl",0,10,3644.2808754976463,20,17]
[null,11,30,5944.4262702875949,20,17]
[null,31,50,6009.8896579788998,20,17]
[null,51,75,6793.0198976613137,20,17]
[null,76,100,7130.751465977819,20,17]
[null,101,125,12559.749231559008,20,17]
[null,126,200,13154.8709378436,20,17]
[null,201,250,13642.870736996965,20,17]
[null,251,300,13642.870736996965,20,17]
[null,301,500,17182.070065036707,20,17]
[null,501,750,19878.715296638766,20,17]
[null,751,1000,36208.854917087963,20,17]
[null,1001,1500,29796.418531871488,20,17]
[null,1501,2000,34231.56304795741,20,17]
[null,2001,3000,43741.607914385197,20,17]
[null,3001,3500,54984.944750366849,20,17]
[null,3501,4000,56820.895214254808,20,17]
[null,4001,6000,106614.72837908663,20,17]
[null,6001,10000,131655.96197527653,20,17]
[null,10001,"Contact Vendor","contact vendor",20,17]
[]
[]
["BCI","Well Drilling, 10\" borehole diameter"]
[3,"Depth needed (feet)","Depth selected (feet)","Avg. Unit Cost (per lf)","Useful Life (large)","Useful Life (small)"]
["drill_10_cost_cl",0,"Up to 100",140.58187395957191,30,27]
[null,100,"100 to 500",129.14174316290129,30,27]
[null,500.1,"Deeper",137.32317003567181,30,27]
[]
[]
["BCI","Well Drilling, 12\" borehole diameter"]
[3,"Depth needed (feet)","Depth selected (feet)","Avg. Unit Cost (per lf)","Useful Life (large)","Useful Life (small)"]
["drill_12_cost_cl",0,"Up to 100",163.47600237812128,30,27]
[null,100,"100 to 500",127.5054577883472,30,27]
[null,500.1,"Deeper",137.32317003567181,30,27]
[]
[]
["BCI","Well Drilling, 15\" borehole diameter"]
[3,"Depth needed (feet)","Depth selected (feet)","Avg. Unit Cost (per lf)","Useful Life (large)","Useful Life (small)"]
["drill_15_cost_cl",0,"Up to 100",222.32680856123662,30,27]
[null,100,"100 to 500",215.78166706302022,30,27]
[null,500.1,"Deeper",225.58551248513675,30,27]
[]
[]
["BCI","Well Drilling, 8\" borehole diameter"]
[3,"Depth needed (feet)","Depth selected (feet)","Avg. Unit Cost (per lf)","Useful Life (large)","Useful Life (small)"]
["drill_8_cost_cl",0,"Up to 100",102.98891082045184,30,27]
[null,100,"100 to 500",89.912494649227114,30,27]
[null,500.1,"Deeper",96.443769322235426,30,27]
[]
[]
["BCI","Excavation"]
[3,null,null,"Avg. Unit Cost (per cy)","Useful Life (large)","Useful Life (small)"]
["excavate_cost_cl",0,0,31.07454575596817,"N/A","N/A"]
[]
[]
["BCI","Gravel Pack"]
[3,"Size needed (in. diam.)","Size selected (in. diam.)","Avg. Unit Cost (per lf)","Useful Life (large)","Useful Life (small)"]
["gravel_pack_cost_cl",0,6,29.171236309634303,30,27]
[null,6.0010000000000003,8,44.736445145721177,30,27]
[null,8.0009999999999994,10,65.811175051048806,30,27]
[null,10.000999999999999,12,83.1299053276406,30,27]
[null,12.000999999999999,14,99.312093929831065,30,27]
[null,14.000999999999999,16,122.4758956747726,30,27]
[null,16.001000000000001,18,140.06523111193613,30,27]
[null,18.001000000000001,20,169.66943567848523,30,27]
[null,20.001000000000001,24,194.83571561165769,30,27]
[null,24.001000000000001,26,204.57750139224055,30,27]
[null,26.001000000000001,30,250.03916836829401,30,27]
[null,30.001000000000001,36,301.99535919806942,30,27]
[null,36.000999999999998,"contact vendor","contact vendor",30,27]
[]
[]
["BCI","Grouting"]
[3,null,null,"Avg. Unit Cost (per cf)","Useful Life (large)","Useful Life (small)"]
["grout_cost_cl",0,0,64.905503978779848,40,37]
[]
[]
["bls118","Magnetic Flow Meters"]
[43,"Size needed (in. diam)","Size selected (in. diam)","Avg. Unit Cost","Useful Life (large)","Useful Life (small)"]
["mag_fm_cost_cl",0,0.75,5266.5310303449451,15,14]
[null,0.76,1,3737.0701052521649,15,14]
[null,1.1000000000000001,1.5,3831.033761897907,15,14]
[null,1.6,2,4209.2380938966562,15,14]
[null,2.1,2.5,4105.5710709593259,15,14]
[null,2.6,3,4481.3390271288199,15,14]
[null,3.1,4,4713.8023961711842,15,14]
[null,4.0999999999999996,6,7747.4619998290036,15,14]
[null,6.1,8,9978.7261018798472,15,14]
[null,8.1,10,12076.756326839053,15,14]
[null,10.1,12,14357.808465803988,15,14]
[null,12.1,14,17614.41640217376,15,14]
[null,14.1,16,21512.384613409264,15,14]
[null,16.100000000000001,18,25120.373133416404,15,14]
[null,18.100000000000001,20,28272.26294309954,15,14]
[null,20.100000000000001,"contact vendor","contact vendor",15,14]
[]
[]
["bls118","Orifice Plate Flow Meters"]
[43,"Size needed (in. diam)","Size selected (in. diam)","Avg. Unit Cost","Useful Life (large)","Useful Life (small)"]
["op_fm_cost_cl",0,2,3340.9756510202192,15,14]
[null,2.1,3,3449.0303581646272,15,14]
[null,3.1,6,5093.5074255753598,15,14]
[null,6.1,12,6219.2647459408408,15,14]
[null,12.1,24,10437.005481311237,15,14]
[null,48.1,60,30284.544905206916,15,14]
[null,60.1,"contact vendor","contact vendor",15,14]
[]
[]
["BCI","PVC Well Plug"]
[3,"Size needed (in. diam.)","Size selected (in. diam.)","Avg. Unit Cost (per well)","Useful Life (large)","Useful Life (small)"]
["plug_pvc_cost_cl",0,2,37.523629013079663,30,27]
[null,2.0000100000000001,4,79.318240190249696,30,27]
[null,4.0000099999999996,6,169.75767419738406,30,27]
[null,6.0000099999999996,8,201.40176932223542,30,27]
[null,8.0000099999999996,10,237.85765279429251,30,27]
[null,10.00001,12,305.29202378121283,30,27]
[null,12.00001,"contact vendor","contact vendor",30,27]
[]
[]
["BCI","Stainless Steel Well Plug"]
[3,"Size needed (in. diam.)","Size selected (in. diam.)","Avg. Unit Cost (per well)","Useful Life (large)","Useful Life (small)"]
["plug_ss_cost_cl",0,2,122.36086563614742,30,27]
[null,2.0000100000000001,4,174.07025683709867,30,27]
[null,4.0000099999999996,6,293.83802615933411,30,27]
[null,6.0000099999999996,8,443.1143995243757,30,27]
[null,8.0000099999999996,10,732.48730796670623,30,27]
[null,10.00001,"contact vendor","contact vendor",30,27]
[]
[]
["bls1149","Polypropylene/PVC Manual Valves"]
[35,"Size needed (in. diam)","Size selected (in. diam)","Avg. Unit Cost","Useful Life (large)","Useful Life (small)"]
["pp_man_cost_cl",0,0.5,123.13887138767572,25,20]
[null,0.6,0.75,136.02311869660861,25,20]
[null,0.76,1,153.40629612728506,25,20]
[null,1.1000000000000001,1.5,325.47949510987348,25,20]
[null,1.6,2,329.89360435744584,25,20]
[null,2.1,3,358.37714931881567,25,20]
[null,3.1,4,470.91776878293058,25,20]
[null,4.0999999999999996,6,555.70567145655411,25,20]
[null,6.1,8,1128.5194457109608,25,20]
[null,8.1,10,1892.112903276141,25,20]
[null,10.1,12,2446.3541403619543,25,20]
[null,12.1,14,7398.6601526975719,25,20]
[null,14.1,16,11867.62109822923,25,20]
[null,16.100000000000001,18,15276.892816195012,25,20]
[null,18.100000000000001,20,17020.9386051287,25,20]
[null,20.100000000000001,24,24298.01344826557,25,20]
[null,24.1,"contact vendor","contact vendor",25,20]
[]
[]
["bls1149","Polypropylene/PVC Motor/Air Operated Valves (on/off)"]
[35,"Size needed (in. diam)","Size selected (in. diam)","Avg. Unit Cost","Useful Life (large)","Useful Life (small)"]
["pp_mov_cost_cl",0,1.5,702.22885157223027,25,20]
[null,1.6,2,702.22885157223027,25,20]
[null,2.1,2.5,572.19377909706236,25,20]
[null,2.6,3,877.78864752968707,25,20]
[null,3.1,4,1111.5667392202163,25,20]
[null,4.0999999999999996,6,1564.7845763815203,25,20]
[null,6.1,8,2406.3677797857363,25,20]
[null,8.1,10,4289.6012005962166,25,20]
[null,10.1,12,5234.4271376082852,25,20]
[null,12.1,14,9662.6363587324395,25,20]
[null,14.1,16,13781.864810300089,25,20]
[null,16.100000000000001,18,17833.037649262747,25,20]
[null,18.100000000000001,20,20203.516766600213,25,20]
[null,20.100000000000001,24,27184.884533339362,25,20]
[null,24.1,"contact vendor","contact vendor",25,20]
[]
[]
["bls118","Propeller Flow Meters"]
[43,"Size needed (in. diam)","Size selected (in. diam)","Avg. Unit Cost","Useful Life (large)","Useful Life (small)"]
["prop_fm_cost_cl",0,2,2692.2143919020632,15,14]
[null,2.1,3,3397.2089027065267,15,14]
[null,3.1,4,3162.9667103957627,15,14]
[null,4.0999999999999996,6,4458.2134561275525,15,14]
[null,6.1,8,5057.7014318214297,15,14]
[null,8.1,10,5410.4972361560685,15,14]
[null,10.1,12,5805.3942026027316,15,14]
[null,12.1,14,10960.912532079818,15,14]
[null,14.1,"contact vendor","contact vendor",15,14]
[]
[]
["bls1149","Pressure Reducing Valves"]
[35,"Size needed (in. diam)","Size selected (in. diam)","Avg. Unit Cost","Useful Life (large)","Useful Life (small)"]
["PRV_cost_cl",0,1.5,3210.0101134378688,25,20]
[null,1.6,2,3541.3261494739054,25,20]
[null,2.1,2.5,4413.2928915621242,25,20]
[null,2.6,3,4615.5147189331501,25,20]
[null,3.1,4,6938.0808816756644,25,20]
[null,4.0999999999999996,6,10802.309177903657,25,20]
[null,6.1,8,17081.328210331427,25,20]
[null,8.1,10,16483.779180545978,25,20]
[null,10.1,12,25688.806056245703,25,20]
[null,12.1,"contact vendor","contact vendor",25,20]
[]
[]
["bls1141","Centrifugal Pumps (Booster)"]
[30,"Size needed (gpm)","Size selected (gpm)","Avg. Unit Cost","Useful Life (large)","Useful Life (small)"]
["pump_cost_cl",0,10,5677.2511607538163,20,17]
[null,11,30,5907.7773247902132,20,17]
[null,31,50,6736.3908144099287,20,17]
[null,51,55,7918.8558741541174,20,17]
[null,56,75,8404.3144159870735,20,17]
[null,76,100,8404.3144159870735,20,17]
[null,101,120,10747.924187245231,20,17]
[null,121,125,9058.9315257220987,20,17]
[null,126,140,10747.924187245231,20,17]
[null,141,200,10052.398939539858,20,17]
[null,201,250,10605.869564837847,20,17]
[null,251,300,11163.348507247631,20,17]
[null,301,500,15106.120511414303,20,17]
[null,501,750,15541.926595522043,20,17]
[null,751,1000,17819.26280561243,20,17]
[null,1001,1500,21313.394051832671,20,17]
[null,1501,2000,31639.579131048209,20,17]
[null,2001,3000,36351.963074920728,20,17]
[null,3001,3500,41402.29357946603,20,17]
[null,3501,4000,43425.006674004457,20,17]
[null,4001,6000,89976.509472825419,20,17]
[null,6001,10000,80591.971358605399,20,17]
[null,10001,"contact vendor","contact vendor",20,17]
[]
[]
["bls072106033","PVC Piping"]
[15,"Size needed (in. diam)","Size selected (in. diam)","Avg. Unit Cost ($/lf)","Useful Life (large)","Useful Life (small)"]
["pvc_pipe_cost_cl",0,0.5,3.0128258684277665,22,17]
[null,0.6,0.75,3.9351530427680776,22,17]
[null,0.76,1,5.8268559963551469,22,17]
[null,1.1000000000000001,1.5,9.0831143135917074,22,17]
[null,1.6,2,1.9292992424242426,22,17]
[null,2.1,2.5,3.015700757575758,22,17]
[null,2.6,3,4.9169034090909092,22,17]
[null,3.1,4,8.2884943181818187,22,17]
[null,4.0999999999999996,6,12.175189393939394,22,17]
[null,6.1,8,17.232575757575759,22,17]
[null,8.1,10,25.755208333333336,22,17]
[null,10.1,12,32.779356060606062,22,17]
[null,12.1,14,23.882102272727273,22,17]
[null,14.1,16,30.437973484848488,22,17]
[null,16.100000000000001,18,38.398674242424249,22,17]
[null,18.100000000000001,20,46.827651515151523,22,17]
[null,20.100000000000001,24,64.153882575757578,22,17]
[null,24.1,30,110.51325757575759,22,17]
[null,30.1,36,156.40435606060606,22,17]
[null,36.1,42,208.85132575757578,22,17]
[null,42.1,48,262.2348484848485,22,17]
[null,48.1,"contact vendor","contact vendor",22,17]
[]
[]
["bls1141","150 PSI Feed Water Pumps for Nanofiltration and Reverse Osmosis"]
[30,"Size needed in (gpm)","Size Selected (gpm)","Avg. Unit Cost","Useful Life(large)","Useful Life (small)"]
["ro150_pump_cost_cl",0,6,3708.137061386989,20,17]
[null,5.0999999999999996,18,4029.5929901266313,20,17]
[null,18.100000000000001,20,3028.0407172559903,20,17]
[null,20.100000000000001,25,6673.3032035817432,20,17]
[null,25.1,60,6218.0850639300343,20,17]
[null,60.1,70,4845.6883266094037,20,17]
[null,70.099999999999994,90,11769.923514473257,20,17]
[null,90.1,210,11369.487710851419,20,17]
[null,210.1,260,20915.408722161646,20,17]
[null,260.10000000000002,600,18504.339909113183,20,17]
[null,600.1,630,22766.265347797133,20,17]
[null,630.1,2000,35593.338682852147,20,17]
[null,2000.1,"Contact Vendor","contact vendor",20,17]
[]
[]
["bls1141","200 PSI Feed Water Pumps for Nanofiltration and Reverse Osmosis"]
[30,"Size needed in (gpm)","Size Selected (gpm)","Avg. Unit Cost","Useful Life(large)","Useful Life (small)"]
["ro200_pump_cost_cl",0,9,4029.5929901266313,20,17]
[null,9.1,20,3442.2077885472099,20,17]
[null,20.100000000000001,25,12253.390747663052,20,17]
[null,25.1,38,5836.6619759897194,20,17]
[null,38.1,70,6379.4425131975331,20,17]
[null,70.099999999999994,90,8913.9604822445635,20,17]
[null,90.1,120,12832.905270863308,20,17]
[null,120.1,210,13024.81997320568,20,17]
[null,210.1,220,15681.184097624124,20,17]
[null,220.1,600,21281.923081378387,20,17]
[null,600.1,630,32698.258921922701,20,17]
[null,630.1,2000,98237.315677667313,20,17]
[null,2000.1,"Contact Vendor","contact vendor",20,17]
[]
[]
["bls1141","250 PSI Feed Water Pumps for Reverse Osmosis"]
[30,"Size needed in (gpm)","Size Selected (gpm)","Avg. Unit Cost","Useful Life(large)","Useful Life (small)"]
["ro250_pump_cost_cl",0,5,4362.5752270680932,20,17]
[null,5.0999999999999996,10,2993.505952874159,20,17]
[null,10.1,20,3442.2077885472099,20,17]
[null,20.100000000000001,22,5755.9778185769819,20,17]
[null,22.1,45,10360.097594748351,20,17]
[null,45.1,70,7020.733462293615,20,17]
[null,70.099999999999994,95,10965.643342168496,20,17]
[null,95.1,210,14841.810995644579,20,17]
[null,210.1,240,24448.862536475084,20,17]
[null,240.1,365,29386.207618081422,20,17]
[null,365.1,630,32698.258921922701,20,17]
[null,630.1,2000,150554.17513767639,20,17]
[null,2000.1,"Contact Vendor","contact vendor",20,17]
[]
[]
["bls1141","300 PSI Feed Water Pumps for Reverse Osmosis"]
[30,"Size needed in (gpm)","Size Selected (gpm)","Avg. Unit Cost","Useful Life(large)","Useful Life (small)"]
["ro300_pump_cost_cl",0,6,4694.2767630982416,20,17]
[null,6.1,7.8,2993.505952874159,20,17]
[null,7.8999999999999995,26,5439.6446934825917,20,17]
[null,26.1,40,7902.4325459380989,20,17]
[null,40.1,62,9518.4513123844499,20,17]
[null,62.1,80,37583.731082904451,20,17]
[null,80.099999999999994,120,23175.845830629649,20,17]
[null,120.1,300,28835.263157723191,20,17]
[null,300.10000000000002,"Contact Vendor","contact vendor",20,17]
[]
[]
["bls1141","350 PSI Feed Water Pumps for Reverse Osmosis"]
[30,"Size needed in (gpm)","Size Selected (gpm)","Avg. Unit Cost","Useful Life(large)","Useful Life (small)"]
["ro350_pump_cost_cl",0,4,2993.505952874159,20,17]
[null,4.0999999999999996,14,5005.4870845473779,20,17]
[null,14.1,21,5439.6446934825917,20,17]
[null,21.1,71,25832.019520693466,20,17]
[null,71.099999999999994,160,24151.739925050395,20,17]
[null,160.1,350,34555.116496141964,20,17]
[null,350.1,"Contact Vendor","contact vendor",20,17]
[]
[]
["bls1141","500 PSI Feed Water Pumps for Reverse Osmosis"]
[30,"Size needed in (gpm)","Size Selected (gpm)","Avg. Unit Cost","Useful Life(large)","Useful Life (small)"]
["ro500_pump_cost_cl",0,15,5173.2589039294226,20,17]
[null,15.1,33,16287.181412306378,20,17]
[null,33.1,75,17083.551595512203,20,17]
[null,75.099999999999994,115,21718.408193555097,20,17]
[null,115.1,185,30860.051298509541,20,17]
[null,185.1,"Contact Vendor","contact vendor",20,17]
[]
[]
["bls117507","Remote Telemetry Unit (RTU)"]
[42,null,null,"Avg. Unit Cost (per well)","Useful Life (large)","Useful Life (small)"]
["RTU_cost_cl",0,0,1030.74,10,8]
[]
[]
["BCI","PVC Schedule 40 Well Screen"]
[3,"Size needed (in. diam.)","Size selected (in. diam.)","Avg. Unit Cost (per lf)","Useful Life (large)","Useful Life (small)"]
["screen_pvc40_cost_cl",0,2,28.842996432818072,30,27]
[null,2.0000100000000001,4,47.993082045184302,30,27]
[null,4.0000099999999996,6,60.334556480380492,30,27]
[null,6.0000099999999996,8,81.412130796670624,30,27]
[null,8.0000099999999996,10,92.671992865636142,30,27]
[null,10.00001,12,98.56539357907252,30,27]
[null,12.00001,"contact vendor","contact vendor",30,27]
[]
[]
["BCI","PVC Schedule 80 Well Screen"]
[3,"Size needed (in. diam.)","Size selected (in. diam.)","Avg. Unit Cost (per lf)","Useful Life (large)","Useful Life (small)"]
["screen_pvc80_cost_cl",0,2,23.323999999999998,30,27]
[null,2.0000100000000001,4,38.757776456599281,30,27]
[null,4.0000099999999996,6,65.326613555291317,30,27]
[null,6.0000099999999996,8,88.914083234244941,30,27]
[null,8.0000099999999996,10,103.97345541022592,30,27]
[null,10.00001,12,111.10100356718192,30,27]
[null,12.00001,"contact vendor","contact vendor",30,27]
[]
[]
["BCI","Stainless Steel Well Screen"]
[3,"Size needed (in. diam.)","Size selected (in. diam.)","Avg. Unit Cost (per lf)","Useful Life (large)","Useful Life (small)"]
["screen_ss_cost_cl",0,2,39.159914387633762,30,27]
[null,2.0000100000000001,4,72.828565992865634,30,27]
[null,4.0000099999999996,6,442.03278715814503,30,27]
[null,6.0000099999999996,8,560.87147919143877,30,27]
[null,8.0000099999999996,10,611.36058977407845,30,27]
[null,10.00001,12,641.22973127229488,30,27]
[null,12.00001,"contact vendor","contact vendor",30,27]
[]
[]
[3,null,null,"Avg. Unit Cost (per sf)","Useful Life (large)"]
["sitework_sf_cl","Sitework unit cost","sitework_sf_cl",12.815384615384616,"N/A"]
[]
[]
["bls117507","Well Pump - Soft Start Control"]
[42,null,null,"Avg. Unit Cost (per well)","Useful Life (large)","Useful Life (small)"]
["soft_start_cost_cl",0,0,296.63999999999993,10,8]
[]
[]
["bls1149","Stainless Steel Manual Valves"]
[35,"Size needed (in. diam)","Size selected (in. diam)","Avg. Unit Cost","Useful Life (large)","Useful Life (small)"]
["ss_man_cost_cl",0,1,277.97823676388771,25,20]
[null,1.1000000000000001,1.5,313.35999755720997,25,20]
[null,1.6,2,358.71736233051587,25,20]
[null,2.1,3,2538.9221006530552,25,20]
[null,3.1,4,3794.4098011850811,25,20]
[null,4.0999999999999996,6,5551.354855323485,25,20]
[null,6.1,8,6752.0126300930642,25,20]
[null,8.1,10,8764.2729998057875,25,20]
[null,10.1,12,12557.923454678745,25,20]
[null,12.1,"contact vendor","contact vendor",25,20]
[]
[]
["bls1149","Stainless Steel Motor/Air Operated Valves (on/off)"]
[35,"Size needed (in. diam)","Size selected (in. diam)","Avg. Unit Cost","Useful Life (large)","Useful Life (small)"]
["ss_mov_cost_cl",0,1,908.90636697142929,25,20]
[null,1.1000000000000001,1.5,921.31867767961535,25,20]
[null,1.6,2,948.00514570221583,25,20]
[null,2.1,3,2481.1712113123772,25,20]
[null,3.1,4,3800.7701575172755,25,20]
[null,4.0999999999999996,6,5899.9391263669186,25,20]
[null,6.1,8,8985.463196894576,25,20]
[null,8.1,14,21494.827213674158,25,20]
[null,14.1,16,24828.454975352688,25,20]
[null,16.100000000000001,20,40774.139121219967,25,20]
[null,20.100000000000001,24,57114.984815850723,25,20]
[null,24.1,30,70475.957982031381,25,20]
[null,30.1,48,194516.18030450642,25,20]
[null,48.1,"contact vendor","contact vendor",25,20]
[]
[]
["CCI","Geotechnical costs"]
[2,"Borings, initial field stake out & determination of elevations",null,"Avg. Unit Cost (per day)","Useful Life (large)","Useful Life (small)"]
["stake_out_cost_cl",0,0,1433.9242694040011,"N/A","N/A"]
[]
[]
["bls1173","Standby Generators for Standby Power Calculations"]
[40,"Size needed (kW)","Size selected (kW)","Avg. Unit Cost ($/kW)","Useful Life (large)","Useful Life (small)"]
["std_gen_cost_cl",0,30,516.77599243856332]
[null,31,50,519.27008506616255]
[null,51,125,303.28166351606808]
[null,126,150,318.24621928166351]
[null,151,175,301.28638941398867]
[null,176,200,283.82774102079395]
[null,201,250,240.43052930056712]
[null,251,300,213.64397448015123]
[null,301,350,206.01205103969755]
[null,351,400,218.98133270321361]
[null,401,500,217.43499527410208]
[null,501,750,225.01703686200381]
[null,751,1000,210.70094517958412]
[]
[]
["bls1149","Isolation/Street Valves"]
[35,"Size needed (in. diam)","Size selected (in. diam)","Avg. Unit Cost","Useful Life (large)","Useful Life (small)"]
["street_valve_cost_cl",0,2,405.23678010453568,25,20]
[null,2.1,3,613.0045079626866,25,20]
[null,3.1,4,857.67638729364262,25,20]
[null,4.0999999999999996,6,1524.1369101440953,25,20]
[null,6.1,8,2163.0581681373346,25,20]
[null,8.1,10,3369.0589532732515,25,20]
[null,10.1,12,4709.7473677211146,25,20]
[null,12.1,"contact vendor","contact vendor",25,20]
[]
[]
["bls118","Venturi Flow Meters"]
[43,"Size needed (in. diam)","Size selected (in. diam)","Avg. Unit Cost","Useful Life (large)","Useful Life (small)"]
["ven_fm_cost_cl",0,2,5465.3094164165286,15,14]
[null,2.1,3,8218.0024846268898,15,14]
[null,3.1,6,12117.433322137349,15,14]
[null,6.1,12,17331.263115229482,15,14]
[null,12.1,24,45943.763901792663,15,14]
[null,24.1,"contact vendor","contact vendor",15,14]
[]
[]
["bls1141","Well Pumps"]
[30,"Size needed (hp)","Size selected (gpm)","Avg. Unit Cost","Useful Life (large)","Useful Life (small)"]
["well_pump_cost_cl",0,0.5,1385.9380313484455,20,17]
[null,0.6,0.75,1538.8463086354536,20,17]
[null,0.85,1,1651.4584217993138,20,17]
[null,1.1000000000000001,1.5,1841.3064005781198,20,17]
[null,1.6,2,2237.4372370829556,20,17]
[null,2.1,3,2499.4398561623339,20,17]
[null,3.1,5,3142.6770700129564,20,17]
[null,5.0999999999999996,7.5,4757.6691553716046,20,17]
[null,7.6,10,5503.352195274706,20,17]
[null,10.1,15,5896.4491866284689,20,17]
[null,15.1,20,8607.180522838793,20,17]
[null,20.100000000000001,25,9251.6709815166487,20,17]
[null,25.1,30,9312.3230678088566,20,17]
[null,30.1,40,11562.10847489009,20,17]
[null,40.1,50,14441.953412589064,20,17]
[null,50.1,60,19570.628975889351,20,17]
[null,60.1,75,21235.856325436624,20,17]
[null,75.099999999999994,100,31161.629807306897,20,17]
[null,100.1,125,34823.77250122081,20,17]
[null,125.1,150,38826.710929589623,20,17]
[null,150.1,200,45688.586201262486,20,17]
[null,200.1,250,53755.2020028447,20,17]
[null,250.1,"contact vendor","contact vendor",20,17]
[]
[]
["BCI","Low Quality, No Heating or Cooling"]
[3,"Size needed (sf)","Size selected (sf)","Avg. Unit Cost","Useful Life (large)","Useful Life (small)"]
["bldg_lo_cost_cl",0,500,90.895204266982759,40,37]
[null,500.1,1000,80.17905227893165,40,37]
[null,1000.1,2000,75.104239977760983,40,37]
[null,2000.1,3000,72.769358231718499,40,37]
[null,3000.1,4000,69.31697283119486,40,37]
[null,4000.1,5000,66.194847058636313,40,37]
[null,5000.1000000000004,7500,64.492195301784065,40,37]
[null,7500.1,8000,64.084083199268534,40,37]
[null,8000.1,10000,61.565758614742805,40,37]
[null,10000.1,12000,62.122837621819031,40,37]
[null,12000.1,15000,59.962180691418723,40,37]
[null,15000.1,18000,58.9176202039759,40,37]
[null,18000.099999999999,20000,57.584641809587026,40,37]
[null,20000.099999999999,24000,58.617472761730703,40,37]
[null,24000.1,25000,56.765292437966217,40,37]
[null,25000.1,30000,56.340683783728537,40,37]
[null,30000.1,36000,56.419923260843667,40,37]
[null,36000.1,42000,54.918096825614136,40,37]
[null,42000.1,48000,54.718462124432079,40,37]
[null,48000.1,50000,54.271568663407955,40,37]
[null,50000.1,54000,54.285457492411808,40,37]
[null,54000.1,60000,54.446146131750346,40,37]
[null,60000.1,100000,52.495709810916672,40,37]
[null,100000.1,200000,51.013446998123108,40,37]
[null,200000.1,"contact vendor"]
[]
[]
["BCI","Small Low Cost Shed"]
[3,"Size needed (sf)","Size selected (sf)","Avg. Unit Cost","Useful Life (large)","Useful Life (small)"]
["bldg_shed_cost_cl",0,500,46.002457179826116,25,20]
[null,500.1,"contact vendor","contact vendor"]
[]
[]
[null,"Building maintenance (labor and materials)","building_matl_rate_cl",5.7866132725374513,"/sf/yr"]
[]
[]
[null,"Energy cost","energy_cost_cl",0.12121832061068702,"/kwh"]
[]
[]
["ECI","Labor Costs",null,null,"Inf. Adj. Rates"]
[4,"Design Flow Needed (mgd)","Design Flow (mgd)","Average Water Treatment Plant Operators3","Technical Rate (Loaded)","Managerial Rate (Loaded)","Clerical Rate (Loaded)"]
["labor_table_cl",0,0.03,1,31.9148911743602,45.239626883520685,30.477646496053573]
[null,3.1E-2,0.124,1,31.9148911743602,45.239626883520685,30.477646496053573]
[null,0.1241,0.30499999999999999,1.2,31.9148911743602,45.239626883520685,30.477646496053573]
[null,0.30509999999999998,0.74,1.2,31.9148911743602,45.239626883520685,30.477646496053573]
[null,0.74099999999999999,2.1520000000000001,1.6,34.050609901937335,51.740808419038501,30.477646496053573]
[null,2.1520999999999999,7.3650000000000002,2.8,35.944549150920828,57.637541258072218,39.356326237742159]
[null,7.3651,22.614000000000001,3.8,37.516115761779474,67.25499162879693,39.356326237742159]
[null,22.614100000000001,75.069999999999993,7.8,43.842678784979661,71.848801722076047,39.356326237742159]
[]
[]
[null,"Land Costs"]
["CPI","Land Costs"]
[5,"System Size  greater than (MGD)","Assumed Population","Unit Cost ($/acre)"]
["land_cost_cl",0,"25-100",22071.006650033491]
[null,3.1E-2,"101-500",22047.109132569258]
[null,0.1241,"501-1,000",16524.280174168169]
[null,0.30509999999999998,"1,001-3,300",19717.525281399929]
[null,0.74099999999999999,"3,301-10,000",36189.204491085293]
[null,2.1520999999999999,"10,001-50,000",46531.704610662571]
[null,7.3651,"50,001-100,000",52021.957885134674]
[null,22.614100000000001,"100,001-1,000,000",111427.57541372362]

{"sheet":"Engineering Data","index":16,"n_rows":89,"n_cols":5,"rows_kept":89,"cut":false,"hidden":false,"merged":[]}
["Engineering Data"]
["This sheet is used internally and contains engineering reference and indirect cost data extracted from the central cost database"]
[]
["Architectural Fee"]
["Building cost lookup","Corresponds to the range","Architectural fee"]
[0,"<$250,000",0.09]
[250000,"$250,000 to $500,000",0.08]
[500000,"$500,000 to $1,000,000",7.0000000000000007E-2]
[1000000,"$1,000,000 to $5,000,000",6.2E-2]
[5000000,"$5,000,000 to $10,000,000",5.2999999999999999E-2]
[10000000,"$10,000,000 to $50,000,000",4.9000000000000002E-2]
[50000000,">$50,000,000",4.4999999999999998E-2]
[]
[]
["Construction Management Fee"]
["Building cost lookup","Corresponds to the range","Construction management fee"]
[0,"<$100,000",0.1]
[100000,"$100,000 to $250,000",0.09]
[250000,"$250,000 to $1,000,000",0.06]
[1000000,"$1,000,000 to $5,000,000",0.05]
[5000000,"$5,000,000 to $10,000,000",0.04]
[10000000,">$10,000,000",3.2000000000000001E-2]
[]
[]
["Contingency Factors"]
["Project direct cost","Corresponds to the range","Default contingency (prior to application of technology complexity factor)"]
[0,"<$500,000",6.7000000000000004E-2]
[500000,"$500,000 to $3,000,000",5.8000000000000003E-2]
[3000000,"$3,000,000 to $15,000,000",4.9000000000000002E-2]
[15000000,"$15,000,000 to $50,000,000",4.1000000000000002E-2]
[50000000,"$50,000,000 to $100,000,000",3.2000000000000001E-2]
[100000000,">$100,000,000",5.8000000000000003E-2]
[]
[]
["Feed Water Pump Dimensions (for high pressure pumps for reverse osmosis and nanofiltration)"]
["Pump Rating Needed (mgd)","Pump Rating Selected (mgd)","Area w/ piping (sf)","Foundation Depth (ft)"]
[0,0.05,36,1]
[0.06,0.1,45,1.1666666666666667]
[0.11,0.2,54,1.1666666666666667]
[0.21,0.5,65,1.1666666666666667]
[0.51,1,76,1.3333333333333333]
[1.01,2,88,1.3333333333333333]
[2.0099999999999998,3,95,1.3333333333333333]
[3.01,5,101,1.5]
[5.01,10,144,2]
[]
[]
["Performance Bond"]
["Direct cost lookup","Corresponds to the range","Base cost","Plus fraction","Of amount over"]
[0,"<$100,000",0,2.5000000000000001E-2,0]
[100000,"$100,000 to $500,000",2500,1.4999999999999999E-2,100000]
[500000,"$500,000 to $2,500,000",8500,0.01,500000]
[2500000,"$2,500,000 to $5,000,000",28500,7.4999999999999997E-3,2500000]
[5000000,"$5,000,000 to $7,500,000",47250,7.0000000000000001E-3,5000000]
[7500000,">$7,500,000",64750,6.0000000000000001E-3,7500000]
[]
[]
["Pipe Size Selection"]
["Pipe Flow to Pipe Diameter"]
["Flow (GPM)","Diameter (inch)"]
[0,0.5]
[2.1,0.75]
[4.0999999999999996,1]
[7.1,1.5]
[21.1,2]
[41.1,2.5]
[66.099999999999994,3]
[116.1,4]
[238.1,6]
[697.1,8]
[1435.1,10]
[2608.1,12]
[4132.1000000000004,14]
[5299.1,16]
[7528.1,18]
[10265.1,20]
[13643.1,24]
[22174.1,30]
[50561.1,36]
[81777.100000000006,42]
[122025.1,48]
[]
[]
["Pump Dimensions (for centrifugal pumps)"]
["Pump Rating Needed (gpm)","Pump Rating Selected (gpm)","Length (ft)","Width (ft)"]
[0,350,2.5,2.5]
[351,1740,3.75,3.75]
[1741,7000,5,5]
[7001,35000,7.083333333333333,7.083333333333333]

{"sheet":"Lookups","index":17,"n_rows":56,"n_cols":4,"rows_kept":56,"cut":false,"hidden":false,"merged":[]}
["Lookup Tables and Input Validation"]
["This sheet is used internally to perform certain reference calculations and support input sheet data validation"]
[]
["Well Pump Size Lookup"]
["pump_hp_table"]
["Horsepower Needed","Horsepower Selected","Pump Diameter (inches)"]
[0,7.5,4]
[7.6,50,6]
[51,250,8]
[]
[]
["Pressure Reducing Valve Sizes"]
["prv_table"]
["Diameter Needed (inches)","Diameter Selected (inches)","Length (inches)","Width (inches)"]
[0,2,9.3800000000000008,18]
[2.1,2.5,11,20]
[2.6,3,12,22]
[3.1,4,15,24]
[4.0999999999999996,6,20,40]
[6.1,8,25.5,77]
[8.1,10,29.75,48]
[10.1,12,34,52]
[12.1,14,39,58]
[14.1,16,41.4,60]
[]
["Input Validation"]
["design_type"]
["Interconnection"]
["New Well Construction"]
[]
["comp_level_valid"]
["low cost"]
["mid cost"]
["high cost"]
[]
["system_automation_valid"]
["manual"]
["semi-automated"]
["fully automated"]
[]
["yes_no_valid"]
[{"$f":"IF(design=2,\"yes\",\"\")","v":""}]
[{"$f":"IF(design=2,\"no\",\"\")","v":""}]
[]
[]
["Constants"]
["Minutes in a day","min_per_day",1440,"min/day"]
["Gallons per cubic foot","gal_per_cuft",7.48,"gal/ft^3"]
["Gallons per million gallons","gal_per_mil_gal",1000000,"gal/mil gal"]
["Seconds per minites","sec_per_min",60,"sec/min"]
["Cubic feet per cubic yard","cuft_per_cuyd",27,"ft^3/Yd^3"]
["Pounds per gal","lbs_per_gal",8.34,"lbs/gal"]
["Pounds of water per cubic foot","lbs_per_cuft",62.4,"lbs/ft^3"]
["Days per year","day_per_year",365,"days/year"]
["Inches per foot","in_per_ft",12,"in/ft"]
["Square feet per square yard","sqft_per_sqyd",27,"ft^2/yd^2"]